{"text_format":"2","workbook":"xlsx","n_sheets":6,"sheets":["INSTITUTIONAL VENDOR","e.g. different language","DD","Validation","DD_SD","PAyment terms"],"not_rendered":{"charts":0,"images":0,"macros":0,"external_links":0,"defined_names":4,"comments":0,"pivot_tables":0},"unopened":[],"bounds":{"document_bytes":16777216,"sheet_cells":100000,"run_cost":"one","rows_first":2000,"rows_last":500,"rows_between":2000,"halvings":0,"cell_chars":16384,"cell_head_chars":4096},"cells_cut":0,"cells_raw":0,"read":"whole","date_system":"1900"}

{"sheet":"INSTITUTIONAL VENDOR","index":0,"n_rows":60,"n_cols":8,"rows_kept":60,"cut":false,"hidden":false,"merged":[[3,7,3,14],[4,7,4,14],[49,1,49,4],[44,1,44,4],[11,1,12,1],[55,1,55,4],[60,1,60,4],[52,2,52,4],[51,2,51,4],[36,1,36,4],[47,2,48,4],[47,1,48,1],[46,1,46,4],[1,1,1,4],[3,0,3,4],[22,0,22,4],[23,1,24,4],[11,2,12,2]]}
[]
[null,"MDM VENDOR MASTER REGISTRATION TEMPLATE FOR INSTITUTIONAL VENDORS"]
[]
["VENDOR INFORMATION",{"$nulls":6},"When applying for Tender - please fill out ONLY Yellow FIELDS."]
[null,"1. Request information",null,"3. Name/Address",null,null,null,"PLEASE LEAVE THE REMAINING FIELD BLANK"]
[null,"Business Area of LFP","4410 Ukraine","Company Name"]
[null,"Request type ","Create ","Search Term"]
[null,"Vendor Number (mandatory for Update/Block/Unblock)",null,"House number"]
[null,"Vendor Account Group","ZFV Field Office Vendors","Street"]
[null,"Prepayment enabled","No","Zip / Postal code"]
[null,"UNGM Number",null,"City"]
[null,"Purpose of vendor","Corporate Contract","Country","441 Ukraine"]
[null,null,null,"Region"]
[null,"2. Contact"]
[null,"Telephone"]
[null,"Mobile Telephone"]
[null,"Fax"]
[null,"Name of Contact"]
[null,"Contact person's E-mail Address  "]
[null,"E-mail Address (Payment advice)  "]
[null,"WEB Site",null,"TAX ID #"]
[]
["Banking Information"]
[null,"Please provide proof of Bank Account - copy of cancelled check or bank statement or bank letter"]
[]
[null,"4. Bank Account Information",null,"6. Intermediary Bank Information"]
[null,"Account Type","01 - Current/Checking account","Name of Bank"]
[null,"Vendor's Bank Account Number",null,"Swift Code"]
[null,"Account holder's name"]
[null,"IBAN"]
[null,"Bank Account Currency ","UAH Ukrainian Hryvnia"]
[null,"5. Bank Information"]
[null,"Name of Bank"]
[null,"SWIFT Code"]
[null,"Bank Country","441 Ukraine"]
[null,"Account is Add or Replacement","… Select"]
[null,"Fill in only for Implementing Partners - Account Group PRG2"]
[null,"Partner Type","… Select","Date of Assessment (as per HACT procedure)\n(YYYY-MM-DD)"]
[null,"Civil Society Organization Type (if it is CSO)","… Select","Date of Positive Assessment against core values [mandatory for National CSO, Community Based Organisation and Academic Institution]\n(YYYY-MM-DD)"]
[null,"Does Parent Organization exist? [mandatory for Bilateral/Multilateral, UN Agency and International CSO] \n","… Select","Type of Assessment as per HACT Procedure","… Select"]
[null,"INGO Parent List",null,"Risk Rating (in case the Type of Assessment is Others, risk rating cannot be Not Required)","… Select"]
[null,"UN & Bi-Multilateral Org",null,"Permitted Payee Vendor Number (if applicable) "]
[null,"Name of Parent Organisation [mandatory for Bilateral/Multilateral, UN Agency and International CSO]",null,"House Bank"]
[null,null,null,"Payment method","… Select"]
[null,"Fill only for Block/Unblock or Mark/Unmark for Deletion"]
[null,"Action",{"$f":"C7","v":"Create "},"Please provide the reason"]
[]
[null,"Additional Instructions or Remarks "]
[]
[]
[]
[null,"Prepared by (Name/Section) :       "]
[null,"Approved by (Name/Section):  "]
[]
[]
[null,"GSSC Agent Use Only"]
[null,"Agent"]
[null,"Case Number"]
[null,"Payment method ","BCLNTU"]
[null,"Payment Terms","Z120 Within 30 days Due net","Effective start date",{"$f":"TODAY()","v":"2020-09-30"}]

{"sheet":"e.g. different language","index":1,"n_rows":20,"n_cols":4,"rows_kept":20,"cut":false,"hidden":true,"merged":[[0,0,0,3],[17,2,17,3],[18,1,18,3],[19,0,20,0],[19,1,20,3]]}
["Información del Vendor General:  UNICEF Panamá"]
["Last name/Apellidos","DE SOUZA PEIXOTO","Account Type/Tipo de cuenta","CORRIENTE"]
["First name/Primer Nombre","CLARA LUZ","SWIFT Code /Código Swift Bank Key"]
["Organisation's  name/Nombre de la Compañía",null,"Vendor's Bank Account No./No. cuenta bancaria del vendor"]
["Street Address/Dirección / House number/Casa No.","PH SONESTA","Account holder's name/ Nombre de la cuenta","Clara de Souza Peixoto"]
["District/Barrio, Reparto","PAITILLA","Name of Bank/Nombre de la institución bancaria","BANISTMO"]
["Province/Municipio/City/Ciudad","PANAMA","Branch/Sucursal","MARBELLA"]
["State / Departamento","PANAMA","Routing No.","N/A"]
["Country/País","PANAMA","Bank Address/Dirección del banco","Av. Aquilino de la Guardia. Calle 47 Este"]
["P. O.  Box/Apartado postal/ Zip / Postal Code","0843-03092","City /Ciudad","Panama"]
["Office Telephone/Teléfono de oficina",2128114,"State/Departamento","Panama"]
["Home Telephone/Teléfono casa",2150501,"Postal code/Código postal"]
["Fax/No. Fax",null,"Country/País","Panama"]
["Name of Contact/Nombre de Contacto","CLARA LUZ","Currency of the Bank Account/Moneda de la cuenta bancaria","dólares"]
["Contact person's E-mail Address/Persona de contacto/Dirección electrónica  "]
["E-mail Address/Dirección electrónica (Payment advice) (Notificación de pago)  ",null,"Any other details/Cualquier otra información"]
["WEB Site/Sitio WEB"]
["TAX ID #/No. RUC",null,"Please provide proof of Bank Account - copy of cancelled check or bank statement/Favor proveer evidencia de la cuenta bancaria-copia de cheque anulado o estado de cuenta"]
["Prepared by (Name/Section)/Preparado por (Nombre/Cargo) :       ","Clara de Souza Peixoto. Consultora"]
["Approved by (Name/Section)/Aprobado por (Nombre/Cargo):"]

{"sheet":"DD","index":2,"n_rows":805,"n_cols":28,"rows_kept":805,"cut":false,"hidden":false,"merged":[]}
["block",null,"Contry codes",null,"Vendor account group","Business Area",null,"Payment Method",null,null,"Account Type",null,"Partner Type","CSO Type","Type of Assessment done","Risk Rating",null,"Parent Organization exists","Cost Ctr"]
["… Select",null,"… Select","Currency","… Select","… Select",null,"… Select",null,null,"… Select",null,"… Select","… Select","… Select","… Select",null,"… Select","0060A00000 - AFGHANISTAN",null,"0001 Payable immediately Due net",{"$nulls":5},"… Select","… Select"]
["1 POs/LTAs not permitted (refer to SEU/DB)",null,"000 Unknown","… Select","ZCNT Institutional Contractors","0060 Afghanistan",null,"A Incountry Domestic Payment",null,null,"01 - Current/Checking account",null,"CSO - Civil Society Organisations","Intenational NGO","Micro Assessment","5 - Not Required",null,"Y","0060B00000 - KABUL AFGHANISTAN",null,"0002 within 14 days 3 % cash discount",{"$nulls":5},"Single","Male"]
["2 Block request and purchase order",null,"001 Greenland","AED United Arab Emirates Dirham","ZFO UNICEF Field Offices","0090 Albania",null,"B AP - Book Transfer (BKTR)",null,null,"02 - Saving account",null,"GOVT - Government","National NGO","High Risk Assumed","4 - Low",null,"N","0060C00000 - KABUL ZO CENTRAL",null," within 30 days 2 % cash discount",{"$nulls":5},"Mar&Re","Female"]
["3 Block quot.req., order and goods receipt",null,"004 Guam","AFN Afghani","ZFV Field Office Vendors","0120 Algeria",null,"C Payment By Check",{"$nulls":4},"UN - UN Agency","Community Based Organisation","Negative Audit Results","3 - Medium",null,null,"0060D00000 - BAMYAN CENTRAL",null," within 45 days Due net",{"$nulls":5},"Wid."]
["4 Block source determination",null,"006 Afghanistan","ALL Albanian Lek(e)","ZNC National Committees","0240 Argentina",null,"D Elec. Banking DMT/GMT - NY",{"$nulls":4},"Bilateral/Multilateral","Academic Institution","Simplified checklist","2 - Significant",null,null,"0060E00000 - DAIKUNDI CENTRAL",null,"0003 For Invoicing up to 15 of Month",{"$nulls":5},"Dev."]
["11 PQ manuf. Site. PO with main supplier",null,"009 Albania","AMD Armenian Dram","ZUN UN Agencies","0260 Armenia",null,"F AP - DFT Tax Payment",null,null,"Account Update or Additional",null,null,null,"Others","1 - High",null,null,"0060F00000 - GARDEZCENTRAL",null," within 14 days 2 % cash discount",{"$nulls":5},"LegSep"]
["21 Potential supplier, Not GMP evaluated",null,"012 Algeria","ANG Netherlands Antillean Gulder","PRG2 Implementing Partners","0310 Azerbaijan",null,"G HR - Non Urgent Payment (NURG)",null,null,"… Select",null,null,null,"Low Risk Assumed",null,null,null,"0060G00000 - PARWAN CENTRAL",null," within 30 days 1.5 % cash discount",{"$nulls":5},"ComLaw"]
["74 Block on vendor's product for quality",null,"024 Argentina","AOA Angolan Kwanza","ZTVA Travel Agency","0420 Barbados",null,"K AP - Managers Check",null,null,"Update/Replace Existing Account",{"$nulls":7},"0060H00000 - JALALABAD EASTERN",null," within 45 days Due net"]
["97 Blocked for ethical reasons(total block)",null,"025 Aruba","ARS Argentine Peso",null,"0490 Bhutan",null,"L Cash Payment Letter",null,null,"Add Additional Account",{"$nulls":7},"0060I00000 - MEZAR-I-SHARIF NORTH",null," Baseline date on 30 of the month"]
["98 Failed GMP inspection / total block",null,"026 Armenia","AUD Australian Dollar",null,"0510 Bolivia",null,"N AP - Non Urgent Payment (NURG)",{"$nulls":10},"0060J00000 - FAIZABAD NORTHERN",null," For Invoicing up to End  of Month",{"$nulls":5},"… Select"]
["99 Not Recommended by SEU/Total block",null,"027 Australia","AWG Aruban Guilder",null,"0520 Botswana",null,"S AP - EUR ACH (SEPA)",{"$nulls":10},"0060K00000 - FARYABNORTHERN",null," within 14 days 2.125 % cash discount",{"$nulls":5},"000 Unknown"]
[null,null,"030 Austria","AZN New Azerbaijan Manat",null,"0530 Bosnia and Herzegovina",null,"T Bank Trasfer",{"$nulls":10},"0060L00000 - KUNDUZ NORTHERN",null," within 30 days 1.5 % cash discount",{"$nulls":5},"006 Afghanistan"]
[null,null,"031 Azerbaijan","BAM Bosnia-Herzegovina Mark",null,"0540 Brazil",null,"U AP - Urgent Payment (URGP)",{"$nulls":10},"0060M00000 - KANDAHARSOUTHERN",null," within 45 days Due net",{"$nulls":5},"009 Albania"]
[null,null,"042 Barbados","BBD Barbados Dollar",null,"0570 Bulgaria",null,"X PMW XML Outbound Bank Transfer",{"$nulls":10},"0060N00000 - NIMROZ SOUTHERN",null," Baseline date on 15 of next month",{"$nulls":5},"012 Algeria"]
[null,null,"048 Belgium","BDT Bangladesh Taka",null,"0600 Myanmar",{"$nulls":12},"0060O00000 - HERATWESTERN",null,"0004 within 14 days 3 % cash discount",{"$nulls":5},"024 Argentina"]
[null,null,"049 Bhutan","BGN Bulgarian Lev(a)",null,"0610 Burundi",{"$nulls":12},"0060P00000 - BADGHIS WESTERN",null," within 30 days 1 % cash discount",{"$nulls":5},"025 Aruba"]
["… Select",null,"051 Bolivia","BHD Bahrain Dinar","Vendor account group","0630 Belarus",{"$nulls":12},"0060Q00000 - FARAHWESTERN",null," within 60 days Due net",{"$nulls":5},"026 Armenia"]
[1000,null,"052 Botswana","BIF Burundi Franc","… Select","0660 Cambodia",{"$nulls":12},"0060R00000 - GHOR WESTERN",null,"0005 within 10 days 2 % cash discount",{"$nulls":5},"027 Australia"]
[2000,null,"053 Bosnia-Herz.","BMD Bermudan Dollar","Local Destinations (ZLC  - ‘L’),","0690 Republic of Cameroon",{"$nulls":12},"0090A00000 - ALBANIA",null," within 30 days 1 % cash discount",{"$nulls":5},"030 Austria"]
[null,null,"054 Brazil","BND Brunei Dollar","Governments (ZGV – ‘G’),","0750 Central African Republic",{"$nulls":12},"0090B00000 - TIRANA ALBANIA",null," within 50 days Due net",{"$nulls":5},"031 Azerbaijan"]
[null,null,"057 Bulgaria","BOB Boliviano","Inter-governmental Agencies (ZOI – ‘I’),","0780 Sri Lanka",{"$nulls":12},"0120A00000 - ALGERIA",null,"0006 Before End of the month 4 % cash discount",{"$nulls":5},"042 Barbados"]
[null,null,"060 Myanmar","BRL Brazilian Real","National Committees (ZNC) – ‘C’),","0810 Chad",{"$nulls":12},"0120B00000 - ALGIERS ALGERIA",null," Before 15 of the next month ;; 2 % cash discount",{"$nulls":5},"048 Belgium"]
["… Select",null,"061 Burundi","BSD Bahamian Dollar","Non-governmental Organizations (ZNG – ‘N’)","0840 Chile",{"$nulls":12},"0240A00000 - ARGENTINA",null," Before 15 in 2 months Due net",{"$nulls":5},"049 Bhutan"]
["Create ",null,"063 Belarus","BTN Bhutanese Ngultrum","United Nations System (ZUN – ‘U’),","0860 China",{"$nulls":12},"0240B00000 - BUENOS AIRES AR",null,"0007 within 14 days 4 % cash discount",{"$nulls":5},"051 Bolivia"]
["Update",null,"066 Cambodia","BWP Botswana Pula","Field Offices -non SLU/SLN  (ZFO – ‘F’),","0930 Colombia",{"$nulls":12},"0240C00000 - SOUTHERN CONE HUB AR",null," within 30 days 2 % cash discount",{"$nulls":5},"052 Botswana"]
["Block",null,"069 Cameroon","BYN New Belarusian Ruble","Field Offices -SLU/SLN only (ZFU – ‘Z’),","0990 Democratic Republic of Congo","0001 Sales Org. 001",null,"0001 Government",null,null,"000 Allocation number",{"$nulls":6},"0260A00000 - ARMENIA",null," within 60 days Due net",{"$nulls":5},"053 Bosnia and Herzegovina"]
["Unblock",null,"071 Canary Islands","BZD Belize Dollar","Individuals –Others  (ZIN – ‘O’),","1020 Costa Rica","1000 UNICEF",null,"0002 Non-Governmental Org",null,null,"001 Posting date",null,null,"1400110 Contribution receivable - Government",null,null,null,"0260B00000 - YEREVAN ARMENIA",null,"0008 Payable immediately Due net",{"$nulls":5},"054 Brazil"]
["Mark for deletion",null,"072 Canada","CAD Canadian Dollar","Joint Ventures – Worldwide (ZJT – ‘J’),","1030 Croatia","2000 PFP-GR, Geneva",null,"0003 Permanent Mission",null,null,"002 Doc.no., fiscal year",null,null,"1400120 Contribution Receivable (Int-gov Org.)",null,null,null,"0310A00000 - AZERBAIJAN",null," Baseline date on End of the month",{"$nulls":5},"057 Bulgaria"]
["Unmark for deletion",null,"075 Central Afr.Rep","CDF Franc Congolais","Country Office - Guest Houses (ZNH – ‘GH’),","1050 Cuba","2100 PFP-GR, New York",null,"0004 Private Organization",null,null,"003 Document date",null,null,"1400130 Contribution Receivable (NGO)",null,null,null,"0310B00000 - BAKU AZERBAIJAN",null,"0009 For Invoicing up to 15 of Month",{"$nulls":5},"060 Myanmar"]
["… Select",null,"078 Sri Lanka","CHF Swiss Franc","Staff members (ZSM – ‘S’) (non-payroll bank information, block/unblock)","1170 Benin","2200 PFP, SF & ERR",null,"0005 UN Secretariat",null,null,"004 Branch account",null,null,"1400140 Contribution Receivable (Nat. Comms.)",null,null,null,"0420A00000 - BARBADOS - MCP",null," Before 15 of the next month ;; 2.125 % cash disc",{"$nulls":5},"061 Burundi"]
["Yes",null,"081 Chad","CLP Chilean Peso","One time customers (ZOT – ‘PO’),","1200 Denmark",null,null,"0006 Other UN Organizatio",null,null,"005 Loc.currency amount",null,null,"1400150 Contribution Receivable (UN Agencies)",null,null,null,"0420B00000 - BRIDGETOWN BARBADOS",null," Before End of the next month ;; Due net",{"$nulls":5},"063 Belarus"]
["No",null,"084 Chile","CNY Chinese Yuan Renminbi",null,"120X Procurement Services","01 Distribtn Channel 01",null,"0007 Self Employed",null,null,"006 Doc.currency amount",null,null,"1400160 Contribution Receivable (FO-PSFR)",null,null,null,"0420C00000 - PORT OF SPAIN TT",null," For Invoicing up to End  of Month",{"$nulls":5},"066 Cambodia"]
[null,null,"086 China","COP Colombian Peso","Vendor account group","1260 Dominican Republic","10 UNICEF Programmes",null,"0008 Global Corp. Donors",null,null,"007 Bill/exch.due date",null,null,"1400161 Adjustment to Contribution Receivable (FO-PSFR)",null,null,null,"0490A00000 - BHUTAN",null," Before End of the next month ;; 2.125 % cash dis",{"$nulls":5},"069 Cameroon"]
["… Select",null,"093 Colombia","CRC Costa Rica Colon","… Select","1350 Ecuador","11 UNICEF Proc. Service",null,"0009 Exec. Board Member",null,null,"008 Cost center",null,null,"1420110 Contributions In-Kind Receivable (Government)",null,null,null,"0490B00000 - THIMPHU BHUTAN",null," Before 15 in 2 months Due net",{"$nulls":5},"072 Canada"]
["UNICEF Ambassador",null,"099 Congo, Dem. Rep","CUC Cuban Peso","ZFWD Forwarders","1380 El Salvador","20 PFP",null,"Z100 WCARO",null,null,"009 External doc.number",null,null,"1420120 Contributions In-Kind Receivable (Int-gov Org)",null,null,null,"0510A00000 - BOLIVIA",null,"0010 Payable immediately Due net",{"$nulls":5},"075 Central African Republic"]
["Indiv Contractors",null,"102 Costa Rica","CUP Cuban Peso","ZVEN Vendors -SD","1390 Equatorial Guinea",null,null,"Z150 ESARO",null,null,"010 Purchase order no.",null,null,"1420130 Contributions In-Kind Receivable (NGO)",null,null,null,"0510B00000 - LA PAZ BOLIVIA",null," Baseline date on 10 of next month",{"$nulls":5},"078 Sri Lanka"]
["Inst Contractors",null,"103 Croatia","CUP1 Cuban Peso (non convertible)",null,"1410 Ethiopia","01 Product Division 01",null,"Z200 EAPRO",null,null,"011 Plant number",null,null,"1420140 Contributions In-Kind Receivable (Nat Comms)",null,null,null,"0510C00000 - COCHABAMBA",null,"0011 within 10 days 3 % cash discount",{"$nulls":5},"081 Chad"]
["External Auditors",null,"105 Cuba","CVE Cape Verde Escudo",null,"1420 Eritrea","10 UNICEF stock items",null,"Z250 ROSA",null,null,"012 Vendor number",null,null,"1420150 Contributions In-Kind Receivable (UN Agencies)",null,null,null,"0510D00000 - SUCRE BOLIVIA",null,"0012 Payable immediately Due net",{"$nulls":5},"084 Chile"]
["UNICEF Exec Board",null,"111 Cyprus","CZK Czech Koruna",null,"1430 Fiji (Pacific Islands)","11 UNICEF non-stk items",null,"Z300 MENA",null,null,"014 Purchase order",null,null,"1420160 Contributions In-Kind Receivable (PSFR)",null,null,null,"0520A00000 - BOTSWANA",null," Baseline date on 11 of next month",{"$nulls":5},"086 China"]
["Gov. Counterparts",null,"113 Czech Republic","DJF Djibouti Franc",null,"1530 Gabon","12 Unicef PS ResRelBill",null,"Z350 TACRO",null,null,"015 Personnel number",null,null,"1420260 Contributions In-Kind Receivable (PSFR)",null,null,null,"0520B00000 - GABORONE BOTSWANA",null,"0014 within 10 days 5 % cash discount",{"$nulls":5},"093 Colombia"]
["Internship",null,"117 Benin","DKK Danish Krone",null,"1560 Gambia","21 Cards & Products",null,"Z400 CEE/NIS",null,null,"016 Settlement period",null,null,"1500110 Advances (Salary)",null,null,null,"0530A00000 - BOSNIA HERZEGOVINA",null,"0015 within 10 days 3 % cash discount",{"$nulls":5},"099 Congo, Dem. Rep."]
["Partners",null,"120 Denmark","DOP Dominican Peso",null,"1600 Georgia","22 Promotion",null,"Z500 North America  (ODA)",null,null,"017 Settl.per., pers.no.",null,null,"1500120 Special Authorized Staff Advances",null,null,null,"0530B00000 - SARAJEVO BA",null," within 15 days 2 % cash discount",{"$nulls":5},"102 Costa Rica"]
["Other UN Agency Staff",null,"126 Dominican Rep.","DZD Algerian Dinar",null,"1620 Ghana","23 Fund Raising",null,"Z550 Pacific        (ODA)",null,null,"018 Asset number",null,null,"1500130 Staff Rental Advance",null,null,null,"0530C00000 - BANJA LUKA",null," within 20 days Due net",{"$nulls":5},"103 Croatia"]
["UN Volunteers",null,"135 Ecuador","EGP Egyptian Pound",null,"1680 Guatemala","24 Fund Raising ERR",null,"Z600 Western Europe (ODA)",null,null,"021 Segment text",null,null,"1500190 Other staff receivables",null,null,null,"0540A00000 - BRAZIL",null,"0016 within 14 days 3 % cash discount",{"$nulls":5},"105 Cuba"]
["Volunteers",null,"138 El Salvador","ERN Eritrean Nakfa",null,"1770 Guinea","90 UNICEF Products",null,"Z650 Nordic Region  (ODA)",null,null,"022 One-time name / city",null,null,"1510110 Receivables (Product Sales)",null,null,null,"0540B00000 - BRASILIA BRAZIL",null," within 20 days 2 % cash discount",{"$nulls":5},"111 Cyprus"]
[null,null,"139 Equatorial Guin","ETB Ethiopian Birr",null,"1800 Guyana",null,null,"Z998 Multinational",null,null,"023 One-time city / name",null,null,"1510130 Prod.sales - Natcom & FO's",null,null,null,"0540C00000 - BELEM",null," within 30 days Due net",{"$nulls":5},"113 Czech Republic"]
[null,null,"140 Estonia","EUR Euro",null,"1830 Haiti","Payment terms",null,"Z999 UN System",null,null,"024 Document header text",null,null,"1510140 Licensing Receivables - Natcoms & Others",null,null,null,"0540D00000 - FORTALEZA",null,"0017 Payable in 3 partial amounts",{"$nulls":5},"117 Benin"]
["… Select",null,"141 Ethiopia","FJD Fiji Dollar",null,"1860 Honduras","… Select",null,"ZHQ Staff - Headquarters",null,null,"025 CPU date",null,null,"1510160 Licensing Receivables - FO PSFR",null,null,null,"0540E00000 - MANAUS",null," 1 installment: 30.000 % with payment term 0001",{"$nulls":5},"120 Denmark"]
["Corporate Contract",null,"142 Eritrea","GBP Pound Sterling",null,"1950 Global Shared Service Center","0001 Payable immediately Due net",null,"ZLC  Staff - Local",null,null,"026 Pmnt per.bslne date",null,null,"1520610 Receivables (Procurement Services)",null,null,null,"0540F00000 - RECIFE",null," 2 installment: 40.000 % with payment term 0001",{"$nulls":5},"126 Dominican Republic"]
["Long term agreement",null,"143 Fiji","GEL Georgian Lari",null,"2040 India","Z120 Within 30 days Due net",{"$nulls":4},"027 Value date",null,null,"1520810 Receivables (UN Agencies)",null,null,null,"0540G00000 - SALVADOR",null," 3 installment: 30.000 % with payment term 0001",{"$nulls":5},"135 Ecuador"]
["Low value procurement",null,"144 Finland","GHS Ghana Cedi (new)",null,"2070 Indonesia","Z000 Up-front payment",{"$nulls":4},"028 Asset number",null,null,"1520910 Receivables (Miscellaneous)",null,null,null,"0540H00000 - SAO LUIS",null,"Y000 Payment due in 30 days",{"$nulls":5},"138 El Salvador"]
["Signing an SSFA / PCA",null,"147 France","GIP Gibraltar Pound",null,"2100 Iran","Z002 (4) equal quarterly payments",null,"PRIV",null,null,"029 Pstng month, vendor",null,null,"1550110 Prepaid Travel",null,null,null,"0540I00000 - SAO PAULO",null,"Y001 within 29 days 2 % cash discount",{"$nulls":5},"139 Equatorial Guinea"]
["Internet / Telephone Service Provider",null,"153 Gabon","GMD Gambian Dalasi",null,"2130 Iraq","Z003 Reimbursement of expenses",null,"PUBL",null,null,"031 Customer number",null,null,"1550120 Prepaid Education grant",null,null,null,"0540J00000 - RIO DE JANEIRO BR",null," within 30 days Due net",{"$nulls":5},"140 Estonia"]
["Bidding",null,"156 Gambia","GNF Guinean Franc",null,"2220 Office of Research, Italy","Z004 (2) six-months payment",{"$nulls":4},"032 Pstng yr,month,curr.",null,null,"2200110 Reconciliation (Procurement Services)",null,null,null,"0570A00000 - BULGARIA",null,"Y002 within 30 days Due net",{"$nulls":5},"141 Ethiopia"]
["Other (please provide detailed explanation under Additional Instructions or Remarks)",null,"160 Georgia","GTQ Guatemalan Quetzal",null,"2250 Cote D'Ivoire","Z005 ECHO: (2) instalments",{"$nulls":4},"033 Cost center",null,null,"2200120 Reconciliation (Japanese Special Account)",null,null,null,"0570B00000 - SOFIA BULGARIA",null,"Y005 within 12 days 2 % cash discount",{"$nulls":5},"142 Eritrea"]
[null,null,"162 Ghana","GYD Guyanese Dollar",null,"2280 Jamaica","Z006 ECHO (80% advance)",{"$nulls":4},"034 Month, cost center",null,null,"2200190 Reconciliation (Other Trust Accounts)",null,null,null,"0600A00000 - MYANMAR",null," within 30 days Due net",{"$nulls":5},"143 Fiji"]
[null,null,"163 Gibraltar","HKD Hong Kong Dollar",null,"2340 Jordan","Z010 Automatic payment block;pay immediately - NY",{"$nulls":4},"036 Order",null,null,"2310110 SAP HR Iwop pension/insurance pre-payments",null,null,null,"0600B00000 - YANGON MYANMAR",null,"Y010 Payment due in 10 days(Without discount)",{"$nulls":5},"144 Finland"]
[null,null,"165 Greece","HNL Honduran Lempira",null,"234R MENA, Jordan","Z020 Within 30 days Due net - NY",{"$nulls":4},"037 Currency key",null,null,"2520110 Unapplied Contributions Receipts",null,null,null,"0600C00000 - KALAY",null,"Y020 Payment due in 20 days(Without discount)",{"$nulls":5},"147 France"]
[null,null,"168 Guatemala","HRK Croatian Kuna",null,"2390 Kazakhstan","Z110 Automatic payment block;pay immediately - CPH",{"$nulls":4},"039 Project number",null,null,"2520112 PSFR Unapp ORR Cont Receipts",null,null,null,"0600D00000 - KENGTUNG",null,"Y100 Payment due in 30 days",{"$nulls":5},"153 Gabon"]
[null,null,"177 Guinea","HTG Haitian Gourde",null,"2400 Kenya","Z121 3% 15 days, Within 30 days Due net",{"$nulls":4},"055 Fiscal year, month",null,null,"2520120 Unapplied Contributions-in-Kind",null,null,null,"0600E00000 - MANDALAY",null,"Y101 within 29 days 2 % cash discount",{"$nulls":5},"156 Gambia"]
[null,null,"180 Guyana","HUF Hungarian Forint",null,"240B Innovation Center","Z122 Within 10 days 3 % cash discount",{"$nulls":4},"060 Test0",null,null,"2520130 Cash Advances from Donors",null,null,null,"0600F00000 - MAWLAMYINE",null," within 30 days Due net",{"$nulls":5},"160 Georgia"]
[null,null,"183 Haiti","IDR Indonesian Rupiah",null,"240R ESARO, Kenya","Z123 Within 15 days 2.5% cash discount",{"$nulls":4},"061 Test1",null,null,"2530110 Funds to be Returned",null,null,null,"0600G00000 - MYEIK",null,"Y104 within 7 days 0.5 % cash discount",{"$nulls":5},"162 Ghana"]
[null,null,"186 Honduras","ILS Israeli Shekel",null,"2450 Republic of Kyrgyzstan","Z124 Within 20 days 2% cash discount",{"$nulls":4},"065 Test5",{"$nulls":6},"0600H00000 - MYITKYINA",null," within 30 days Due net",{"$nulls":5},"165 Greece"]
[null,null,"195 Hungary","INR Indian Rupee",null,"2460 Lao People's Dem Rep.","Z125 10 days 3%, 15 days 2.5%, 30 days net",{"$nulls":4},"101 Cash discnt clearing",{"$nulls":6},"0600I00000 - TAUNGGYI",null,"Y105 within 7 days 0.7 % cash discount",{"$nulls":5},"168 Guatemala"]
[null,null,"198 Iceland","IQD Iraqui Dinar",null,"2490 Lebanon","Z126 15 days 2.5%, 20 days 2%, 30 days net",{"$nulls":4},"Z01 WBS Element",null,null,"0001 Four-level dunning notice, every two weeks",null,null,null,"0600J00000 - MAUNGDAW",null," within 30 days Due net",{"$nulls":5},"177 Guinea"]
[null,null,"204 India","IRR Iranian Rial",null,"2520 Lesotho","Z127 10 days 3%, 20 days 2%, 30 days net",{"$nulls":4},"Z02 Reference Number",null,null,"0003 Payment reminder, every two weeks",null,null,null,"0600K00000 - LASHIO",null,"Y106 within 10 days 1 % cash discount",{"$nulls":5},"180 Guyana"]
[null,null,"207 Indonesia","ISK Iceland Krona",null,"2550 Liberia","Z910 30 days net (direct disbursement by partner)",{"$nulls":4},"Z03 Material Number",null,null,"Z001 Contrib/Sp. Accts. (BAs: GR/SF/ERR/SA), Cust Grp G/I/N/O/U",null,null,null,"0600L00000 - HAKHA MYANMAR",null," within 30 days Due net",{"$nulls":5},"183 Haiti"]
[null,null,"210 Iran","JMD Jamaican Dollar",null,"2580 Libya","Z911 Donations - Not for disbursement",{"$nulls":4},"Z05 Fund",null,null,"Z002 Private sector (BAs GR/SF/ER) Cust. groups C/F",null,null,null,"0600M00000 - DAWEI MYANMAR",null,"Y107 within 10 days 1.5 % cash discount",{"$nulls":5},"186 Honduras"]
[null,null,"213 Iraq","JOD Jordanian Dinar",null,"2660 Macedonia","Z913 Prepaid",{"$nulls":4},"Z06 Doc.no. L/Item,F/yr",{"$nulls":6},"0610A00000 - BURUNDI",null," within 30 days Due net",{"$nulls":5},"195 Hungary"]
[null,null,"216 Ireland","JPY Japanese Yen",null,"2670 Madagascar","Z914 For Pre-payments",{"$nulls":4},"Z31 Funds recd/Customer",null,null,"A1 Chief Field Accounts",null,null,null,"0610B00000 - BUJUMBURA BURUNDI",null,"Y108 within 10 days 2 % cash discount",{"$nulls":5},"198 Iceland"]
[null,null,"219 Israel","KES Kenyan Shilling",null,"2690 Malawi","Z915 30 days net (direct disbursement by KfW)",{"$nulls":7},"A2 Accounts Officer",null,null,null,"0610C00000 - GITEGA",null," within 30 days Due net",{"$nulls":5},"204 India"]
[null,null,"222 Italy","KGS Kyrgyzstan Som",null,"2700 Malaysia","0002 within 14 days 3 % cash discount",{"$nulls":7},"A3 Accounts Officer",null,null,null,"0630A00000 - BELARUS",null,"Y109 within 10 days 3 % cash discount",{"$nulls":5},"207 Indonesia"]
[null,null,"225 Cote d'Ivoire","KHR Cambodian Riel",null,"2740 Maldives"," within 30 days 2 % cash discount",{"$nulls":7},"C0 Chief Contributions Unit",null,null,null,"0630B00000 - MINSK BELARUS",null," within 30 days Due net",{"$nulls":5},"210 Iran"]
[null,null,"228 Jamaica","KMF Comoros Franc",null,"2760 Mali"," within 45 days Due net",{"$nulls":7},"C1 Contributions Team 1",null,null,null,"0660A00000 - CAMBODIA",null,"Y110 within 15 days 0.5 % cash discount",{"$nulls":5},"213 Iraq"]
[null,null,"231 Japan","KPW01 KPW",null,"2820 Mauritania","0003 For incoming invoices until 15 of the month",{"$nulls":7},"C2 Contributions Team 2",null,null,null,"0660B00000 - PHNOM PENH CAMBODIA",null," within 30 days Due net",{"$nulls":5},"216 Ireland"]
[null,null,"234 Jordan","KRW South Korean Won",null,"2850 Mexico"," within 14 days 2 % cash discount",{"$nulls":7},"C3 Contributions Team 3",null,null,null,"0660C00000 - BATTAMBANG",null,"Y111 within 15 days 0.55 % cash discount",{"$nulls":5},"219 Israel"]
[null,null,"239 Kazakhstan","KWD Kuwaiti Dinar",null,"2880 Mongolia"," within 30 days 1.5 % cash discount",{"$nulls":7},"D1 Comptroller",null,null,null,"0660D00000 - PREAH SIHANOUK",null," within 30 days Due net",{"$nulls":5},"222 Italy"]
[null,null,"240 Kenya","KYD Cayman Dollar",null,"2910 Morocco"," within 45 days Due net",{"$nulls":7},"D2 DFAM/Deputy Director, Accts",null,null,null,"0660E00000 - SIEM REAP",null,"Y112 within 15 days 0.6 % cash discount",{"$nulls":5},"225 Cote d'Ivoire"]
[null,null,"243 Kuwait","KZT Kazakhstani Tenge",null,"2970 Nepal"," Baseline date on 30 of the month",{"$nulls":7},"D3 DFAM/Deputy Director,Budget",null,null,null,"0660F00000 - KAMPONG CHAM",null," within 30 days Due net",{"$nulls":5},"228 Jamaica"]
[null,null,"245 Kyrgyzstan","LAK Laotian Kip",null,"297R ROSA, Nepal"," For incoming invoices until End  of the month",{"$nulls":7},"D4 DFAM/Deputy Director,Finance",null,null,null,"0660G00000 - PHNOM PENH ZONE",null,"Y113 within 15 days 1 % cash discount",{"$nulls":5},"231 Japan"]
[null,null,"246 Lao,Peo.Dem.Rep","LBP Lebanese Pound",null,"3120 Nicaragua"," within 14 days 2.125 % cash discount",{"$nulls":7},"E1 Vacant",null,null,null,"0690A00000 - REPUBLIC OF CAMEROON",null," within 30 days Due net",{"$nulls":5},"234 Jordan"]
[null,null,"247 Latvia","LKR Sri Lankan Rupee",null,"3180 Niger"," within 30 days 1.5 % cash discount",{"$nulls":7},"E2 K. Hulshof",null,null,null,"0690B00000 - YAOUNDE CAMEROON",null,"Y114 within 15 days 2 % cash discount",{"$nulls":5},"239 Kazakhstan"]
[null,null,"249 Lebanon","LRD Liberian Dollar",null,"3210 Nigeria"," within 45 days Due net",{"$nulls":7},"F0 Funding Monitoring Officer",null,null,null,"0690C00000 - DOUALA",null," within 30 days Due net",{"$nulls":5},"240 Kenya"]
[null,null,"252 Lesotho","LSL Lesotho Loti",null,"3300 Pakistan"," Baseline date on 15 of next month",{"$nulls":7},"F1 Funding Cluster No. 1",null,null,null,"0690D00000 - NGAOUNDERE",null,"Z000 Up-front payment",{"$nulls":5},"243 Kuwait"]
[null,null,"255 Liberia","LTL Lithuanian Lita",null,"3330 Panama","0004 within 14 days 3 % cash discount",{"$nulls":7},"F2 Funding Cluster No. 2",null,null,null,"0690E00000 - BERTOUA",null,"Z001 PFP: Baseline equal to NC's fiscal year-end",{"$nulls":5},"245 Kyrgyzstan"]
[null,null,"258 Libya","LVL Lativian Lat",null,"333R LACRO, Panama"," within 30 days 1 % cash discount",{"$nulls":7},"F3 Funding Cluster No. 3",null,null,null,"0690F00000 - GAROUA CAMEROON",null,"Z002 (4) equal quarterly payments",{"$nulls":5},"246 Lao, People's Dem. Rep."]
[null,null,"260 Lithuania","LYD Libyan Dinar",null,"3360 Paraguay"," within 60 days Due net",{"$nulls":7},"F4 Funding Cluster No. 4",null,null,null,"0690G00000 - MAROUA CAMEROON",null,"Z003 Reimbursement of expenses",{"$nulls":5},"247 Latvia"]
[null,null,"264 Luxembourg","MAD Moroccan Dirham",null,"3380 Congo","0005 within 10 days 2 % cash discount",{"$nulls":7},"F5 Funding Cluster No. 5",null,null,null,"0750A00000 - CENTRAL AFRICAN REP.",null,"Z004 (2) six-months payment",{"$nulls":5},"249 Lebanon"]
[null,null,"266 Macedonia, TFYR","MDL Moldavan Leu",null,"3390 Peru"," within 30 days 1 % cash discount",{"$nulls":7},"F6 Funding Cluster No. 6",null,null,null,"0750B00000 - BANGUI CAR",null,"Z005 ECHO: (2) instalments",{"$nulls":5},"252 Lesotho"]
[null,null,"267 Madagascar","MGA Malagasy Ariary",null,"3420 Philippines"," within 50 days Due net",{"$nulls":7},"F7 Deputy Director, PFO",null,null,null,"0750C00000 - BOSSANGOA CAR",null,"Z006 ECHO (80% advance)",{"$nulls":5},"255 Liberia"]
[null,null,"269 Malawi","MKD Macedonian Denar",null,"3660 Romania","0006 Before End of the month 4 % cash discount",{"$nulls":7},"F8 Director, PFO",null,null,null,"0750D00000 - KANGA BANDORO CAR",null,"Z007 Payment due in (3) months",{"$nulls":5},"258 Libyan Arab Jamahiriya"]
[null,null,"270 Malaysia","MMK Myanmar Kyat",null,"3700 Russia"," Before 15 of the next month ;; 2 % cash discount",{"$nulls":7},"S1 Chief Operations, SD",null,null,null,"0750E00000 - BAMBARI CAR",null,"Z008 Payment due in (9) months",{"$nulls":5},"260 Lithuania"]
[null,null,"274 Maldives,Rep of","MNT Mongolian Tugrik",null,"3750 Rwanda"," Before 15 in 2 months Due net",{"$nulls":7},"S2 Finance Officer, SD",null,null,null,"0750F00000 - BOUAR CAR",null,"Z009 Payment due in (12) months",{"$nulls":5},"264 Luxembourg"]
[null,null,"276 Mali","MOP Macao Pataca",null,"3780 Saudi Arabia","0007 within 14 days 4 % cash discount",{"$nulls":7},"S3 Finance Officer, SD",null,null,null,"0750G00000 - NDELE CAR",null,"Z010 Automatic payment block;pay immediately - NY",{"$nulls":5},"266 TFYR of Macedonia"]
[null,null,"279 Malta","MRO Mauritanian Ouguiya",null,"3810 Senegal"," within 30 days 2 % cash discount",{"$nulls":7},"S4 Finance Officer, SD",null,null,null,"0750H00000 - ZEMIO CAR",null,"Z020 Within 30 days Due net - NY",{"$nulls":5},"267 Madagascar"]
[null,null,"282 Mauritania","MUR Mauritius Rupee",null,"381R WCARO, Senegal"," within 60 days Due net",{"$nulls":11},"0780A00000 - SRI LANKA",null,"Z110 Automatic payment block;pay immediately - CPH",{"$nulls":5},"269 Malawi"]
[null,null,"283 Mauritius","MVR Maldive Rufiyaa",null,"3900 Sierra Leone","0008 Payable immediately Due net",{"$nulls":7},"… Select",null,null,null,"0780B00000 - COLOMBO SRI LANKA",null,"Z120 Within 30 days Due net",{"$nulls":5},"270 Malaysia"]
[null,null,"285 Mexico","MWK Malawi Kwacha",null,"3920 Somalia"," Baseline date on End of the month",{"$nulls":7},"Full Time",null,null,null,"0780C00000 - BATTILCALOA",null,"Z121 3% 15 days, Within 30 days Due net",{"$nulls":5},"274 Maldives"]
[null,null,"288 Mongolia","MXN Mexican Peso",null,"3930 South Africa","0009 For incoming invoices until 15 of the month",{"$nulls":7},"Part Time",null,null,null,"0780D00000 - JAFFNA",null,"Z122 Within 10 days 3 % cash discount",{"$nulls":5},"276 Mali"]
[null,null,"291 Morocco","MYR Malaysian Ringgit",null,"4020 Sudan"," Before 15 of the next month ;; 2.125 % cash disc",{"$nulls":11},"0780E00000 - VAVUNIYA",null,"Z123 Within 15 days 2.5% cash discount",{"$nulls":5},"279 Malta"]
[null,null,"297 Nepal","MZN Mozambique Metical (new)",null,"4030 Swaziland"," Before End of the next month ;; Due net",{"$nulls":11},"0780F00000 - KILINOCHCHI",null,"Z124 Within 20 days 2% cash discount",{"$nulls":5},"282 Mauritania"]
[null,null,"300 Netherlands","NAD Namibian dollar",null,"4040 South Sudan"," For incoming invoices until End  of the month",{"$nulls":11},"0810A00000 - CHAD",null,"Z125 10 days 3%, 15 days 2.5%, 30 days net",{"$nulls":5},"283 Mauritius"]
[null,null,"309 New Zealand","NGN Nigerian Naira",null,"4140 Syria"," Before End of the next month ;; 2.125 % cash dis",{"$nulls":11},"0810B00000 - N'DJAMENA CHAD",null,"Z126 15 days 2.5%, 20 days 2%, 30 days net",{"$nulls":5},"285 Mexico"]
[null,null,"312 Nicaragua","NIO Nicaraguan Cordoba Oro",null,"4150 Tajikistan"," Before 15 in 2 months Due net",{"$nulls":11},"0810C00000 - ABECHE",null,"Z127 10 days 3%, 20 days 2%, 30 days net",{"$nulls":5},"288 Mongolia"]
[null,null,"318 Niger","NOK Norwegian Krone",null,"4200 Thailand","0010 Payable immediately Due net",{"$nulls":11},"0810D00000 - MOUNDOU",null,"Z901 Payable immediately Due net",{"$nulls":5},"291 Morocco"]
[null,null,"321 Nigeria","NPR Nepalese Rupee",null,"420R EAPRO, Thailand"," Baseline date on 10 of next month",{"$nulls":11},"0810E00000 - MONGO",null,"Z902 Upon receipt of invoice",{"$nulls":5},"297 Nepal"]
[null,null,"324 Norway","NZD New Zealand Dollar",null,"4230 Togo","0011 within 10 days 3 % cash discount",{"$nulls":7},"… Select",null,null,null,"0810F00000 - MAO",null,"Z903 Due 10 days after receipt of invoice",{"$nulls":5},"300 Netherlands"]
[null,null,"330 Pakistan","OMR Omani Rial",null,"4320 Tunisia","0012 Payable immediately Due net",{"$nulls":7},"OnPrem",null,null,null,"0810G00000 - SAHR CHAD",null,"Z904 Due 30 days after receipt of invoice",{"$nulls":5},"309 New Zealand"]
[null,null,"333 Panama","PAB Panamanian Balboa",null,"4350 Turkey"," Baseline date on 11 of next month",{"$nulls":7},"OffPrem",null,null,null,"0840A00000 - CHILE",null,"Z909 Reduce FO budget on billing",{"$nulls":5},"312 Nicaragua"]
[null,null,"336 Paraguay","PEN Peruvian Nuevo Sol",null,"4360 Rep. of Turkmenistan","0014 within 10 days 5 % cash discount",{"$nulls":11},"0840B00000 - SANTIAGO CHILE",{"$nulls":7},"318 Niger"]
[null,null,"338 Congo","PGK Papua New Guinea Kina",null,"4380 Uganda","0015 within 10 days 3 % cash discount",{"$nulls":11},"0860A00000 - CHINA",{"$nulls":7},"321 Nigeria"]
[null,null,"339 Peru","PHP Philippine Peso",null,"4410 Ukraine"," within 15 days 2 % cash discount",{"$nulls":11},"0860B00000 - BEIJING CHINA",{"$nulls":7},"324 Norway"]
[null,null,"342 Philippines","PKR Pakistani Rupee",null,"4500 Egypt"," within 20 days Due net",{"$nulls":11},"0860C00000 - SHANGHAI",{"$nulls":7},"330 Pakistan"]
[null,null,"345 Poland","PLN Poland Zloty",null,"4550 United Rep. of Tanzania","0016 within 14 days 3 % cash discount",{"$nulls":11},"0930A00000 - COLOMBIA",{"$nulls":7},"333 Panama"]
[null,null,"348 Portugal","PYG Paraguayan Guarani",null,"456B Executive Director's Office"," within 20 days 2 % cash discount",{"$nulls":11},"0930B00000 - BOGOTA COLOMBIA",{"$nulls":7},"336 Paraguay"]
[null,null,"366 Romania","QAR Qatari Rial",null,"456C Data, Research and Policy"," within 30 days Due net",{"$nulls":11},"0930C00000 - PASTO",{"$nulls":7},"338 Congo"]
[null,null,"370 Russian Fed.","RON New Romanian Leu",null,"456D Programme Division","0017 Payable in 3 partial amounts",{"$nulls":11},"0930D00000 - QUIBDO",{"$nulls":7},"339 Peru"]
[null,null,"375 Rwanda","RSD Serbia Dinar",null,"456E Research Division"," 1 installment: 30.000 % with payment term 0001",{"$nulls":11},"0930E00000 - SINSELEJO",{"$nulls":7},"342 Philippines"]
[null,null,"378 Saudi Arabia","RUB Russian Rouble",null,"456F Office of Emergency Prog."," 2 installment: 40.000 % with payment term 0001",{"$nulls":11},"0930F00000 - CALI",{"$nulls":7},"345 Poland"]
[null,null,"381 Senegal","RWF Rwanda Franc",null,"456G Division of Communication"," 3 installment: 30.000 % with payment term 0001",{"$nulls":11},"0990A00000 - DR CONGO",{"$nulls":7},"348 Portugal"]
[null,null,"390 Sierra Leone","SAR Saudi Riyal",null,"456H Gov. & Multilateral  Affairs","Y000 Payment due in 30 days",{"$nulls":11},"0990B00000 - KINSHASA DRC",{"$nulls":7},"366 Romania"]
[null,null,"391 Singapore","SBD Solomon Islands Dollar",null,"456I Public Partnerships Division","Y001 within 29 days 2 % cash discount",{"$nulls":11},"0990B10000 - PROVINCE KINSHASA",{"$nulls":7},"370 Russian Federation"]
[null,null,"392 Somalia","SCR Seychelles Rupee",null,"456J Div. of Finance & Admin Mgmt"," within 30 days Due net",{"$nulls":11},"0990B20000 - OUEST KINSHASA",{"$nulls":7},"375 Rwanda"]
[null,null,"393 South Africa","SDG Sudanese Pound (new)",null,"456K Division of Human Resources","Y002 within 30 days Due net",{"$nulls":11},"0990C00000 - BANDUNDU",{"$nulls":7},"378 Saudi Arabia"]
[null,null,"394 Slovenia","SEK Swedish Krona",null,"456L InfoTech Solutions & Services","Y003 For incoming invoices until 15 of the month",{"$nulls":11},"0990D00000 - SUD KIVU BUKAVU",{"$nulls":7},"381 Senegal"]
[null,null,"395 Slovak Republic","SGD Singapore Dollar",null,"456N Int. Audit & Invest (OIAI)"," within 10 days 3 % cash discount",{"$nulls":11},"0990E00000 - ITURI BUNIA",{"$nulls":7},"390 Sierra Leone"]
[null,null,"399 Spain","SHP St.Helena Pound",null,"456O Evaluation Office"," within 29 days 1.5 % cash discount",{"$nulls":11},"0990F00000 - DUNGU",{"$nulls":7},"391 Singapore"]
[null,null,"402 Sudan","SLL Sierra Leone",null,"456P Field Sup & Coordination Off"," within 30 days Due net",{"$nulls":11},"0990G00000 - NORD KIVU GOMA",{"$nulls":7},"392 Somalia"]
[null,null,"403 Swaziland","SOS Somalian Shilling",null,"456Q GSSC Project","Y004 within 10 days 1 % cash discount",{"$nulls":11},"0990G10000 - EAST GOMA",{"$nulls":7},"393 South Africa"]
[null,null,"404 South Sudan","SRD Surinamese Dollar",null,"456R Field Results Group Office"," within 30 days Due net",{"$nulls":11},"0990H00000 - TANGANYIKA KALEMIE",{"$nulls":7},"394 Slovenia"]
[null,null,"411 Sweden","SSP South Sudanese Pound",null,"456S OSEB","Y005 within 12 days 2 % cash discount",{"$nulls":11},"0990I00000 - KASAI OCCIDENTAL KA",{"$nulls":7},"395 Slovakia"]
[null,null,"414 Syria, Arab Rep","STD Sao Tome / Principe Dobra",null,"4590 Burkina Faso"," within 30 days Due net",{"$nulls":11},"0990J00000 - PROVINCE ORIENTALE",{"$nulls":7},"399 Spain"]
[null,null,"415 Tajikistan","SVC El Salvador Colon",null,"4620 Uruguay","Y010 Payment due in 10 days(Without discount)",{"$nulls":11},"0990K00000 - KATANGA LUBUMBASHI",{"$nulls":7},"402 Sudan"]
[null,null,"420 Thailand","SYP Syrian Pound",null,"4630 Rep of Uzbekistan","Y020 Payment due in 20 days(Without discount)",{"$nulls":11},"0990K10000 - SUD LUBUMBASHI",{"$nulls":7},"403 Swaziland"]
[null,null,"423 Togo","SZL Swaziland Lilangeni",null,"4710 Venezuela","Y100 Payment due in 30 days",{"$nulls":11},"0990L00000 - BAS CONGO MATADI",{"$nulls":7},"404 South Sudan"]
[null,null,"429 Trinidad,Tobago","THB Thailand Baht",null,"4920 Yemen","Y101 within 29 days 2 % cash discount",{"$nulls":11},"0990M00000 - EQUATEUR MBANDAKA",{"$nulls":7},"411 Sweden"]
[null,null,"432 Tunisia","TJS Tajik Somoni",null,"4980 Zambia"," within 30 days Due net",{"$nulls":11},"0990N00000 - KASAI ORIENTAL MBUJ",{"$nulls":7},"414 Syrian Arab Republic"]
[null,null,"435 Turkey","TMT Turkmenistan Manat",null,"5070 Bangladesh","Y103 For incoming invoices until 15 of the month",{"$nulls":11},"0990O00000 - MANIEMA",{"$nulls":7},"415 Tajikistan"]
[null,null,"436 Turkmenistan","TND Tunisian Dinar",null,"5150 DP Republic of Korea"," within 10 days 3 % cash discount",{"$nulls":11},"0990P00000 - LIBENGE DRC",{"$nulls":7},"420 Thailand"]
[null,null,"438 Uganda","TOP Tongan Pa'anga",null,"5200 Vietnam"," within 29 days 1.5 % cash discount",{"$nulls":11},"0990Q00000 - BENI DRC",{"$nulls":7},"423 Togo"]
[null,null,"441 Ukraine","TRY New Turkish Lira",null,"5640 Moldova"," within 30 days Due net",{"$nulls":11},"1020A00000 - COSTA RICA",{"$nulls":7},"429 Trinidad and Tobago"]
[null,null,"449 Utd.Arab.Emir.","TTD Trinidad and Tobago Dollar",null,"5750 Switzerland","Y104 within 7 days 0.5 % cash discount",{"$nulls":11},"1020B00000 - SAN JOSE COSTA RICA",{"$nulls":7},"432 Tunisia"]
[null,null,"450 Egypt","TZS Tanzanian Shilling",null,"575R CEE/CIS"," within 30 days Due net",{"$nulls":11},"1030A00000 - CROATIA",{"$nulls":7},"435 Turkey"]
[null,null,"453 United Kingdom","UAH Ukrainian Hryvnia",null,"6110 Belize","Y105 within 7 days 0.7 % cash discount",{"$nulls":11},"1030B00000 - ZAGREB CROATIA",{"$nulls":7},"436 Turkmenistan"]
[null,null,"455 Tanzania,Uni.Re","UGX Ugandan Shilling",null,"6260 Zimbabwe"," within 30 days Due net",{"$nulls":11},"1050A00000 - CUBA",{"$nulls":7},"438 Uganda"]
[null,null,"456 USA","USD US Dollar",null,"6350 Oman","Y106 within 10 days 1 % cash discount",{"$nulls":11},"1050B00000 - HAVANA CUBA",{"$nulls":7},"441 Ukraine"]
[null,null,"459 Burkina-Faso","UYU Uruguayan Peso",null,"6490 Papua New Guinea"," within 30 days Due net",{"$nulls":11},"1170A00000 - BENIN",{"$nulls":7},"449 United Arab Emirates"]
[null,null,"462 Uruguay","UZS Uzbekistan Som",null,"6620 Comoros","Y107 within 10 days 1.5 % cash discount",{"$nulls":11},"1170B00000 - COTONOU BENIN",{"$nulls":7},"450 Egypt"]
[null,null,"463 Uzbekistan","VEF Venezuelan Bolivar",null,"6690 Djibouti"," within 30 days Due net",{"$nulls":11},"1170C00000 - PARAKOU",{"$nulls":7},"453 United Kingdom"]
[null,null,"471 Venezuela","VEF01 Bolivar Fuerte (pref. rate)",null,"6810 Angola","Y108 within 10 days 2 % cash discount",{"$nulls":11},"1200A00000 - SUPPLY DIVISION",{"$nulls":7},"455 Tanzania, United Rep. of"]
[null,null,"492 Yemen, Rep of","VEF02 Venezuela Bolivar Fuerte – SIMADI",null,"6820 Cabo Verde"," within 30 days Due net",{"$nulls":11},"1200A00100 - DIRECTOR'S OFFICE",{"$nulls":7},"456 United States of America"]
[null,null,"495 Yugoslavia","VND Vietnamese Dong",null,"6830 Sao Tome & Principe","Y109 within 10 days 3 % cash discount",{"$nulls":11},"1200A00300 - CPH LOGISTICS",{"$nulls":7},"459 Burkina Faso"]
[null,null,"498 Zambia","VUV Vanuatu Vatu",null,"6850 Guinea Bissau"," within 30 days Due net",{"$nulls":11},"1200A00400 - CONTRACTING CENTRE",{"$nulls":7},"462 Uruguay"]
[null,null,"499 Stateless","WST Samoan Tala",null,"6890 Republic of Mozambique","Y110 within 15 days 0.5 % cash discount",{"$nulls":11},"1200A00600 - QUALITY ASSURANCE",{"$nulls":7},"463 Uzbekistan"]
[null,null,"505 Andorra","XAF C.F.A. Franc (BEAC)",null,"6980 Namibia"," within 30 days Due net",{"$nulls":11},"1200A00700 - HUMAN RESOURCES",{"$nulls":7},"471 Venezuela"]
[null,null,"507 Bangladesh","XCD East Carribean Dollar",null,"7050 Palestine, State of","Y111 within 15 days 0.55 % cash discount",{"$nulls":11},"1200A00800 - FIN MGMT AND ADMIN",{"$nulls":7},"492 Republic of Yemen"]
[null,null,"515 D.P.R. of Korea","XEU European Currency Unit",null,"7060 Timor-Leste"," within 30 days Due net",{"$nulls":11},"1200A00900 - OATC",{"$nulls":7},"495 (Yugoslavia)"]
[null,null,"520 Vietnam","XOF C.F.A. Franc (BCEAO)",null,"8950 Republic of Montenegro","Y112 within 15 days 0.6 % cash discount",{"$nulls":11},"1200A01100 - THE LOGISTICS CENTRE",{"$nulls":7},"498 Zambia"]
[null,null,"525 Germany","XPF CFP Franc",null,"8970 Serbia"," within 30 days Due net",{"$nulls":11},"1200A01300 - PS SUPPORT TO FO",{"$nulls":7},"505 Andorra"]
[null,null,"535 Vatican City","XXX Unknown currency",null,"8971 Kosovo","Y113 within 15 days 1 % cash discount",{"$nulls":11},"1200A01800 - PROCUREMENT SERVICES",{"$nulls":7},"507 Bangladesh"]
[null,null,"555 Liechtenstein","YER Yemeni Rial",null,null," within 30 days Due net",{"$nulls":11},"1200A02000 - SUPPLY CENTER NY",{"$nulls":7},"515 D.P.R  of Korea"]
[null,null,"564 Moldova, Rep of","YER1 Yemeni Rial",null,null,"Y114 within 15 days 2 % cash discount",{"$nulls":11},"1200A02300 - VACCINE CENTRE",{"$nulls":7},"520 Viet Nam"]
[null,null,"565 Monaco","ZAR South African Rand",null,null," within 30 days Due net",{"$nulls":11},"1200A02400 - MEDICINES/NUTRITION",{"$nulls":7},"525 Germany"]
[null,null,"567 South Korea,Rep","ZMW Zambian Kwacha",{"$nulls":14},"1200A02500 - WATER SANIT & EDUC",{"$nulls":7},"535 Holy See"]
[null,null,"570 San Marino","ZWL Zimbabwe Dollar",{"$nulls":14},"1200A02600 - HTC",{"$nulls":7},"555 Liechtenstein"]
[null,null,"575 Switzerland",{"$nulls":15},"1200A02700 - KMC",{"$nulls":7},"564 Republic of Moldova"]
[null,null,"590 Samoa",{"$nulls":15},"1200A02800 - INNOVATION UNIT",{"$nulls":7},"565 Monaco"]
[null,null,"601 Antigua/Barbuda",{"$nulls":15},"1200A02900 - EMERGENCY UNIT",{"$nulls":7},"567 Republic of Korea"]
[null,null,"602 Brunei Darussal",{"$nulls":15},"1200A03000 - SUPPLY CHAIN",{"$nulls":7},"570 San Marino"]
[null,null,"603 Bahamas",{"$nulls":15},"1200A03100 - MARKETSFIN & STR.",{"$nulls":7},"575 Switzerland"]
[null,null,"604 Bahrain",{"$nulls":15},"1200A03200 - INTL. TRANSPORT UNIT",{"$nulls":7},"590 Samoa"]
[null,null,"605 Bermuda",{"$nulls":15},"120XA00000 - SD PROCUREMENT",{"$nulls":7},"601 Antigua and Barbuda"]
[null,null,"610 Dominica",{"$nulls":15},"1260A00000 - DOMINICAN REPUBLIC",{"$nulls":7},"602 Brunei"]
[null,null,"611 Belize",{"$nulls":15},"1260B00000 - SANTO DOMINGO DO",{"$nulls":7},"603 Bahamas"]
[null,null,"612 Hong Kong",{"$nulls":15},"1350A00000 - ECUADOR",{"$nulls":7},"604 Bahrain"]
[null,null,"615 Cayman Islands",{"$nulls":15},"1350B00000 - QUITO ECUADOR",{"$nulls":7},"605 Bermuda"]
[null,null,"616 Grenada",{"$nulls":15},"1350C00000 - GUAYAQUIL EQUADOR",{"$nulls":7},"610 Dominica"]
[null,null,"617 Kiribati",{"$nulls":15},"1380A00000 - EL SAVADOR",{"$nulls":7},"611 Belize"]
[null,null,"618 Tuvalu",{"$nulls":15},"1380B00000 - SAN SALVADOR SV",{"$nulls":7},"612 Hong Kong"]
[null,null,"620 Montserrat",{"$nulls":15},"1390A00000 - EQUATORIAL GUINEA",{"$nulls":7},"615 Cayman Islands"]
[null,null,"623 Anguilla",{"$nulls":15},"1390B00000 - MALABO EQUI GUINEA",{"$nulls":7},"616 Grenada"]
[null,null,"624 Qatar",{"$nulls":15},"1410A00000 - ETHIOPIA",{"$nulls":7},"617 Kiribati"]
[null,null,"625 St. Helena",{"$nulls":15},"1410B00000 - ADDIS ABABAETHIOPIA",{"$nulls":7},"618 Tuvalu"]
[null,null,"626 Zimbabwe",{"$nulls":15},"1410B10000 - OROMIYA",{"$nulls":7},"620 Montserrat"]
[null,null,"627 St Kitts&Nevis",{"$nulls":15},"1410C00000 - ASOSA",{"$nulls":7},"623 Anguilla"]
[null,null,"628 Seychelles",{"$nulls":15},"1410D00000 - AWASA",{"$nulls":7},"624 Qatar"]
[null,null,"629 St. Lucia",{"$nulls":15},"1410E00000 - BAHIR DAR",{"$nulls":7},"625 Saint Helena"]
[null,null,"630 St. Vincent",{"$nulls":15},"1410F00000 - GAMBELA",{"$nulls":7},"626 Zimbabwe"]
[null,null,"631 Solomon Islands",{"$nulls":15},"1410G00000 - JIJIGA",{"$nulls":7},"627 Saint Kitts and Nevis"]
[null,null,"634 Tonga",{"$nulls":15},"1410H00000 - MEKELLE",{"$nulls":7},"628 Seychelles"]
[null,null,"635 Oman",{"$nulls":15},"1410I00000 - SEMERA",{"$nulls":7},"629 Saint Lucia"]
[null,null,"636 Turks& Caicosin",{"$nulls":15},"1410J00000 - GODE",{"$nulls":7},"630 St. Vincent and the Grena"]
[null,null,"640 Brit.Virgin Is.",{"$nulls":15},"1410K00000 - KEBRIDEHAR",{"$nulls":7},"631 Solomon Islands"]
[null,null,"645 Sikkim",{"$nulls":15},"1410L00000 - DOLLO ADO",{"$nulls":7},"634 Tonga"]
[null,null,"648 Nauru",{"$nulls":15},"1420A00000 - ERITREA",{"$nulls":7},"635 Oman"]
[null,null,"649 Pap. New Guinea",{"$nulls":15},"1420B00000 - ASMARA ERITREA",{"$nulls":7},"636 Turks and Caicos Island"]
[null,null,"655 Vanuatu",{"$nulls":15},"1430A00000 - FIJI-PACIFIC ISLANDS",{"$nulls":7},"640 Virgin Islands (UK)"]
[null,null,"656 Tokelau Islands",{"$nulls":15},"1430B00000 - SUVA FIJI",{"$nulls":7},"645 Sikkim"]
[null,null,"660 French Antilles",{"$nulls":15},"1430C00000 - APIA SAMOA",{"$nulls":7},"648 Nauru"]
[null,null,"661 Wallis,Futuna",{"$nulls":15},"1430D00000 - HONIARA SB",{"$nulls":7},"649 Papua New Guinea"]
[null,null,"662 Comoros",{"$nulls":15},"1430E00000 - PORT VILA VANUATU",{"$nulls":7},"655 Vanuatu"]
[null,null,"663 Reunion",{"$nulls":15},"1430F00000 - TARAWA KIRIBATI",{"$nulls":7},"656 Tokelau Islands"]
[null,null,"664 Martinique",{"$nulls":15},"1430G00000 - MAJURO RMI",{"$nulls":7},"660 French Antilles"]
[null,null,"665 French Guiana",{"$nulls":15},"1430H00000 - POHNPEI FSM",{"$nulls":7},"661 Wallis and Futuna Islands"]
[null,null,"666 Guadeloupe",{"$nulls":15},"1430I00000 - NAURA",{"$nulls":7},"662 Comoros"]
[null,null,"667 New Caledonia",{"$nulls":15},"1430J00000 - NGERULMUD PALAU",{"$nulls":7},"663 Reunion"]
[null,null,"668 Frenc.Polynesia",{"$nulls":15},"1430K00000 - NUKI'ALOFA TONGA",{"$nulls":7},"664 Martinique"]
[null,null,"669 Djibouti",{"$nulls":15},"1430L00000 - FUNAFUTI TUVALU",{"$nulls":7},"665 French Guiana"]
[null,null,"672 Netherlands Ant",{"$nulls":15},"1430M00000 - ALOFI NUIE",{"$nulls":7},"666 Guadeloupe"]
[null,null,"678 Suriname",{"$nulls":15},"1430N00000 - AVARUA COOK ISLANDS",{"$nulls":7},"667 New Caledonia"]
[null,null,"679 Cook Islands",{"$nulls":15},"1430O00000 - TOKELAU",{"$nulls":7},"668 French Polynesia"]
[null,null,"680 Niue",{"$nulls":15},"1530A00000 - GABON",{"$nulls":7},"669 Djibouti"]
[null,null,"681 Angola",{"$nulls":15},"1530B00000 - LIBREVILLE GABON",{"$nulls":7},"672 Netherlands Antilles"]
[null,null,"682 Cabo Verde",{"$nulls":15},"1560A00000 - GAMBIA",{"$nulls":7},"678 Suriname"]
[null,null,"683 S.Tome&Principe",{"$nulls":15},"1560B00000 - BANJUL GAMBIA",{"$nulls":7},"679 Cook Islands"]
[null,null,"685 Guinea-Bissau",{"$nulls":15},"1600A00000 - GEORGIA",{"$nulls":7},"680 Niue"]
[null,null,"688 Macau",{"$nulls":15},"1600B00000 - TBLISI GEORGIA",{"$nulls":7},"681 Angola"]
[null,null,"689 Mozambique",{"$nulls":15},"1600C00000 - SUKHUMI",{"$nulls":7},"682 Cape Verde"]
[null,null,"690 Palau, Rep of",{"$nulls":15},"1620A00000 - GHANA",{"$nulls":7},"683 Sao Tome and Principe"]
[null,null,"691 Western Sahara",{"$nulls":15},"1620B00000 - ACCRA GHANA",{"$nulls":7},"685 Guinea-Bissau"]
[null,null,"692 Marshall Islnds",{"$nulls":15},"1620C00000 - TAMALE",{"$nulls":7},"688 Macao"]
[null,null,"693 Micronesia",{"$nulls":15},"1680A00000 - GUATEMALA",{"$nulls":7},"689 Mozambique"]
[null,null,"695 Puerto Rico",{"$nulls":15},"1680B00000 - GUATEMALA CITY GT",{"$nulls":7},"691 Western Sahara"]
[null,null,"696 Samoa,American",{"$nulls":15},"1770A00000 - GUINEA",{"$nulls":7},"692 Marshall Islands"]
[null,null,"697 Amer.Virgin Is.",{"$nulls":15},"1770B00000 - CONAKRY GUINEA",{"$nulls":7},"693 Micronesia"]
[null,null,"698 Namibia",{"$nulls":15},"1770B10000 - WESTERN CONAKRY",{"$nulls":7},"694 (Trust Territory Palau)"]
[null,null,"700 N.Mariana Is.",{"$nulls":15},"1770C00000 - NZEREKORE",{"$nulls":7},"695 Puerto Rico"]
[null,null,"701 Not Applicable",{"$nulls":15},"1770D00000 - KANKAN",{"$nulls":7},"696 American Samoa"]
[null,null,"705 Palestine",{"$nulls":15},"1800A00000 - GUYANA",{"$nulls":7},"697 Virgin Islands (USA)"]
[null,null,"706 Timor-Leste",{"$nulls":15},"1800B00000 - GEORGETOWN GUYANA",{"$nulls":7},"698 Namibia"]
[null,null,"891 Serbia & Monten",{"$nulls":15},"1800C00000 - PARAMARIBO SURINAME",{"$nulls":7},"705 Palestine"]
[null,null,"895 Montenegro",{"$nulls":15},"1830A00000 - HAITI",{"$nulls":7},"706 East Timor"]
[null,null,"897 Serbia",{"$nulls":15},"1830B00000 - PORT AU PRINCEHAITI",{"$nulls":7},"891 Serbia and Montenegro"]
[null,null,"999 United Nations",{"$nulls":15},"1830C00000 - GONAIVES HAITI",{"$nulls":7},"895 Montenegro"]
[{"$nulls":18},"1860A00000 - HONDURAS",{"$nulls":7},"897 Serbia"]
[{"$nulls":4},"006",{"$nulls":13},"1860B00000 - TEGUCIGALPAHONDURAS",{"$nulls":7},"AR01 Oficina central Argentina"]
[null,null,{"$f":"CONCATENATE(D238,\" \",E237)","v":"Afghanistan 006"},"Afghanistan","009",{"$nulls":13},"1950A00000 - GSSC BUDAPEST",{"$nulls":7},"AR02 Plantas Zona Norte Argentina"]
[null,null,"Albania 009","Albania","012",{"$nulls":13},"1950A00100 - DO GSSC",{"$nulls":7},"AR03 Plantas Zona Sur Argentina"]
[null,null,"Algeria 012","Algeria",697,{"$nulls":13},"1950A00200 - HR ADMIN SECTION",{"$nulls":7},"AT01 Personnel Area AT01"]
[null,null,"Amer.Virgin Is. 697","Amer.Virgin Is.",505,{"$nulls":13},"1950A00300 - HR PAYROLL SECTION",{"$nulls":7},"AU01 Personnel Area AU01"]
[null,null,"Andorra 505","Andorra",681,{"$nulls":13},"1950A00400 - GLOBAL HELP DESK SEC",{"$nulls":7},"AU02 Personnel Area Au02"]
[null,null,"Angola 681","Angola",623,{"$nulls":13},"1950A00500 - FINANCE SECTION",{"$nulls":7},"AU03 Australia PA03"]
[null,null,"Anguilla 623","Anguilla",601,{"$nulls":13},"1950A00600 - SERVICE MANAGEMENT",{"$nulls":7},"AUPS Australian Personnel Area PS"]
[null,null,"Antigua/Barbuda 601","Antigua/Barbuda","024",{"$nulls":13},"2040A00000 - INDIA",{"$nulls":7},"BE01 Personnel area BE01"]
[null,null,"Argentina 024","Argentina","026",{"$nulls":13},"2040B00000 - NEW DELHI INDIA",{"$nulls":7},"BR01 Empresa Modelo - Matriz"]
[null,null,"Armenia 026","Armenia","025",{"$nulls":13},"2040C00000 - BHOPAL",{"$nulls":7},"BR02 Empresa Modelo - Escritório"]
[null,null,"Aruba 025","Aruba","027",{"$nulls":13},"2040D00000 - BHUBANESHWAR",{"$nulls":7},"BR03 Empresa Modelo - Fundição"]
[null,null,"Australia 027","Australia","030",{"$nulls":13},"2040E00000 - CALCUTTA",{"$nulls":7},"BR04 Empresa Modelo - Comp. Elét."]
[null,null,"Austria 030","Austria","031",{"$nulls":13},"2040F00000 - CHENNAI",{"$nulls":7},"CA01 Regional"]
[null,null,"Azerbaijan 031","Azerbaijan",603,{"$nulls":13},"2040G00000 - GANDHINAGAR",{"$nulls":7},"CA02 Unionized"]
[null,null,"Bahamas 603","Bahamas",604,{"$nulls":13},"2040H00000 - HYDERABAD",{"$nulls":7},"CA03 Non-Unionized"]
[null,null,"Bahrain 604","Bahrain",507,{"$nulls":13},"2040I00000 - JAIPUR",{"$nulls":7},"CA04 Business Unit"]
[null,null,"Bangladesh 507","Bangladesh","042",{"$nulls":13},"2040J00000 - LUCKNOW",{"$nulls":7},"CH01 Switzerland Subsidiary"]
[null,null,"Barbados 042","Barbados","063",{"$nulls":13},"2040K00000 - MUMBAI",{"$nulls":7},"CHS1 Modellfirma Schweiz (PCCS)"]
[null,null,"Belarus 063","Belarus","048",{"$nulls":13},"2040L00000 - PATNA",{"$nulls":7},"CN01 Personnel Area CN01"]
[null,null,"Belgium 048","Belgium",611,{"$nulls":13},"2040M00000 - GUWAHATI",{"$nulls":7},"CPH Supply Division Copenhagen"]
[null,null,"Belize 611","Belize",117,{"$nulls":13},"2040N00000 - RAIPUR",{"$nulls":7},"DE01 Personnel area DE01"]
[null,null,"Benin 117","Benin",605,{"$nulls":13},"2040O00000 - RANCHI",{"$nulls":7},"DK01 Personnel area DK01 - Denmark"]
[null,null,"Bermuda 605","Bermuda","049",{"$nulls":13},"2070A00000 - INDONESIA",{"$nulls":7},"ES01 Personnel area ES01"]
[null,null,"Bhutan 049","Bhutan","051",{"$nulls":13},"2070B00000 - JAKARTA INDONESIA",{"$nulls":7},"FI01 Personnel area FI01"]
[null,null,"Bolivia 051","Bolivia","053",{"$nulls":13},"2070C00000 - MAKASSAR",{"$nulls":7},"FR01 Personnel area FR01"]
[null,null,"Bosnia-Herz. 053","Bosnia-Herz.","052",{"$nulls":13},"2070D00000 - AMBON",{"$nulls":7},"FRSP Personnel area FRSP"]
[null,null,"Botswana 052","Botswana","054",{"$nulls":13},"2070E00000 - BANDA ACEH",{"$nulls":7},"GB01 UK Subsidiary"]
[null,null,"Brazil 054","Brazil",640,{"$nulls":13},"2070F00000 - JAYAPURA",{"$nulls":7},"HK01 Hong Kong Subsidiary"]
[null,null,"Brit.Virgin Is. 640","Brit.Virgin Is.",602,{"$nulls":13},"2070G00000 - KUPANG",{"$nulls":7},"ID01 Personnel area ID01"]
[null,null,"Brunei Darussal 602","Brunei Darussal","057",{"$nulls":13},"2070H00000 - MANOKWARI",{"$nulls":7},"IE01 Irish Subsidiary"]
[null,null,"Bulgaria 057","Bulgaria",459,{"$nulls":13},"2070I00000 - SEMARANG",{"$nulls":7},"IN01 IN Model comp - Andhra Pradesh"]
[null,null,"Burkina-Faso 459","Burkina-Faso","061",{"$nulls":13},"2070J00000 - SURABAYA",{"$nulls":7},"IN02 IN Model comp - Gujarat"]
[null,null,"Burundi 061","Burundi",682,{"$nulls":13},"2100A00000 - IRAN",{"$nulls":7},"IN03 IN Model comp - Karnataka"]
[null,null,"Cabo Verde 682","Cabo Verde","066",{"$nulls":13},"2100B00000 - TEHERAN IRAN",{"$nulls":7},"IN04 IN Model comp - Kerala"]
[null,null,"Cambodia 066","Cambodia","069",{"$nulls":13},"2130A00000 - IRAQ",{"$nulls":7},"IN05 IN Model comp - Madhya Pradesh"]
[null,null,"Cameroon 069","Cameroon","072",{"$nulls":13},"2130B00000 - IRAQ COUNTRY OFFICE",{"$nulls":7},"IN06 IN Model comp - Maharashtra"]
[null,null,"Canada 072","Canada","071",{"$nulls":13},"2130C00000 - AL NAJAF",{"$nulls":7},"IN07 IN Model comp - Tamil Nadu"]
[null,null,"Canary Islands 071","Canary Islands",615,{"$nulls":13},"2130D00000 - BAGHDAD CENTRAL ZONE",{"$nulls":7},"IN08 IN Model comp - West Bengal"]
[null,null,"Cayman Islands 615","Cayman Islands","075",{"$nulls":13},"2130E00000 - KIRKUK",{"$nulls":7},"IN09 IN Model comp - Assam"]
[null,null,"Central Afr.Rep 075","Central Afr.Rep","081",{"$nulls":13},"2130F00000 - ZO SOUTH BASRAH",{"$nulls":7},"IN10 IN Model comp - Mizoram"]
[null,null,"Chad 081","Chad","084",{"$nulls":13},"2130G00000 - ZONE OFFICE NORTH",{"$nulls":7},"IN11 IN Model comp - Nagaland"]
[null,null,"Chile 084","Chile","086",{"$nulls":13},"2130H00000 - DOHUK",{"$nulls":7},"IN12 IN Model comp - Tripura"]
[null,null,"China 086","China","093",{"$nulls":13},"2130I00000 - KUT",{"$nulls":7},"IN13 IN Model comp - Orissa"]
[null,null,"Colombia 093","Colombia",662,{"$nulls":13},"2130J00000 - AMARAH",{"$nulls":7},"IN14 IN Model comp - Rajasthan"]
[null,null,"Comoros 662","Comoros",338,{"$nulls":13},"2130K00000 - IRAQ CENTER AMMAN",{"$nulls":7},"IN15 IN Model comp - Chhattisgarh"]
[null,null,"Congo 338","Congo","099",{"$nulls":13},"2220A00000 - OFFICE OF RESEARCH",{"$nulls":7},"IT01 Area Risorse Umane IT01"]
[null,null,"Congo, Dem. Rep 099","Congo, Dem. Rep",679,{"$nulls":13},"2220A00100 - RESEARCH SECTION",{"$nulls":7},"JP01 Personnel area JP01"]
[null,null,"Cook Islands 679","Cook Islands",102,{"$nulls":13},"2250A00000 - COTE D'IVOIRE",{"$nulls":7},"JP02 Personnel area JP02"]
[null,null,"Costa Rica 102","Costa Rica",225,{"$nulls":13},"2250B00000 - ABIDJANCOTED'IVOIRE",{"$nulls":7},"KR01 Personnel area KR01"]
[null,null,"Cote d'Ivoire 225","Cote d'Ivoire",103,{"$nulls":13},"2250C00000 - BOUAKE",{"$nulls":7},"MX01 Personnel area MX01"]
[null,null,"Croatia 103","Croatia",105,{"$nulls":13},"2250D00000 - MAN",{"$nulls":7},"MXSP Personnel area MXSP"]
[null,null,"Cuba 105","Cuba",111,{"$nulls":13},"2280A00000 - JAMAICA",{"$nulls":7},"MY01 Kuala Lumpur - Malaysia"]
[null,null,"Cyprus 111","Cyprus",113,{"$nulls":13},"2280B00000 - KINGSTON JAMAICA",{"$nulls":7},"MY02 Petaling Jaya - Malaysia"]
[null,null,"Czech Republic 113","Czech Republic",515,{"$nulls":13},"2340A00000 - JORDAN",{"$nulls":7},"NL01 Modelfirma Nederland BV"]
[null,null,"D.P.R. of Korea 515","D.P.R. of Korea",120,{"$nulls":13},"2340B00000 - AMMAN JORDAN",{"$nulls":7},"NO01 Personalomraade 1 Norge"]
[null,null,"Denmark 120","Denmark",669,{"$nulls":13},"234RA00000 - MENA",{"$nulls":7},"NO02 Personalomraade 2 Norge"]
[null,null,"Djibouti 669","Djibouti",610,{"$nulls":13},"234RB00000 - REG SERV DIV MENA",{"$nulls":7},"NYHQ Unicef HQ New York"]
[null,null,"Dominica 610","Dominica",126,{"$nulls":13},"2390A00000 - KAZAKSTAN",{"$nulls":7},"NZ01 New Zealand Pers. Area"]
[null,null,"Dominican Rep. 126","Dominican Rep.",135,{"$nulls":13},"2390B00000 - ASTANA KAZAKHSTAN",{"$nulls":7},"OE01 Öffentlicher Dienst (DE)"]
[null,null,"Ecuador 135","Ecuador",450,{"$nulls":13},"2390C00000 - ALMA ATA",{"$nulls":7},"PH01 Philippines Provincial Office"]
[null,null,"Egypt 450","Egypt",138,{"$nulls":13},"2400A00000 - KENYA",{"$nulls":7},"PSDG Private Sector Division Geneva"]
[null,null,"El Salvador 138","El Salvador",139,{"$nulls":13},"2400B00000 - NAIROBI KENYA",{"$nulls":7},"PSDN Private Section Division NY"]
[null,null,"Equatorial Guin 139","Equatorial Guin",142,{"$nulls":13},"2400C00000 - GARISSA",{"$nulls":7},"PT01 Personnel area PT01"]
[null,null,"Eritrea 142","Eritrea",140,{"$nulls":13},"2400D00000 - KISUMU",{"$nulls":7},"SE01 SAP Svenska AB"]
[null,null,{"$f":"CONCATENATE(D302,\" \",E301)","v":"Estonia 140"},"Estonia",141,{"$nulls":13},"2400E00000 - DADAAD",{"$nulls":7},"SG01 Plant Singapore 1"]
[null,null,"Ethiopia 141","Ethiopia",143,{"$nulls":13},"2400F00000 - LODWAR",{"$nulls":7},"SG02 Plant Singapore 2"]
[null,null,"Fiji 143","Fiji",144,{"$nulls":13},"240BB00000 - INNOVATION CENTER",{"$nulls":7},"SHL PSD Shop Labor"]
[null,null,"Finland 144","Finland",147,{"$nulls":13},"240BB00100 - DIRECTOR'S OFFICE",{"$nulls":7},"TH01 Personnel Area TH01"]
[null,null,"France 147","France",668,{"$nulls":13},"240RA00000 - ESARO",{"$nulls":7},"TW01 Taiwan personnel area"]
[null,null,"Frenc.Polynesia 668","Frenc.Polynesia",660,{"$nulls":13},"240RB00000 - REG SERV DIV ESAR",{"$nulls":7},"UN01 Personnel area UN01"]
[null,null,"French Antilles 660","French Antilles",665,{"$nulls":13},"2450A00000 - REP. OF KYRGYZSTAN",{"$nulls":7},"US01 United States Headquarter"]
[null,null,"French Guiana 665","French Guiana",153,{"$nulls":13},"2450B00000 - BISHKEK KYRGYZSTAN",{"$nulls":7},"US02 US Product A"]
[null,null,"Gabon 153","Gabon",156,{"$nulls":13},"2450C00000 - OSH",{"$nulls":7},"US03 US Product B"]
[null,null,"Gambia 156","Gambia",160,{"$nulls":13},"2460A00000 - LAO PEOPLE'S DEM REP",{"$nulls":7},"US04 US Subsidiary A"]
[null,null,"Georgia 160","Georgia",525,{"$nulls":13},"2460B00000 - VIENTIANE LAO PDR",{"$nulls":7},"VE01 Area de personal Venezolana 1"]
[null,null,"Germany 525","Germany",162,{"$nulls":13},"2460C00000 - LUANG NAMTHA",{"$nulls":7},"VE02 Modelo de Compañia II Vzla"]
[null,null,"Ghana 162","Ghana",163,{"$nulls":13},"2490A00000 - LEBANON",{"$nulls":7},"XX01 Personnel area XX01"]
[null,null,"Gibraltar 163","Gibraltar",165,{"$nulls":13},"2490B00000 - BEIRUT LEBANON",{"$nulls":7},"ZA01 Head Office - Johannesburg ZA"]
[null,null,"Greece 165","Greece","001",{"$nulls":13},"2490C00000 - TYRE",{"$nulls":7},"ZA02 Factory - Midrand ZA"]
[null,null,"Greenland 001","Greenland",616,{"$nulls":13},"2520A00000 - LESOTHO",{"$nulls":7},"ZA03 Regional Office - Cape Town ZA"]
[null,null,"Grenada 616","Grenada",666,{"$nulls":13},"2520B00000 - MASERU LESOTHO",{"$nulls":7},"ZA04 Regional Office - Durban ZA"]
[null,null,"Guadeloupe 666","Guadeloupe","004",{"$nulls":13},"2550A00000 - LIBERIA"]
[null,null,"Guam 004","Guam",168,{"$nulls":13},"2550B00000 - MONROVIA LIBERIA"]
[null,null,"Guatemala 168","Guatemala",177,{"$nulls":13},"2550C00000 - ZO: ZWEDRU"]
[null,null,"Guinea 177","Guinea",685,{"$nulls":13},"2550D00000 - ZO: HARPER"]
[null,null,"Guinea-Bissau 685","Guinea-Bissau",180,{"$nulls":13},"2550E00000 - ZO: GBARNGA"]
[null,null,"Guyana 180","Guyana",183,{"$nulls":13},"2580A00000 - LIBYA"]
[null,null,"Haiti 183","Haiti",186,{"$nulls":13},"2580B00000 - TRIPOLI LIBYAN ARAB"]
[null,null,"Honduras 186","Honduras",612,{"$nulls":13},"2580C00000 - BENGHAZI"]
[null,null,"Hong Kong 612","Hong Kong",195,{"$nulls":13},"2660A00000 - MACEDONIA"]
[null,null,"Hungary 195","Hungary",198,{"$nulls":13},"2660B00000 - SKOPJE MACEDONIA"]
[null,null,"Iceland 198","Iceland",204,{"$nulls":13},"2670A00000 - MADAGASCAR"]
[null,null,"India 204","India",207,{"$nulls":13},"2670B00000 - ANTANANARIVO MG"]
[null,null,"Indonesia 207","Indonesia",210,{"$nulls":13},"2670C00000 - AMBOVOMBE"]
[null,null,"Iran 210","Iran",213,{"$nulls":13},"2670D00000 - FORT DAUPHIN MDG"]
[null,null,"Iraq 213","Iraq",216,{"$nulls":13},"2690A00000 - MALAWI"]
[null,null,"Ireland 216","Ireland",219,{"$nulls":13},"2690B00000 - LILONGWE MALAWI"]
[null,null,"Israel 219","Israel",222,{"$nulls":13},"2700A00000 - MALAYSIA"]
[null,null,"Italy 222","Italy",228,{"$nulls":13},"2700B00000 - KUALA LUMPUR MY"]
[null,null,"Jamaica 228","Jamaica",231,{"$nulls":13},"2740A00000 - MALDIVES"]
[null,null,"Japan 231","Japan",234,{"$nulls":13},"2740B00000 - MALE MALDIVES"]
[null,null,"Jordan 234","Jordan",239,{"$nulls":13},"2760A00000 - MALI"]
[null,null,"Kazakhstan 239","Kazakhstan",240,{"$nulls":13},"2760B00000 - BAMAKO MALI"]
[null,null,"Kenya 240","Kenya",617,{"$nulls":13},"2760C00000 - KAYES"]
[null,null,"Kiribati 617","Kiribati",243,{"$nulls":13},"2760D00000 - KOULIKORO"]
[null,null,"Kuwait 243","Kuwait",245,{"$nulls":13},"2760E00000 - MOPTI"]
[null,null,"Kyrgyzstan 245","Kyrgyzstan",246,{"$nulls":13},"2760F00000 - SEGOU"]
[null,null,"Lao,Peo.Dem.Rep 246","Lao,Peo.Dem.Rep",247,{"$nulls":13},"2760G00000 - GAO MALI"]
[null,null,"Latvia 247","Latvia",249,{"$nulls":13},"2760H00000 - SIKASSO MALI"]
[null,null,"Lebanon 249","Lebanon",252,{"$nulls":13},"2760I00000 - TOMBOUCTOU MALI"]
[null,null,"Lesotho 252","Lesotho",255,{"$nulls":13},"2820A00000 - MAURITANIA"]
[null,null,"Liberia 255","Liberia",258,{"$nulls":13},"2820B00000 - NOUAKCHOTT MR"]
[null,null,"Libya 258","Libya",555,{"$nulls":13},"2820C00000 - AIOUN"]
[null,null,"Liechtenstein 555","Liechtenstein",260,{"$nulls":13},"2820D00000 - BASSIKOUNOU"]
[null,null,"Lithuania 260","Lithuania",264,{"$nulls":13},"2820E00000 - KIFFA"]
[null,null,"Luxembourg 264","Luxembourg",688,{"$nulls":13},"2850A00000 - MEXICO"]
[null,null,"Macau 688","Macau",266,{"$nulls":13},"2850B00000 - MEXICO CITY MEXICO"]
[null,null,"Macedonia, TFYR 266","Macedonia, TFYR",267,{"$nulls":13},"2880A00000 - MONGOLIA"]
[null,null,"Madagascar 267","Madagascar",269,{"$nulls":13},"2880B00000 - ULAANBAATARMONGOLIA"]
[null,null,"Malawi 269","Malawi",270,{"$nulls":13},"2880C00000 - KHOVD CITY"]
[null,null,"Malaysia 270","Malaysia",274,{"$nulls":13},"2880D00000 - KHUVSGUL MONGOLIA"]
[null,null,"Maldives,Rep of 274","Maldives,Rep of",276,{"$nulls":13},"2910A00000 - MOROCCO"]
[null,null,"Mali 276","Mali",279,{"$nulls":13},"2910B00000 - RABAT MOROCCO"]
[null,null,"Malta 279","Malta",692,{"$nulls":13},"2970A00000 - NEPAL"]
[null,null,"Marshall Islnds 692","Marshall Islnds",664,{"$nulls":13},"2970B00000 - KATHMANDU NEPAL"]
[null,null,"Martinique 664","Martinique",282,{"$nulls":13},"2970C00000 - BHARATPUR"]
[null,null,"Mauritania 282","Mauritania",283,{"$nulls":13},"2970D00000 - BIRATNAGER"]
[null,null,"Mauritius 283","Mauritius",285,{"$nulls":13},"2970E00000 - BIRGANG"]
[null,null,{"$f":"CONCATENATE(D366,\" \",E365)","v":"Mexico 285"},"Mexico",693,{"$nulls":13},"2970F00000 - DHADHELDURA"]
[null,null,"Micronesia 693","Micronesia",564,{"$nulls":13},"2970G00000 - GAIGHAT"]
[null,null,"Moldova, Rep of 564","Moldova, Rep of",565,{"$nulls":13},"2970H00000 - GHORAHI"]
[null,null,"Monaco 565","Monaco",288,{"$nulls":13},"2970I00000 - MANGALSEN"]
[null,null,"Mongolia 288","Mongolia",895,{"$nulls":13},"2970J00000 - NEPALGUNJ"]
[null,null,"Montenegro 895","Montenegro",620,{"$nulls":13},"2970K00000 - PANCHTHAR"]
[null,null,"Montserrat 620","Montserrat",291,{"$nulls":13},"2970L00000 - RAJBIRAJ"]
[null,null,"Morocco 291","Morocco",689,{"$nulls":13},"2970M00000 - SIMIKOT"]
[null,null,"Mozambique 689","Mozambique","060",{"$nulls":13},"2970N00000 - TAULIHAWA"]
[null,null,"Myanmar 060","Myanmar",700,{"$nulls":13},"2970O00000 - JUMLA NEPAL"]
[null,null,"N.Mariana Is. 700","N.Mariana Is.",698,{"$nulls":13},"2970P00000 - SINDHUPALCHOWK"]
[null,null,"Namibia 698","Namibia",648,{"$nulls":13},"2970Q00000 - DOLAKHA"]
[null,null,"Nauru 648","Nauru",297,{"$nulls":13},"2970R00000 - GORKHA"]
[null,null,"Nepal 297","Nepal",300,{"$nulls":13},"2970S00000 - NUWAKOT"]
[null,null,"Netherlands 300","Netherlands",672,{"$nulls":13},"297RA00000 - ROSA"]
[null,null,"Netherlands Ant 672","Netherlands Ant",667,{"$nulls":13},"297RB00000 - REG SERV DIV ROSA"]
[null,null,"New Caledonia 667","New Caledonia",309,{"$nulls":13},"3120A00000 - NICARAGUA"]
[null,null,"New Zealand 309","New Zealand",312,{"$nulls":13},"3120B00000 - MANAGUA NICARAGUA"]
[null,null,"Nicaragua 312","Nicaragua",318,{"$nulls":13},"3120C00000 - BILWI"]
[null,null,"Niger 318","Niger",321,{"$nulls":13},"3120D00000 - BLUEFIELDS NICARAGU"]
[null,null,"Nigeria 321","Nigeria",680,{"$nulls":13},"3180A00000 - NIGER"]
[null,null,"Niue 680","Niue",324,{"$nulls":13},"3180B00000 - NIAMEY NIGER"]
[null,null,"Norway 324","Norway",701,{"$nulls":13},"3180C00000 - AGADEZ"]
[null,null,"Not Applicable 701","Not Applicable",635,{"$nulls":13},"3180D00000 - MARADI"]
[null,null,"Oman 635","Oman",330,{"$nulls":13},"3180E00000 - DIFFA"]
[null,null,"Pakistan 330","Pakistan",690,{"$nulls":13},"3210A00000 - NIGERIA"]
[null,null,"Palau, Rep of 690","Palau, Rep of",705,{"$nulls":13},"3210B00000 - ABUJA NIGERIA"]
[null,null,"Palestine 705","Palestine",333,{"$nulls":13},"3210C00000 - BAUCHI"]
[null,null,"Panama 333","Panama",649,{"$nulls":13},"3210D00000 - ENUGU"]
[null,null,"Pap. New Guinea 649","Pap. New Guinea",336,{"$nulls":13},"3210E00000 - KADUNA"]
[null,null,"Paraguay 336","Paraguay",339,{"$nulls":13},"3210F00000 - LAGOS"]
[null,null,"Peru 339","Peru",342,{"$nulls":13},"3210G00000 - MAIDUGURI"]
[null,null,"Philippines 342","Philippines",345,{"$nulls":13},"3210H00000 - SOKOTO"]
[null,null,"Poland 345","Poland",348,{"$nulls":13},"3210I00000 - KATSINA"]
[null,null,"Portugal 348","Portugal",695,{"$nulls":13},"3210J00000 - RIVERS ZONE OFFICE"]
[null,null,"Puerto Rico 695","Puerto Rico",624,{"$nulls":13},"3210K00000 - ONDO"]
[null,null,"Qatar 624","Qatar",663,{"$nulls":13},"3300A00000 - PAKISTAN"]
[null,null,"Reunion 663","Reunion",366,{"$nulls":13},"3300B00000 - ISLAMABAD PAKISTAN"]
[null,null,"Romania 366","Romania",370,{"$nulls":13},"3300C00000 - KARACHI"]
[null,null,"Russian Fed. 370","Russian Fed.",375,{"$nulls":13},"3300D00000 - LAHORE"]
[null,null,"Rwanda 375","Rwanda",683,{"$nulls":13},"3300E00000 - PESHAWAR"]
[null,null,"S.Tome&Principe 683","S.Tome&Principe",590,{"$nulls":13},"3300F00000 - QUETTA"]
[null,null,"Samoa 590","Samoa",696,{"$nulls":13},"3300G00000 - DUBAI UAE"]
[null,null,"Samoa,American 696","Samoa,American",570,{"$nulls":13},"3330A00000 - PANAMA"]
[null,null,"San Marino 570","San Marino",378,{"$nulls":13},"3330B00000 - PANAMA CITY"]
[null,null,"Saudi Arabia 378","Saudi Arabia",381,{"$nulls":13},"333RA00000 - LACRO"]
[null,null,"Senegal 381","Senegal",897,{"$nulls":13},"333RB00000 - REG SERV DIV LACR"]
[null,null,"Serbia 897","Serbia",891,{"$nulls":13},"333RC00000 - PANAMA HUB LACR"]
[null,null,"Serbia & Monten 891","Serbia & Monten",628,{"$nulls":13},"3360A00000 - PARAGUAY"]
[null,null,"Seychelles 628","Seychelles",390,{"$nulls":13},"3360B00000 - ASUNCION PARAGUAY"]
[null,null,"Sierra Leone 390","Sierra Leone",645,{"$nulls":13},"3380A00000 - CONGO"]
[null,null,"Sikkim 645","Sikkim",391,{"$nulls":13},"3380B00000 - BRAZZAVILLE CONGO"]
[null,null,"Singapore 391","Singapore",395,{"$nulls":13},"3380C00000 - POINTE NOIRE"]
[null,null,"Slovak Republic 395","Slovak Republic",394,{"$nulls":13},"3390A00000 - PERU"]
[null,null,"Slovenia 394","Slovenia",631,{"$nulls":13},"3390B00000 - LIMA PERU"]
[null,null,"Solomon Islands 631","Solomon Islands",392,{"$nulls":13},"3390C00000 - ABANCAY"]
[null,null,"Somalia 392","Somalia",393,{"$nulls":13},"3390D00000 - AYACUCHO"]
[null,null,"South Africa 393","South Africa",567,{"$nulls":13},"3390E00000 - CUZCO"]
[null,null,"South Korea,Rep 567","South Korea,Rep",404,{"$nulls":13},"3390F00000 - UCAYALI"]
[null,null,"South Sudan 404","South Sudan",399,{"$nulls":13},"3420A00000 - PHILIPPINES"]
[null,null,"Spain 399","Spain","078",{"$nulls":13},"3420B00000 - MANILA"]
[null,null,"Sri Lanka 078","Sri Lanka",627,{"$nulls":13},"3420C00000 - COTABATO"]
[null,null,"St Kitts&Nevis 627","St Kitts&Nevis",625,{"$nulls":13},"3420D00000 - DAVAO"]
[null,null,"St. Helena 625","St. Helena",629,{"$nulls":13},"3420E00000 - CEBU"]
[null,null,{"$f":"CONCATENATE(D430,\" \",E429)","v":"St. Lucia 629"},"St. Lucia",630,{"$nulls":13},"3420F00000 - TACLOBAN"]
[null,null,"St. Vincent 630","St. Vincent",499,{"$nulls":13},"3420G00000 - ROXAS"]
[null,null,"Stateless 499","Stateless",402,{"$nulls":13},"3420H00000 - ZAMBOANGA"]
[null,null,"Sudan 402","Sudan",678,{"$nulls":13},"3660A00000 - ROMANIA"]
[null,null,"Suriname 678","Suriname",403,{"$nulls":13},"3660B00000 - BUCHAREST ROMANIA"]
[null,null,"Swaziland 403","Swaziland",411,{"$nulls":13},"3750A00000 - RWANDA"]
[null,null,"Sweden 411","Sweden",575,{"$nulls":13},"3750B00000 - KIGALI RWANDA"]
[null,null,"Switzerland 575","Switzerland",414,{"$nulls":13},"3780A00000 - SAUDI ARABIA"]
[null,null,"Syria, Arab Rep 414","Syria, Arab Rep",415,{"$nulls":13},"3780B00000 - RIYADH GULF AREA"]
[null,null,"Tajikistan 415","Tajikistan",455,{"$nulls":13},"3780C00000 - ABU DHABI GULF AREA"]
[null,null,"Tanzania,Uni.Re 455","Tanzania,Uni.Re",420,{"$nulls":13},"3780D00000 - BAHRAIN GULF AREA"]
[null,null,"Thailand 420","Thailand",706,{"$nulls":13},"3780E00000 - DUBAI GULF AREA"]
[null,null,"Timor-Leste 706","Timor-Leste",423,{"$nulls":13},"3780F00000 - KUWAIT GULF AREA"]
[null,null,"Togo 423","Togo",656,{"$nulls":13},"3780G00000 - QATAR GULF AREA"]
[null,null,"Tokelau Islands 656","Tokelau Islands",634,{"$nulls":13},"3810A00000 - SENEGAL"]
[null,null,"Tonga 634","Tonga",429,{"$nulls":13},"3810B00000 - DAKAR SENEGAL"]
[null,null,"Trinidad,Tobago 429","Trinidad,Tobago",432,{"$nulls":13},"3810C00000 - ZIGUINCHOR"]
[null,null,"Tunisia 432","Tunisia",435,{"$nulls":13},"381RA00000 - WCARO"]
[null,null,"Turkey 435","Turkey",436,{"$nulls":13},"381RB00000 - REG SERV DIV WCAR"]
[null,null,"Turkmenistan 436","Turkmenistan",636,{"$nulls":13},"3900A00000 - SIERRA LEONE"]
[null,null,"Turks& Caicosin 636","Turks& Caicosin",618,{"$nulls":13},"3900B00000 - FREETOWN SL"]
[null,null,"Tuvalu 618","Tuvalu",438,{"$nulls":13},"3900C00000 - KENEMA"]
[null,null,"Uganda 438","Uganda",441,{"$nulls":13},"3900D00000 - MAKENI"]
[null,null,"Ukraine 441","Ukraine",453,{"$nulls":13},"3920A00000 - SOMALIA"]
[null,null,"United Kingdom 453","United Kingdom",999,{"$nulls":13},"3920B00000 - MOGADISCIO SOMALIA"]
[null,null,"United Nations 999","United Nations","000",{"$nulls":13},"3920C00000 - BAIDOA"]
[null,null,"Unknown 000","Unknown",462,{"$nulls":13},"3920D00000 - BOSASO"]
[null,null,"Uruguay 462","Uruguay",456,{"$nulls":13},"3920E00000 - GAROOWE"]
[null,null,"USA 456","USA",449,{"$nulls":13},"3920F00000 - HARGEISA"]
[null,null,"Utd.Arab.Emir. 449","Utd.Arab.Emir.",463,{"$nulls":13},"3920G00000 - JOWHAR"]
[null,null,"Uzbekistan 463","Uzbekistan",655,{"$nulls":13},"3920H00000 - GAALKACYO"]
[null,null,"Vanuatu 655","Vanuatu",535,{"$nulls":13},"3920I00000 - WAJID"]
[null,null,"Vatican City 535","Vatican City",471,{"$nulls":13},"3920J00000 - SOMALIA DESK KENYA"]
[null,null,"Venezuela 471","Venezuela",520,{"$nulls":13},"3920K00000 - DOLLOW"]
[null,null,"Vietnam 520","Vietnam",661,{"$nulls":13},"3930A00000 - SOUTH AFRICA"]
[null,null,"Wallis,Futuna 661","Wallis,Futuna",691,{"$nulls":13},"3930B00000 - PRETORIA ZA"]
[null,null,"Western Sahara 691","Western Sahara",492,{"$nulls":13},"4020A00000 - SUDAN"]
[null,null,"Yemen, Rep of 492","Yemen, Rep of",495,{"$nulls":13},"4020B00000 - KHARTOUM SUDAN"]
[null,null,"Yugoslavia 495","Yugoslavia",498,{"$nulls":13},"4020C00000 - ABYEI"]
[null,null,"Zambia 498","Zambia",626,{"$nulls":13},"4020D00000 - AD DAMAZINE"]
[null,null,"Zimbabwe 626","Zimbabwe",{"$nulls":14},"4020E00000 - EL FASHER"]
[{"$nulls":18},"4020F00000 - EL GENEINA"]
[{"$nulls":18},"4020G00000 - EL OBEID"]
[null,null,"01 POs/LTAs not permitted (refer to SEU/DB)",{"$nulls":15},"4020H00000 - KADUGLI"]
[null,null,"11 PQ manuf. site. PO with main supplier",{"$nulls":15},"4020I00000 - KASSALA"]
[null,null,"21 Potential supplier, Not GMP evaluated",{"$nulls":15},"4020J00000 - NYALA"]
[null,null,"74 Block on vendor`s product for quality",{"$nulls":15},"4020K00000 - ZALINGUEI"]
[null,null,"88 Total block on inactive/duplicate vendor",{"$nulls":15},"4030A00000 - SWAZILAND"]
[null,null,"97 Blocked for ethical reasons (total block)",{"$nulls":15},"4030B00000 - MBABANE SWAZILAND"]
[null,null,"98 Failed GMP inspection (total block)",{"$nulls":15},"4040A00000 - SOUTH SUDAN"]
[null,null,"99 Not recommended by SEU (total block)",{"$nulls":15},"4040B00000 - JUBA SOUTH SUDAN"]
[{"$nulls":18},"4040B10000 - JUBA ZONE OFFICE"]
[null,null,"MF manufacturer",{"$nulls":15},"4040C00000 - MALAKAL SOUTH SUDAN"]
[null,null,"TR trader",{"$nulls":15},"4040D00000 - RUMBEK SOUTH SUDAN"]
[null,null,"HQ headquarter",{"$nulls":15},"4040E00000 - WAU SOUTH SUDAN"]
[null,null,"LO local (sales) office",{"$nulls":15},"4040F00000 - BOR SOUTH SUDAN"]
[null,null,"AP alternative payee",{"$nulls":15},"4040G00000 - TORIT SOUTH SUDAN"]
[null,null,"GL global contact point for UNICEF",{"$nulls":15},"4040H00000 - KWAJOK SOUTH SUDAN"]
[{"$nulls":18},"4040I00000 - BENTIU SOUTH SUDAN"]
[{"$nulls":18},"4040J00000 - AWEIL SOUTH SUDAN"]
[{"$nulls":18},"4040K00000 - YAMBIO SOUTH SUDAN"]
[{"$nulls":18},"4140A00000 - SYRIA"]
[{"$nulls":18},"4140B00000 - DAMASCUS SYRIA"]
[{"$nulls":18},"4140C00000 - ZO: HOMS"]
[{"$nulls":18},"4140D00000 - ZO: TARTOUS"]
[{"$nulls":18},"4140E00000 - ZO: QAMISHLI"]
[{"$nulls":18},"4140F00000 - ZO: DARA'A"]
[{"$nulls":18},"4140G00000 - ZO: DAMASCUS"]
[{"$nulls":18},"4140H00000 - ZO: ALEPPO"]
[{"$nulls":18},"4150A00000 - TAJIKISTAN"]
[{"$nulls":18},"4150B00000 - DUSHANBE TAJIKISTAN"]
[{"$nulls":18},"4200A00000 - THAILAND"]
[{"$nulls":18},"4200B00000 - BANGKOK THAILAND"]
[{"$nulls":18},"420RA00000 - EAPRO"]
[{"$nulls":18},"420RB00000 - REG SERV DIV EAPR"]
[{"$nulls":18},"4230A00000 - TOGO"]
[{"$nulls":18},"4230B00000 - LOME TOGO"]
[{"$nulls":18},"4320A00000 - TUNISIA"]
[{"$nulls":18},"4320B00000 - TUNIS TUNISIA"]
[{"$nulls":18},"4350A00000 - TURKEY"]
[{"$nulls":18},"4350B00000 - ANKARA TURKEY"]
[{"$nulls":18},"4350C00000 - GAZIANTEP TURKEY"]
[{"$nulls":18},"4360A00000 - REP. OF TURKMENISTAN"]
[{"$nulls":18},"4360B00000 - ASHKHABAD TM"]
[{"$nulls":18},"4380A00000 - UGANDA"]
[{"$nulls":18},"4380B00000 - KAMPALA UGANDA"]
[{"$nulls":18},"4380C00000 - FORT PORTAL"]
[{"$nulls":18},"4380D00000 - GULU"]
[{"$nulls":18},"4380E00000 - MOROTO"]
[{"$nulls":18},"4380F00000 - MBARARA"]
[{"$nulls":18},"4410A00000 - UKRAINE"]
[{"$nulls":18},"4410B00000 - KIEV UKRAINE"]
[{"$nulls":18},"4410C00000 - KHARKIV UKRAINE"]
[{"$nulls":18},"4410D00000 - DONETSK UKRAINE"]
[{"$nulls":18},"4410E00000 - MARIUPOL UKRAINE"]
[{"$nulls":18},"4410F00000 - KRAMATORSK UKRAINE"]
[{"$nulls":18},"4500A00000 - EGYPT"]
[{"$nulls":18},"4500B00000 - CAIRO EGYPT"]
[{"$nulls":18},"4500C00000 - ASYUT"]
[{"$nulls":18},"4550A00000 - TANZANIA UNITED REP"]
[{"$nulls":18},"4550B00000 - DAR ES SALAAM TZ"]
[{"$nulls":18},"4550C00000 - KIGOMA"]
[{"$nulls":18},"4550D00000 - ZANZIBAR"]
[{"$nulls":18},"4550E00000 - IRINGA TANZANIA"]
[{"$nulls":18},"456BB00000 - OED"]
[{"$nulls":18},"456BB00100 - OFFICE OF EXEC DIR"]
[{"$nulls":18},"456BB00200 - OFFICE OF THE OMBUDS"]
[{"$nulls":18},"456CC00000 - DPR"]
[{"$nulls":18},"456CC00100 - DIRECTOR'S OFFICE"]
[{"$nulls":18},"456CC00200 - DATA AND ANALYTICS"]
[{"$nulls":18},"456CC00300 - CPAKM DPS"]
[{"$nulls":18},"456CC00400 - GRCE"]
[{"$nulls":18},"456CC00500 - PSN DRP"]
[{"$nulls":18},"456CC00600 - SIBP DPS"]
[{"$nulls":18},"456CC00700 - STRATEGIC INFO"]
[{"$nulls":18},"456CC00800 - SPPG"]
[{"$nulls":18},"456CC00900 - RESEARCH"]
[{"$nulls":18},"456DD00000 - PROGRAMME DIVISION"]
[{"$nulls":18},"456DD00100 - DIRECTOR'S OFFICE"]
[{"$nulls":18},"456DD00200 - CHILD PROTECTION"]
[{"$nulls":18},"456DD00300 - CSP"]
[{"$nulls":18},"456DD00400 - HIV/AIDS SECTION"]
[{"$nulls":18},"456DD00500 - HEALTH SECTION"]
[{"$nulls":18},"456DD00600 - EDUCATION"]
[{"$nulls":18},"456DD00700 - NUTRITION"]
[{"$nulls":18},"456DD00800 - WATER AND SANITATION"]
[{"$nulls":18},"456DD00900 - GENDER AND RIGHTSPD"]
[{"$nulls":18},"456DD01000 - C4D"]
[{"$nulls":18},"456DD01100 - ADAP"]
[{"$nulls":18},"456DD01200 - DISABILITIES"]
[{"$nulls":18},"456DD01300 - SECRETARIATS PD"]
[{"$nulls":18},"456DD01400 - ECD PD"]
[{"$nulls":18},"456DD01500 - SIP PD"]
[{"$nulls":18},"456DD01600 - ENDVIOLCHILD"]
[{"$nulls":18},"456FF00000 - EMOPS"]
[{"$nulls":18},"456FF00100 - EMOPS NYHQ"]
[{"$nulls":18},"456FF00200 - EMOPS GENEVA"]
[{"$nulls":18},"456GG00000 - DOC"]
[{"$nulls":18},"456GG00100 - DIRECTOR'S OFFICE"]
[{"$nulls":18},"456GG00200 - BRAND SECTION"]
[{"$nulls":18},"456GG00300 - YOUNG PEOPLE"]
[{"$nulls":18},"456GG00400 - PRINT AND LANGUAGE"]
[{"$nulls":18},"456GG00500 - GAR DOC"]
[{"$nulls":18},"456GG00600 - MEDIA SECTION"]
[{"$nulls":18},"456GG00700 - DIGITAL STRATEGY"]
[{"$nulls":18},"456GG00800 - DEVELOP. PROF"]
[{"$nulls":18},"456GG00900 - PUBLIC AFFAIRS"]
[{"$nulls":18},"456GG01000 - PUBLICATIONS"]
[{"$nulls":18},"456GG01100 - INTERNAL COMM"]
[{"$nulls":18},"456GG01200 - SOCIAL & CIVIC MEDIA"]
[{"$nulls":18},"456GG01300 - PLANNING M&E OPS"]
[{"$nulls":18},"456GG01400 - BRAND BUILDING"]
[{"$nulls":18},"456GG01500 - MEDIA RELATIONS"]
[{"$nulls":18},"456HH00000 - GMA"]
[{"$nulls":18},"456HH00100 - DIRECTOR'S OFFICE"]
[{"$nulls":18},"456HH00200 - MSA"]
[{"$nulls":18},"456HH00300 - UN COHERENCE"]
[{"$nulls":18},"456HH00400 - OSEB"]
[{"$nulls":18},"456HH00500 - UNIA"]
[{"$nulls":18},"456II00000 - PPD"]
[{"$nulls":18},"456II00100 - PPD NEW YORK"]
[{"$nulls":18},"456II00200 - PPD BRUSSELS"]
[{"$nulls":18},"456II00300 - PPD TOKYO"]
[{"$nulls":18},"456II00400 - GOVT. PARTNERSHIPS"]
[{"$nulls":18},"456II00500 - M & I PARTNERSHIPS"]
[{"$nulls":18},"456II00600 - POST 2015"]
[{"$nulls":18},"456II00700 - PPD GENEVA"]
[{"$nulls":18},"456JJ00000 - DFAM"]
[{"$nulls":18},"456JJ00100 - COMPTROLLER'S OFFICE"]
[{"$nulls":18},"456JJ00200 - FINANCE SECTION"]
[{"$nulls":18},"456JJ00300 - ACCOUNTS SECTION"]
[{"$nulls":18},"456JJ00400 - BUDGET SECTION"]
[{"$nulls":18},"456JJ00500 - ADMIN SERVICES"]
[{"$nulls":18},"456JJ00600 - IPSAS"]
[{"$nulls":18},"456KK00000 - DHR"]
[{"$nulls":18},"456KK00100 - DIRECTOR'S OFFICE"]
[{"$nulls":18},"456KK00200 - STAFF WELL BEING SEC"]
[{"$nulls":18},"456KK00300 - MOBILITY & STAFFING"]
[{"$nulls":18},"456KK00400 - ORG LEARNING & DEV"]
[{"$nulls":18},"456KK00500 - HRSS"]
[{"$nulls":18},"456KK00600 - NETI"]
[{"$nulls":18},"456KK00700 - GLOBAL STAFF ASSOC"]
[{"$nulls":18},"456KK00800 - POLICY & ADMIN LAW"]
[{"$nulls":18},"456KK00900 - HRBP PP"]
[{"$nulls":18},"456KK01000 - HRPP OPERATIONS"]
[{"$nulls":18},"456KK01100 - HRBP ERCOD"]
[{"$nulls":18},"456KK01200 - HRBP EMERGENCIES"]
[{"$nulls":18},"456KK01300 - NY STAFF ASSOCIATION"]
[{"$nulls":18},"456KK01400 - UNICEF STAFF NEWS"]
[{"$nulls":18},"456KK01500 - ESRS DHR"]
[{"$nulls":18},"456KK01600 - RRS DHR"]
[{"$nulls":18},"456LL00000 - ITSSD"]
[{"$nulls":18},"456LL00100 - DIRECTOR'S OFFICE"]
[{"$nulls":18},"456LL00200 - PPPA"]
[{"$nulls":18},"456LL00300 - ADMINISTRATIVE SERV"]
[{"$nulls":18},"456LL00400 - IT KMS (INTERNET)"]
[{"$nulls":18},"456LL00500 - ITACFS"]
[{"$nulls":18},"456LL00600 - TECHNICAL ARCHI"]
[{"$nulls":18},"456LL00700 - IT OPERATIONS"]
[{"$nulls":18},"456LL00800 - IT SECURITY"]
[{"$nulls":18},"456LL00900 - ITAFS"]
[{"$nulls":18},"456NN00000 - OIAI"]
[{"$nulls":18},"456NN00100 - OIAI SECTION"]
[{"$nulls":18},"456OO00000 - EVALUATION OFFICE"]
[{"$nulls":18},"456OO00100 - EVALUATION OFFICE"]
[{"$nulls":18},"456QQ00000 - GSCC PROJECT"]
[{"$nulls":18},"456QQ00100 - GSCC PROJECT SECTION"]
[{"$nulls":18},"456RR00000 - FRG OFFICE"]
[{"$nulls":18},"456RR00100 - FRG SECTION"]
[{"$nulls":18},"456SS00000 - EB SECRETARY OFFICE"]
[{"$nulls":18},"456SS00100 - EB SECR OFF SECTION"]
[{"$nulls":18},"4590A00000 - BURKINA FASO"]
[{"$nulls":18},"4590B00000 - OUAGADOUGOU BF"]
[{"$nulls":18},"4590C00000 - DORI BURKINA FASO"]
[{"$nulls":18},"4620A00000 - URUGUAY"]
[{"$nulls":18},"4620B00000 - MONTEVIDEO URUGUAY"]
[{"$nulls":18},"4630A00000 - REP OF UZBEKISTAN"]
[{"$nulls":18},"4630B00000 - TASHKENT UZBEKISTAN"]
[{"$nulls":18},"4710A00000 - VENEZUELA"]
[{"$nulls":18},"4710B00000 - CARACAS VENEZUELA"]
[{"$nulls":18},"4920A00000 - YEMEN"]
[{"$nulls":18},"4920B00000 - SANA'A YEMEN"]
[{"$nulls":18},"4920C00000 - ADEN"]
[{"$nulls":18},"4920D00000 - HODAIDAH"]
[{"$nulls":18},"4920E00000 - TA'IZZ"]
[{"$nulls":18},"4920F00000 - SA'ADA"]
[{"$nulls":18},"4920G00000 - SEYOUN"]
[{"$nulls":18},"4920H00000 - HARAD"]
[{"$nulls":18},"4920I00000 - DHALE"]
[{"$nulls":18},"4920J00000 - IBB"]
[{"$nulls":18},"4920K00000 - MUKALAH YEMEN"]
[{"$nulls":18},"4980A00000 - ZAMBIA"]
[{"$nulls":18},"4980B00000 - LUSAKA ZAMBIA"]
[{"$nulls":18},"5070A00000 - BANGLADESH"]
[{"$nulls":18},"5070B00000 - DHAKA BANGLADESH"]
[{"$nulls":18},"5070C00000 - BARISAL"]
[{"$nulls":18},"5070D00000 - COMILLA"]
[{"$nulls":18},"5070E00000 - COX BAZAAR"]
[{"$nulls":18},"5070F00000 - JESSORE"]
[{"$nulls":18},"5070G00000 - MYMENSINGH"]
[{"$nulls":18},"5070H00000 - RANGAMATI"]
[{"$nulls":18},"5070I00000 - RANGPUR"]
[{"$nulls":18},"5070J00000 - SYLHET"]
[{"$nulls":18},"5070K00000 - THAKURGAON"]
[{"$nulls":18},"5070L00000 - BOGRA"]
[{"$nulls":18},"5070M00000 - CHITTAGONG"]
[{"$nulls":18},"5070N00000 - KHULNA"]
[{"$nulls":18},"5070P00000 - DHAKA CITY"]
[{"$nulls":18},"5150A00000 - DPR OF KOREA"]
[{"$nulls":18},"5150B00000 - PYONGYANG DPRK"]
[{"$nulls":18},"5200A00000 - VIETNAM"]
[{"$nulls":18},"5200B00000 - HANOI VIETNAM"]
[{"$nulls":18},"5200C00000 - HO CHI MINH CTY"]
[{"$nulls":18},"5640A00000 - MOLDOVA"]
[{"$nulls":18},"5640B00000 - CHISINAU MOLDOVA"]
[{"$nulls":18},"5750A00000 - PFP"]
[{"$nulls":18},"5750A00100 - COS IT"]
[{"$nulls":18},"5750A00101 - CODAS"]
[{"$nulls":18},"5750A00102 - SPICE"]
[{"$nulls":18},"5750A00103 - DIRECTOR'S OFFICE"]
[{"$nulls":18},"5750A00200 - COS OPERATIONS"]
[{"$nulls":18},"5750A00201 - DD O&F"]
[{"$nulls":18},"5750A00202 - FINANCE SECTION"]
[{"$nulls":18},"5750A00203 - PROCUREMENT"]
[{"$nulls":18},"5750A00300 - COS FINANCE"]
[{"$nulls":18},"5750A00301 - PFP HR"]
[{"$nulls":18},"5750A00400 - COS HUMAN RESOURCES"]
[{"$nulls":18},"5750A00500 - STRATEGIC PARTNRSHPS"]
[{"$nulls":18},"5750A00501 - DD PSE"]
[{"$nulls":18},"5750A00502 - CHILD RIGHTS & BUS."]
[{"$nulls":18},"5750A00503 - ADV & INNOV PSHIPS"]
[{"$nulls":18},"5750A00600 - CHILD RIGHT ADVOCACY"]
[{"$nulls":18},"5750A00601 - DD PSFR"]
[{"$nulls":18},"5750A00602 - MARKET KNOWLEDGE"]
[{"$nulls":18},"5750A00603 - FUNDRAISING SERVICES"]
[{"$nulls":18},"5750A00604 - GLOBAL PHILANTHROPY"]
[{"$nulls":18},"5750A00605 - PROGRAMME SERVICES"]
[{"$nulls":18},"5750A00606 - CORPORATE FUNDRSNG"]
[{"$nulls":18},"5750A00607 - MARKET DEVELOPMENT"]
[{"$nulls":18},"5750A00608 - INVESTMENT FUNDS"]
[{"$nulls":18},"5750A00700 - CORP SOCIAL RESP"]
[{"$nulls":18},"5750A00800 - COMM & BRAND POS"]
[{"$nulls":18},"5750A00901 - DD NAT COM RELATION"]
[{"$nulls":18},"5750A00902 - RELATIONSHIPS TEAM 1"]
[{"$nulls":18},"5750A00903 - RELATIONSHIPS TEAM 2"]
[{"$nulls":18},"5750A00906 - GOVERNANCE"]
[{"$nulls":18},"5750P00000 - PFP"]
[{"$nulls":18},"5750P00100 - GOV & SYS DIR'S OFF"]
[{"$nulls":18},"5750P00101 - COUNTRY OFFICE D&S"]
[{"$nulls":18},"5750P00102 - STRATEGIC PLANNING"]
[{"$nulls":18},"5750P00200 - MGT OF FIN.RESOURCES"]
[{"$nulls":18},"5750P00201 - DY. DIR FIN & OPS"]
[{"$nulls":18},"5750P00202 - FINANCE SECTION"]
[{"$nulls":18},"5750P00203 - PROCUREMENT"]
[{"$nulls":18},"5750P00204 - ALLOC COMMON SERV"]
[{"$nulls":18},"5750P00300 - MGT OF HUM CAP: HR"]
[{"$nulls":18},"5750P00400 - ADVOCACY"]
[{"$nulls":18},"5750P00500 - CORP SOCIAL RESP"]
[{"$nulls":18},"5750P00501 - MARKET DEVELOPMENT"]
[{"$nulls":18},"5750P00600 - STRATEGIC INFO & INV"]
[{"$nulls":18},"5750P00601 - DY.DIRCENTRLFUNDRSNG"]
[{"$nulls":18},"5750P00602 - MARKET KNOWLEDGE"]
[{"$nulls":18},"5750P00603 - CENTRL FUNDRSNG SERV"]
[{"$nulls":18},"5750P00604 - GLOBAL PHILANTHROPY"]
[{"$nulls":18},"5750P00605 - PROG-DONOR MATCHING"]
[{"$nulls":18},"5750P00606 - CORPORATE FUNDRSNG"]
[{"$nulls":18},"5750P00607 - MARKET DEVELOPMENT"]
[{"$nulls":18},"5750P00700 - SALES OF CARDS&PRODS"]
[{"$nulls":18},"5750P00701 - DY.DIR CARDS & PRODS"]
[{"$nulls":18},"5750P00702 - GLOBAL SUPPLY CHAIN"]
[{"$nulls":18},"5750P00703 - QUALITY MANAGEMENT"]
[{"$nulls":18},"5750P00704 - GLOBL MKTG & BUS DEV"]
[{"$nulls":18},"5750P00800 - COMM & BRAND POS"]
[{"$nulls":18},"5750P00900 - STRATEGIC DIRECTION"]
[{"$nulls":18},"5750P00901 - DY.DIR NATL COM REL"]
[{"$nulls":18},"5750P00902 - RELATIONSHIPS TEAM 1"]
[{"$nulls":18},"5750P00903 - RELATIONSHIPS TEAM 2"]
[{"$nulls":18},"5750P00904 - RELATIONSHIPS TEAM 3"]
[{"$nulls":18},"5750P00905 - RELATIONSHIPS TEAM 4"]
[{"$nulls":18},"5750P00906 - GOVERNANCE"]
[{"$nulls":18},"575CA00000 - GENEVA COS"]
[{"$nulls":18},"575CA00100 - COS IT"]
[{"$nulls":18},"575CA00200 - COS OPERATIONS"]
[{"$nulls":18},"575CA00300 - COS FINANCE"]
[{"$nulls":18},"575CA00400 - COS HUMAN RESOURCES"]
[{"$nulls":18},"575RA00000 - CEE/CIS"]
[{"$nulls":18},"575RB00000 - REG SERV DIVCEE/CIS"]
[{"$nulls":18},"575RC00000 - MOSCOW RUSSIA PO"]
[{"$nulls":18},"6110A00000 - BELIZE"]
[{"$nulls":18},"6110B00000 - BELIZE CITY BELIZE"]
[{"$nulls":18},"6260A00000 - ZIMBABWE"]
[{"$nulls":18},"6260B00000 - HARARE ZIMBABWE"]
[{"$nulls":18},"6260C00000 - BULAWAYO ZIMBABWE"]
[{"$nulls":18},"6350A00000 - OMAN"]
[{"$nulls":18},"6350B00000 - MUSCAT OMAN"]
[{"$nulls":18},"6490A00000 - PAPUA NEW GUINEA"]
[{"$nulls":18},"6490B00000 - PORT MORESBY PNG"]
[{"$nulls":18},"6490C00000 - BUKA"]
[{"$nulls":18},"6490D00000 - GOROKA"]
[{"$nulls":18},"6620A00000 - COMOROS"]
[{"$nulls":18},"6620B00000 - MORONI COMOROS"]
[{"$nulls":18},"6690A00000 - DJIBOUTI"]
[{"$nulls":18},"6690B00000 - DJIBOUTI DJIBOUTI"]
[{"$nulls":18},"6810A00000 - ANGOLA"]
[{"$nulls":18},"6810B00000 - LUANDA ANGOLA"]
[{"$nulls":18},"6810C00000 - KUNENE"]
[{"$nulls":18},"6810D00000 - LUBANGO"]
[{"$nulls":18},"6810E00000 - LUENA"]
[{"$nulls":18},"6810F00000 - KUITO BIE"]
[{"$nulls":18},"6820A00000 - CABO VERDE"]
[{"$nulls":18},"6820B00000 - PRAIA CABO VERDE"]
[{"$nulls":18},"6830A00000 - SAO TOME PRINCIPE"]
[{"$nulls":18},"6830B00000 - SAO TOME STP"]
[{"$nulls":18},"6850A00000 - GUINEA BISSAU"]
[{"$nulls":18},"6850B00000 - BISSAUGUINEA BISSAU"]
[{"$nulls":18},"6890A00000 - REP. OF MOZAMBIQUE"]
[{"$nulls":18},"6890B00000 - MAPUTO MOZAMBIQUE"]
[{"$nulls":18},"6980A00000 - NAMIBIA"]
[{"$nulls":18},"6980B00000 - WINDHOEK NAMIBIA"]
[{"$nulls":18},"7050A00000 - STATE OF PALESTINE"]
[{"$nulls":18},"7050B00000 - EAST JERUSALEM"]
[{"$nulls":18},"7050C00000 - GAZA"]
[{"$nulls":18},"7050D00000 - HEBRON"]
[{"$nulls":18},"7050E00000 - KHAN YUNIS"]
[{"$nulls":18},"7050F00000 - NABLUS"]
[{"$nulls":18},"7050G00000 - RAFAH"]
[{"$nulls":18},"7050H00000 - RAMALLAH"]
[{"$nulls":18},"7060A00000 - TIMOR-LESTE"]
[{"$nulls":18},"7060B00000 - DILI TIMOR-LESTE"]
[{"$nulls":18},"8950A00000 - REP. OF MONTENEGRO"]
[{"$nulls":18},"8950B00000 - PODGORICAMONTENEGRO"]
[{"$nulls":18},"8970A00000 - REPUBLIC OF SERBIA"]
[{"$nulls":18},"8970B00000 - BELGRADE  SERBIA"]
[{"$nulls":18},"8971A00000 - KOSOVO"]
[{"$nulls":18},"8971B00000 - PRISTINA KOSOVO"]
[{"$nulls":18},"8971C00000 - ZVECAN KOSOVO"]

{"sheet":"Validation","index":3,"n_rows":753,"n_cols":13,"rows_kept":753,"cut":false,"hidden":true,"merged":[[2,11,3,11]]}
["Business_Area","Organizational_unit",{"$nulls":10},"Business_Area"]
["… Select","… Select",{"$nulls":8},"0520 - Botswana","5964 - Programme Section, Yerevan","… Select"]
["0060 - Afghanistan","1505 - Jalalabad, Afghanistan","0060H00000","006","0064","006400001505        ",{"$nulls":6},"0060 - Afghanistan"]
["0060 - Afghanistan","1601 - Mezar-I-Sharif, Afghanistan","0060I00000","006","0061","006100001601        ",{"$nulls":6},"0090 - Albania"]
["0060 - Afghanistan","1705 - Herat, Afghanistan","0060O00000","006","0062","006200001705        ",{"$nulls":6},"0120 - Algeria"]
["0060 - Afghanistan","1706 - Faizabad, Afghanistan","0060J00000","006","006C","006C00001706        ",{"$nulls":6},"0240 - Argentina"]
["0060 - Afghanistan","1720 - Kandahar, Afghanistan","0060M00000","006","0063","006300001720        ",{"$nulls":6},"0260 - Armenia"]
["0060 - Afghanistan","2062 - Afghanistan","0060A00000","006","0060","006000002062        ",{"$nulls":6},"0310 - Azerbaijan"]
["0060 - Afghanistan","325 - Kabul, Afghanistan","0060B00000","006","0060","006000000325        ",{"$nulls":6},"0420 - Barbados"]
["0060 - Afghanistan","3263 - Daikundi, Afghanistan","0060E00000","006","006I","006I00003263        ",{"$nulls":6},"0490 - Bhutan"]
["0060 - Afghanistan","3267 - Ghor, Afghanistan","0060R00000","006","006K","006K00003267        ",{"$nulls":6},"0510 - Bolivia"]
["0060 - Afghanistan","3275 - Faryab, Afghanistan","0060K00000","006","006J","006J00003275        ",{"$nulls":6},"0520 - Botswana"]
["0060 - Afghanistan","3577 - Nimroz, Afghanistan","0060N00000","006","006S","006S00003577        ",{"$nulls":6},"0530 - Bosnia and Herzegovina"]
["0060 - Afghanistan","4004 - Kabul Central Zone","0060C00000","006","0060","006000004004        ",{"$nulls":6},"0540 - Brazil"]
["0060 - Afghanistan","8899 - Badghis, Afghanistan","0060P00000","006","006H","006H00008899        ",{"$nulls":6},"0570 - Bulgaria"]
["0060 - Afghanistan","8901 - Farah, Afghanistan","0060Q00000","006","006R","006R00008901        ",{"$nulls":6},"0600 - Myanmar"]
["0060 - Afghanistan","8903 - Gardez, Afghanistan","0060F00000","006","006F","006F00008903        ",{"$nulls":6},"0610 - Burundi"]
["0060 - Afghanistan","8907 - Bamyan, Afghanistan","0060D00000","006","0066","006600008907        ",{"$nulls":6},"0630 - Belarus"]
["0090 - Albania","2100 - Albania","0090A00000","009","0090","009000002100        ",{"$nulls":6},"0660 - Cambodia"]
["0090 - Albania","380 - Tirana, Albania","0090B00000","009","0090","009000000380        ",{"$nulls":6},"0690 - Republic of Cameroon"]
["0120 - Algeria","2068 - Algeria","0120A00000","012","0120","012000002068        ",{"$nulls":6},"0750 - Central African Republic"]
["0120 - Algeria","355 - Algiers, Algeria","0120B00000","012","0120","012000000355        ",{"$nulls":6},"0780 - Sri Lanka"]
["0240 - Argentina","1600 - Buenos Aires, Argentina","0240B00000","024","0240","024000001600        ",{"$nulls":6},"0810 - Chad"]
["0240 - Argentina","2108 - Argentina","0240A00000","024","0240","024000002108        ",{"$nulls":6},"0840 - Chile"]
["0240 - Argentina","2226 - Southern Cone Hub","0240C00000","024","0240","024000002226        ",{"$nulls":6},"0860 - China"]
["0260 - Armenia","1607 - Yerevan, Armenia","0260B00000","026","0260","026000001607        ",{"$nulls":6},"0930 - Colombia"]
["0260 - Armenia","2101 - Armenia","0260A00000","026","0260","026000002101        ",{"$nulls":6},"0990 - Democratic Republic of Congo"]
["0310 - Azerbaijan","1608 - Baku, Azerbaijan","0310B00000","031","0310","031000001608        ",{"$nulls":6},"1020 - Costa Rica"]
["0310 - Azerbaijan","2086 - Azerbaijan","0310A00000","031","0310","031000002086        ",{"$nulls":6},"1030 - Croatia"]
["0420 - Barbados","2107 - Barbados (Caribbean Group)","0420A00000","042","0420","042000002107        ",{"$nulls":6},"1050 - Cuba"]
["0420 - Barbados","310 - Bridgetown, Barbados","0420B00000","042","0420","042000000310        ",{"$nulls":6},"1170 - Benin"]
["0420 - Barbados","9004 - Port of Spain, Trinidad & Tobago","0420C00000","429","4290","429000009004        ",{"$nulls":6},"1200 - Denmark"]
["0490 - Bhutan","2065 - Bhutan","0490A00000","049","0490","049000002065        ",{"$nulls":6},"1260 - Dominican Republic"]
["0490 - Bhutan","361 - Thimphu, Bhutan","0490B00000","049","0490","049000000361        ",{"$nulls":6},"1350 - Ecuador"]
["0510 - Bolivia","1688 - Cochabamba, Bolivia","0510C00000","051","0511","051100001688        ",{"$nulls":6},"1380 - El Salvador"]
["0510 - Bolivia","2114 - Bolivia","0510A00000","051","0510","051000002114        ",{"$nulls":6},"1390 - Equatorial Guinea"]
["0510 - Bolivia","2512 - Sucre,Bolivia","0510D00000","051","0512","051200002512        ",{"$nulls":6},"1410 - Ethiopia"]
["0510 - Bolivia","2513 - Programme Section, Sucre Bolivia","3120D00000","051","0512","051200002513        ",{"$nulls":6},"1420 - Eritrea"]
["0510 - Bolivia","376 - La Paz, Bolivia","0510B00000","051","0510","051000000376        ",{"$nulls":6},"1430 - Fiji (Pacific Islands)"]
["0520 - Botswana","2030 - Botswana","0520A00000","052","0520","052000002030        ",{"$nulls":6},"1530 - Gabon"]
["0520 - Botswana","349 - Gaborone, Botswana","0520B00000","052","0520","052000000349        ",{"$nulls":6},"1560 - Gambia"]
["0530 - Bosnia and Herzegovina","1755 - Banja Luka, Bosnia & Herzegovina","0530C00000","053","0532","053200001755        ",{"$nulls":6},"1600 - Georgia"]
["0530 - Bosnia and Herzegovina","2095 - Bosnia and Herzegovina","0530A00000","053","0530","053000002095        ",{"$nulls":6},"1620 - Ghana"]
["0530 - Bosnia and Herzegovina","322 - Sarajevo, Bosnia & Herzegovina","0530B00000","053","0530","053000000322        ",{"$nulls":6},"1680 - Guatemala"]
["0540 - Brazil","1529 - Recife, Brazil","0540F00000","054","0546","054600001529        ",{"$nulls":6},"1770 - Guinea"]
["0540 - Brazil","1530 - Sao Luis, Brazil","0540H00000","054","0547","054700001530        ",{"$nulls":6},"1800 - Guyana"]
["0540 - Brazil","1546 - Salvador, Brazil","0540G00000","054","0548","054800001546        ",{"$nulls":6},"1830 - Haiti"]
["0540 - Brazil","1556 - Rio de Janeiro, Brazil","0540J00000","054","0541","054100001556        ",{"$nulls":6},"1860 - Honduras"]
["0540 - Brazil","1557 - Sao Paulo, Brazil","0540I00000","054","0545","054500001557        ",{"$nulls":6},"1950 - Global Shared Service Center"]
["0540 - Brazil","1578 - Belem, Brazil","0540C00000","054","054C","054C00001578        ",{"$nulls":6},"2040 - India"]
["0540 - Brazil","1583 - Fortaleza, Brazil","0540D00000","054","054A","054A00001583        ",{"$nulls":6},"2070 - Indonesia"]
["0540 - Brazil","2106 - Brazil","0540A00000","054","0540","054000002106        ",{"$nulls":6},"2100 - Iran"]
["0540 - Brazil","352 - Brasilia, Brazil","0540B00000","054","0540","054000000352        ",{"$nulls":6},"2130 - Iraq"]
["0540 - Brazil","3976 - Manaus, Brazil","0540E00000","054","054D","054D00003976        ",{"$nulls":6},"2220 - Office of Research, Italy"]
["0570 - Bulgaria","2097 - Bulgaria","0570A00000","057","0570","057000002097        ",{"$nulls":6},"2250 - Cote D'Ivoire"]
["0570 - Bulgaria","8920 - Sofia, Bulgaria","0570B00000","057","0570","057000008920        ",{"$nulls":6},"2280 - Jamaica"]
["0600 - Myanmar","2057 - Myanmar","0600A00000","060","0600","060000002057        ",{"$nulls":6},"2340 - Jordan"]
["0600 - Myanmar","2475 - Hakha, Myanmar","0600L00000","060","0605","060500002475        ",{"$nulls":6},"234R - MENA, Jordan"]
["0600 - Myanmar","2478 - Dawei, Myanmar","0600M00000","060","060B","060B00002478        ",{"$nulls":6},"2390 - Kazakhstan"]
["0600 - Myanmar","3165 - Maungdaw, Myanmar","0600J00000","060","060D","060D00003165        ",{"$nulls":6},"2400 - Kenya"]
["0600 - Myanmar","3168 - Lashio, Myanmar","0600K00000","060","0609","060900003168        ",{"$nulls":6},"240B - Office of Global Innovation"]
["0600 - Myanmar","3226 - Kengtung, Myanmar","0600D00000","060","060J","060J00003226        ",{"$nulls":6},"240R - ESARO, Kenya"]
["0600 - Myanmar","3228 - Mawlamyine, Myanmar","0600F00000","060","060K","060K00003228        ",{"$nulls":6},"2450 - Republic of Kyrgyzstan"]
["0600 - Myanmar","347 - Yangon, Myanmar","0600B00000","060","0600","060000000347        ",{"$nulls":6},"2460 - Lao People's Dem Rep."]
["0600 - Myanmar","4207 - Myeik, Myanmar","0600G00000","060","060R","060R00004207        ",{"$nulls":6},"2490 - Lebanon"]
["0600 - Myanmar","8778 - Mandalay, Myanmar","0600E00000","060","0608","060800008778        ",{"$nulls":6},"2520 - Lesotho"]
["0600 - Myanmar","8779 - Taunggyi, Myanmar","0600I00000","060","060A","060A00008779        ",{"$nulls":6},"2550 - Liberia"]
["0600 - Myanmar","8782 - Myitkyina, Myanmar","0600H00000","060","0607","060700008782        ",{"$nulls":6},"2580 - Libya"]
["0600 - Myanmar","8797 - Kalay, Myanmar","0600C00000","060","060C","060C00008797        ",{"$nulls":6},"2660 - Macedonia"]
["0610 - Burundi","2028 - Burundi","0610A00000","061","0610","061000002028        ",{"$nulls":6},"2670 - Madagascar"]
["0610 - Burundi","326 - Bujumbura, Burundi","0610B00000","061","0610","061000000326        ",{"$nulls":6},"2690 - Malawi"]
["0610 - Burundi","4640 - Gitega, Burundi","0610C00000","061","0611","061100004640        ",{"$nulls":6},"2700 - Malaysia"]
["0630 - Belarus","1767 - Minsk, Belarus","0630B00000","063","0630","063000001767        ",{"$nulls":6},"2740 - Maldives"]
["0630 - Belarus","2092 - Belarus","0630A00000","063","0630","063000002092        ",{"$nulls":6},"2760 - Mali"]
["0660 - Cambodia","1727 - Battambang, Cambodia","0660C00000","066","0661","066100001727        ",{"$nulls":6},"2820 - Mauritania"]
["0660 - Cambodia","2052 - Cambodia","0660A00000","066","0660","066000002052        ",{"$nulls":6},"2850 - Mexico"]
["0660 - Cambodia","3153 - Preah Sihanouk, Cambodia","0660D00000","066","0669","066900003153        ",{"$nulls":6},"2880 - Mongolia"]
["0660 - Cambodia","3156 - Siem Reap, Cambodia","0660E00000","066","0664","066400003156        ",{"$nulls":6},"2910 - Morocco"]
["0660 - Cambodia","3159 - Kampong Cham, Cambodia","0660F00000","066","0669","066900003159        ",{"$nulls":6},"2970 - Nepal"]
["0660 - Cambodia","3162 - Phnom Penh Zone - South Eastern Province","0660G00000","066","0660","066000003162        ",{"$nulls":6},"297R - ROSA, Nepal"]
["0660 - Cambodia","370 - Phnom Penh, Cambodia","0660B00000","066","0660","066000000370        ",{"$nulls":6},"3120 - Nicaragua"]
["0690 - Republic of Cameroon","2023 - Republic of Cameroon","0690A00000","069","0690","069000002023        ",{"$nulls":6},"3180 - Niger"]
["0690 - Republic of Cameroon","2962 - Maroua, Cameroon","0690G00000","069","0696","069600002962        ",{"$nulls":6},"3210 - Nigeria"]
["0690 - Republic of Cameroon","303 - Yaounde, Republic of Cameroon","0690B00000","069","0690","069000000303        ",{"$nulls":6},"3300 - Pakistan"]
["0690 - Republic of Cameroon","3788 - Bertoua, Cameroon","0690E00000","069","0694","069400003788        ",{"$nulls":6},"3330 - Panama"]
["0690 - Republic of Cameroon","4502 - Douala, Cameroon","0690C00000","069","0691","069100004502        ",{"$nulls":6},"333R - LACRO, Panama"]
["0750 - Central African Republic","1581 - Bossangoa, Central African Republic","0750C00000","075","0751","075100001581        ",{"$nulls":6},"3360 - Paraguay"]
["0750 - Central African Republic","2008 - Central African Republic","0750A00000","075","0750","075000002008        ",{"$nulls":6},"3380 - Congo"]
["0750 - Central African Republic","2275 - Bambari, Central African Republic","0750E00000","075","0757","075700002275        ",{"$nulls":6},"3390 - Peru"]
["0750 - Central African Republic","2377 - Bouar, Central African Republic","0750F00000","075","075B","075B00002377        ",{"$nulls":6},"3420 - Philippines"]
["0750 - Central African Republic","2380 - Ndele, Central African Republic","0750G00000","075","075G","075G00002380        ",{"$nulls":6},"3660 - Romania"]
["0750 - Central African Republic","2383 - Zemio, Central African Republic","0750H00000","075","075I","075I00002383        ",{"$nulls":6},"3750 - Rwanda"]
["0750 - Central African Republic","348 - Bangui, Central African Republic","0750B00000","075","0750","075000000348        ",{"$nulls":6},"3780 - Saudi Arabia"]
["0750 - Central African Republic","8773 - Kanga Bandoro, Central African Republic","0750D00000","075","0752","075200008773        ",{"$nulls":6},"3810 - Senegal"]
["0780 - Sri Lanka","2059 - Sri Lanka","0780A00000","078","0780","078000002059        ",{"$nulls":6},"381R - WCARO, Senegal"]
["0780 - Sri Lanka","315 - Colombo, Sri Lanka","0780B00000","078","0780","078000000315        ",{"$nulls":6},"3900 - Sierra Leone"]
["0780 - Sri Lanka","8860 - Battilcaloa, Sri Lanka","0780C00000","078","0785","078500008860        ",{"$nulls":6},"3920 - Somalia"]
["0780 - Sri Lanka","8862 - Killinochchi, Sri Lanka","0780F00000","078","0786","078600008862        ",{"$nulls":6},"3930 - South Africa"]
["0810 - Chad","2018 - Chad","0810A00000","081","0810","081000002018        ",{"$nulls":6},"4020 - Sudan"]
["0810 - Chad","2550 - Sarh, CHAD","0810G00000","081","0812","081200002550        ",{"$nulls":6},"4030 - Swaziland"]
["0810 - Chad","2958 - Bol, Chad","0810H00000","081","0819","081900002958        ",{"$nulls":6},"4040 - South Sudan"]
["0810 - Chad","2965 - Bagassola, Chad","0810I00000","081","0819","081900002965        ",{"$nulls":6},"4140 - Syria"]
["0810 - Chad","360 - N'Djamena, Chad","0810B00000","081","0810","081000000360        ",{"$nulls":6},"4150 - Tajikistan"]
["0810 - Chad","3791 - Moundou, Chad","0810D00000","081","081R","081R00003791        ",{"$nulls":6},"4200 - Thailand"]
["0810 - Chad","3794 - Mongo, Chad","0810E00000","081","0813","081300003794        ",{"$nulls":6},"420R - EAPRO, Thailand"]
["0810 - Chad","3797 - Mao, Chad","0810F00000","081","0814","081400003797        ",{"$nulls":6},"4230 - Togo"]
["0810 - Chad","9019 - Abeche, Chad","0810C00000","081","0811","081100009019        ",{"$nulls":6},"4320 - Tunisia"]
["0840 - Chile","2123 - Chile","0840A00000","084","0840","084000002123        ",{"$nulls":6},"4350 - Turkey"]
["0840 - Chile","314 - Santiago, Chile","0840B00000","084","0840","084000000314        ",{"$nulls":6},"4360 - Rep. of Turkmenistan"]
["0860 - China","2045 - China","0860A00000","086","0860","086000002045        ",{"$nulls":6},"4380 - Uganda"]
["0860 - China","317 - Beijing, China","0860B00000","086","0860","086000000317        ",{"$nulls":6},"4410 - Ukraine"]
["0860 - China","3279 - Shanghai, China","0860C00000","086","0869","086900003279        ",{"$nulls":6},"4500 - Egypt"]
["0930 - Colombia","2105 - Colombia","0930A00000","093","0930","093000002105        ",{"$nulls":6},"4550 - United Rep. of Tanzania"]
["0930 - Colombia","2202 - Cali Zone Office, Colombia","0930F00000","093","0931","093100002202        ",{"$nulls":6},"456B - Executive Director's Office"]
["0930 - Colombia","309 - Bogota, Colombia","0930B00000","093","0930","093000000309        ",{"$nulls":6},"456C - Data, Research and Policy"]
["0930 - Colombia","4280 - Quibdo, Colombia","0930D00000","093","0939","093900004280        ",{"$nulls":6},"456D - Programme Division"]
["0990 - Democratic Republic of Congo","1528 - Bukavu, Democratic Republic of Congo","0990D00000","099","0991","099100001528        ",{"$nulls":6},"456F - Office of Emergency Prog."]
["0990 - Democratic Republic of Congo","1554 - Lubumbashi, Democratic Republic of Congo","0990K00000","099","0993","099300001554        ",{"$nulls":6},"456G - Division of Communication"]
["0990 - Democratic Republic of Congo","1585 - Mbuji Mayi, Democratic Republic of Congo","0990N00000","099","0997","099700001585        ",{"$nulls":6},"456H - Gov. & Multilateral  Affairs"]
["0990 - Democratic Republic of Congo","1763 - Kananga, Democratic Republic of Congo","0990I00000","099","0998","099800001763        ",{"$nulls":6},"456I - Public Partnerships Division"]
["0990 - Democratic Republic of Congo","1764 - Goma, Democratic Republic of Congo","0990G00000","099","099A","099A00001764        ",{"$nulls":6},"456J - Div. of Finance & Admin Mgmt"]
["0990 - Democratic Republic of Congo","2015 - Democratic Republic of Congo","0990A00000","099","0990","099000002015        ",{"$nulls":6},"456K - Division of Human Resources"]
["0990 - Democratic Republic of Congo","2556 - Libenge, Democratic Republic of Congo","0990P00000","099","099T","099T00002556        ",{"$nulls":6},"456L - InfoTech Solutions & Services"]
["0990 - Democratic Republic of Congo","2559 - Beni, Democratic Republic of Congo","0990Q00000","099","099J","099J00002559        ",{"$nulls":6},"456N - Int. Audit & Invest (OIAI)"]
["0990 - Democratic Republic of Congo","333 - Kinshasa, Dem. Rep. of Congo","0990B20000","099","0990","099000000333        ",{"$nulls":6},"456O - Evaluation Office"]
["0990 - Democratic Republic of Congo","3556 - Bandundu, Dem Republic of Congo","0990C00000","099","B099","B09900003556        ",{"$nulls":6},"456Q - GSSC Project"]
["0990 - Democratic Republic of Congo","3800 - Maniema, Democratic Republic of Congo","0990O00000","099","0999","099900003800        ",{"$nulls":6},"456R - Field Results Group Office"]
["0990 - Democratic Republic of Congo","3916 - Kalemie, Dem. Republic of Congo","0990H00000","099","099H","099H00003916        ",{"$nulls":6},"456S - OSEB"]
["0990 - Democratic Republic of Congo","3922 - Mbandaka, Dem Republic of Congo","0990M00000","099","099L","099L00003922        ",{"$nulls":6},"456T - UNICEF Hosted Funds"]
["0990 - Democratic Republic of Congo","4802 - Dungu, Democratic Rep of Congo","0990F00000","099","I099","I09900004802        ",{"$nulls":6},"4590 - Burkina Faso"]
["0990 - Democratic Republic of Congo","8552 - Kisangani, Democratic Republic of Congo","0990J00000","099","099B","099B00008552        ",{"$nulls":6},"4620 - Uruguay"]
["0990 - Democratic Republic of Congo","8771 - Matadi, Democratic Republic of Congo","0990L00000","099","099D","099D00008771        ",{"$nulls":6},"4630 - Rep of Uzbekistan"]
["0990 - Democratic Republic of Congo","8968 - Bunia, Democratic Republic of Congo","0990E00000","099","099G","099G00008968        ",{"$nulls":6},"4710 - Venezuela"]
["1020 - Costa Rica","1573 - San Jose, Costa Rica","1020B00000","102","1020","102000001573        ",{"$nulls":6},"4920 - Yemen"]
["1020 - Costa Rica","2121 - Costa Rica","1020A00000","102","1020","102000002121        ",{"$nulls":6},"4980 - Zambia"]
["1030 - Croatia","1730 - Zagreb, Croatia","1030B00000","103","1031","103100001730        ",{"$nulls":6},"5070 - Bangladesh"]
["1030 - Croatia","2150 - Croatia","1030A00000","575","5750","575000002150        ",{"$nulls":6},"5150 - DP Republic of Korea"]
["1050 - Cuba","1716 - Havana, Cuba","1050B00000","105","1050","105000001716        ",{"$nulls":6},"5200 - Vietnam"]
["1050 - Cuba","2112 - Cuba","1050A00000","105","1050","105000002112        ",{"$nulls":6},"5640 - Moldova"]
["1170 - Benin","2013 - Benin","1170A00000","117","1170","117000002013        ",{"$nulls":6},"5750 - Switzerland"]
["1170 - Benin","354 - Cotonou, Benin","1170B00000","117","1170","117000000354        ",{"$nulls":6},"575R - CEE/CIS"]
["1170 - Benin","8917 - Parakou, Benin","1170C00000","117","1174","117400008917        ",{"$nulls":6},"6110 - Belize"]
["1200 - Denmark","2326 - Markets,Finance & Strategic Data Unit","1200A03100","120","1200","120000002326        ",{"$nulls":6},"6260 - Zimbabwe"]
["1200 - Denmark","2327 - International Transport Unit","1200A03200","120","1200","120000002327        ",{"$nulls":6},"6350 - Oman"]
["1200 - Denmark","2986 - Supply Chain Strengthening","1200A03000","120","1200","120000002986        ",{"$nulls":6},"6490 - Papua New Guinea"]
["1200 - Denmark","3080 - Supply Division, COPENHAGEN","1200A00000","120","1200","120000003080        ",{"$nulls":6},"6620 - Comoros"]
["1200 - Denmark","3402 - Country Support Centre, Copenhagen","1200A01300","120","1200","120000003402        ",{"$nulls":6},"6690 - Djibouti"]
["1200 - Denmark","3403 - Vaccine Centre, Copenhagen","1200A02300","120","1200","120000003403        ",{"$nulls":6},"6810 - Angola"]
["1200 - Denmark","3404 - Medical & Nutrition Centre, Copenhagen","1200A02400","120","1200","120000003404        ",{"$nulls":6},"6830 - Sao Tome & Principe"]
["1200 - Denmark","3405 - Water, Sanit & Educ Centre, Copenhagen","1200A02500","120","1200","120000003405        ",{"$nulls":6},"6850 - Guinea Bissau"]
["1200 - Denmark","3764 - Innovation Unit","1200A02800","120","1200","120000003764        ",{"$nulls":6},"6890 - Republic of Mozambique"]
["1200 - Denmark","3765 - Emergency Unit II","1200A02900","120","1200","120000003765        ",{"$nulls":6},"6980 - Namibia"]
["1200 - Denmark","4402 - Health Technology Centre","1200A02600","120","1200","120000004402        ",{"$nulls":6},"7050 - Palestine, State of"]
["1200 - Denmark","4402 - Medical & Nutrition Centre, CPH","1200A02600","120","1200","120000004402        ",{"$nulls":6},"7060 - Timor-Leste"]
["1200 - Denmark","4629 - Knowledge Management Centre","1200A02700","120","1200","120000004629        ",{"$nulls":6},"8950 - Republic of Montenegro"]
["1200 - Denmark","6069 - Fin Mgmt and Budget Centre, COPENHAGEN","1200A00800","120","1200","120000006069        ",{"$nulls":6},"8970 - Serbia"]
["1200 - Denmark","6072 - Contracting Centre, COPENHAGEN","1200A00400","120","1200","120000006072        ",{"$nulls":6},"8971 - Kosovo"]
["1200 - Denmark","6075 - Director's Office, COPENHAGEN","1200A00100","120","1200","120000006075        "]
["1200 - Denmark","6076 - Operational Analysis & Technology Centre","1200A00900","120","1200","120000006076        "]
["1200 - Denmark","6077 - Quality Assurance Centre, COPENHAGEN","1200A00600","120","1200","120000006077        "]
["1200 - Denmark","6080 - Logistics Centre, COPENHAGEN","1200A00300","120","1200","120000006080        "]
["1200 - Denmark","6083 - Human Resources and Admin Centre, CPH","1200A00700","120","1200","120000006083        "]
["1200 - Denmark","8444 - Procurement Services Team, Copenhagen","120XA00000","120","1200","120000008444        "]
["1200 - Denmark","8759 - New York Supply Centre (Supply Division)","1200A02000","456","4560","456000008759        "]
["1260 - Dominican Republic","2124 - Dominican Republic","1260A00000","126","1260","126000002124        "]
["1260 - Dominican Republic","339 - Santo Domingo, Dominican Republic","1260B00000","126","1260","126000000339        "]
["1350 - Ecuador","2120 - Ecuador","1350A00000","135","1350","135000002120        "]
["1350 - Ecuador","2878 - Esmeralda, Ecuador","1350D00000","135","1358","135800002878        "]
["1350 - Ecuador","2883 - Pedernales, Ecuador","1350E00000","135","135B","135B00002883        "]
["1350 - Ecuador","338 - Quito, Ecuador","1350B00000","135","1350","135000000338        "]
["1350 - Ecuador","8955 - Guayaquil, Ecuador","1350C00000","135","1351","135100008955        "]
["1380 - El Salvador","1592 - San Salvador, El Salvador","1380B00000","138","1380","138000001592        "]
["1380 - El Salvador","2122 - El Salvador","1380A00000","138","1380","138000002122        "]
["1390 - Equatorial Guinea","1577 - Malabo, Equatorial Guinea","1390B00000","139","1390","139000001577        "]
["1390 - Equatorial Guinea","2002 - Equatorial Guinea","1390A00000","139","1390","139000002002        "]
["1410 - Ethiopia","1532 - Bahir Dar, Ethiopia","1410E00000","141","141D","141D00001532        "]
["1410 - Ethiopia","1655 - Awasa, Ethiopia","1410D00000","141","1417","141700001655        "]
["1410 - Ethiopia","1760 - Mekelle, Ethiopia","1410H00000","141","141L","141L00001760        "]
["1410 - Ethiopia","2025 - Ethiopia","1410A00000","141","1410","141000002025        "]
["1410 - Ethiopia","2336 - Oromiya (Addis Ababa Zone), Ethiopia","1410B10000","141","1410","141000002336        "]
["1410 - Ethiopia","328 - Addis Ababa, Ethiopia","1410B00000","141","1410","141000000328        "]
["1410 - Ethiopia","3677 - Semera, Ethiopia","1410I00000","141","B141","B14100003677        "]
["1410 - Ethiopia","3805 - Gode, Ethiopia","1410J00000","141","F141","F14100003805        "]
["1410 - Ethiopia","3808 - Kebridehar, Ethiopia","1410K00000","141","G141","G14100003808        "]
["1410 - Ethiopia","3954 - Dollo Ado, Ethiopia","1410L00000","141","D141","D14100003954        "]
["1410 - Ethiopia","7025 - Asosa, Ethiopia","1410C00000","141","1416","141600007025        "]
["1410 - Ethiopia","8745 - Jijiga, Ethiopia","1410G00000","141","1418","141800008745        "]
["1410 - Ethiopia","9079 - Gambela, Ethiopia","1410F00000","141","1412","141200009079        "]
["1420 - Eritrea","2027 - Eritrea","1420A00000","142","1413","141300002027        "]
["1420 - Eritrea","385 - Asmara, Eritrea","1420B00000","142","1413","141300000385        "]
["1430 - Fiji (Pacific Islands)","1574 - Pacific Office, Suva, Fiji","1430H00000","143","1430","143000001574        "]
["1430 - Fiji (Pacific Islands)","1636 - Tarawa, Kiribati","1430F00000","617","6170","617000001636        "]
["1430 - Fiji (Pacific Islands)","1643 - Port Vila, Vanuatu","1430E00000","655","6550","655000001643        "]
["1430 - Fiji (Pacific Islands)","2051 - Fiji (Pacific Islands) - MCP","1430A00000","143","1430","143000002051        "]
["1430 - Fiji (Pacific Islands)","4077 - Apia, Samoa","1430C00000","590","5900","590000004077        "]
["1430 - Fiji (Pacific Islands)","8864 - Honiara, Solomon Islands","1430D00000","631","6310","631000008864        "]
["1530 - Gabon","1741 - Libreville, Gabon","1530B00000","153","1530","153000001741        "]
["1530 - Gabon","2001 - Gabon","1530A00000","153","1530","153000002001        "]
["1560 - Gambia","1610 - Banjul, Gambia","1560B00000","156","1560","156000001610        "]
["1560 - Gambia","2009 - Gambia","1560A00000","156","1560","156000002009        "]
["1600 - Georgia","2099 - Georgia","1600A00000","160","1600","160000002099        "]
["1600 - Georgia","323 - Tblisi, Georgia","1600B00000","160","1600","160000000323        "]
["1600 - Georgia","3381 - Sukhumi, Georgia","1600C00000","160","1604","160400003381        "]
["1620 - Ghana","1652 - Tamale, Ghana","1620C00000","162","1621","162100001652        "]
["1620 - Ghana","2006 - Ghana","1620A00000","162","1620","162000002006        "]
["1620 - Ghana","351 - Accra, Ghana","1620B00000","162","1620","162000000351        "]
["1680 - Guatemala","2111 - Guatemala","1680A00000","168","1680","168000002111        "]
["1680 - Guatemala","311 - Guatemala City, Guatemala","1680B00000","168","1680","168000000311        "]
["1770 - Guinea","2012 - Guinea","1770A00000","177","1770","177000002012        "]
["1770 - Guinea","3243 - Kankan, Guinea","1770D00000","177","1777","177700003243        "]
["1770 - Guinea","381 - Conakry, Guinea","1770B10000","177","1770","177000000381        "]
["1770 - Guinea","7063 - Nzerekore, Guinea","1770C00000","177","1771","177100007063        "]
["1800 - Guyana","1526 - Georgetown, Guyana","1800B00000","180","1800","180000001526        "]
["1800 - Guyana","2110 - Guyana","1800A00000","180","1800","180000002110        "]
["1800 - Guyana","8684 - Paramaribo, Suriname","1800C00000","678","6780","678000008684        "]
["1830 - Haiti","2119 - Haiti","1830A00000","183","1830","183000002119        "]
["1830 - Haiti","2776 - Gonaives, Haiti","1830C00000","183","1835","183500002776        "]
["1830 - Haiti","2870 - Les Cayes, Haiti","1830E00000","183","183C","183C00002870        "]
["1830 - Haiti","2885 - Jeremie, Haiti","1830D00000","183","183B","183B00002885        "]
["1830 - Haiti","367 - Port Au Prince, Haiti","1830B00000","183","1830","183000000367        "]
["1860 - Honduras","2125 - Honduras","1860A00000","186","1860","186000002125        "]
["1860 - Honduras","356 - Tegucigalpa, Honduras","1860B00000","186","1860","186000000356        "]
["1950 - Global Shared Service Center","2850 - Global Shared Services Centre","1950A00000","195","1950","195000002850        "]
["1950 - Global Shared Service Center","2851 - Director's Office, GSSC","1950A00100","195","1950","195000002851        "]
["1950 - Global Shared Service Center","2852 - HR Admin Section, GSSC","1950A00200","195","1950","195000002852        "]
["1950 - Global Shared Service Center","2853 - HR Payroll Section, GSSC","1950A00300","195","1950","195000002853        "]
["1950 - Global Shared Service Center","2854 - Global Help Desk Section","1950A00400","195","1950","195000002854        "]
["1950 - Global Shared Service Center","2855 - Finance Section, GSSC","1950A00500","195","1950","195000002855        "]
["1950 - Global Shared Service Center","2856 - Service Management Section","1950A00600","195","1950","195000002856        "]
["2040 - India","1504 - Lucknow, India","2040J00000","204","2045","204500001504        "]
["2040 - India","1511 - Mumbai, India","2040K00000","204","2041","204100001511        "]
["2040 - India","1512 - Calcutta, India","2040E00000","204","2043","204300001512        "]
["2040 - India","1513 - Hyderabad, India","2040H00000","204","2047","204700001513        "]
["2040 - India","1514 - Chennai, India","2040F00000","204","2046","204600001514        "]
["2040 - India","1515 - Patna, India","2040L00000","204","204B","204B00001515        "]
["2040 - India","1542 - Jaipur, India","2040I00000","204","204C","204C00001542        "]
["2040 - India","1543 - Bhopal, India","2040C00000","204","204D","204D00001543        "]
["2040 - India","1632 - Bhubaneshwar, India","2040D00000","204","204F","204F00001632        "]
["2040 - India","1712 - Gandhinagar, India","2040G00000","204","204I","204I00001712        "]
["2040 - India","2064 - India","2040A00000","204","2040","204000002064        "]
["2040 - India","3257 - Guwahati, India","2040M00000","204","204R","204R00003257        "]
["2040 - India","3259 - Raipur, India","2040N00000","204","204T","204T00003259        "]
["2040 - India","3261 - Ranchi, India","2040O00000","204","204S","204S00003261        "]
["2040 - India","327 - New Delhi, India","2040B00000","204","2040","204000000327        "]
["2070 - Indonesia","1548 - Surabaya, Indonesia","2070J00000","207","207D","207D00001548        "]
["2070 - Indonesia","1700 - Makassar, Indonesia","2070C00000","207","207J","207J00001700        "]
["2070 - Indonesia","1701 - Kupang, Indonesia","2070G00000","207","207C","207C00001701        "]
["2070 - Indonesia","1766 - Semarang, Indonesia","2070I00000","207","2074","207400001766        "]
["2070 - Indonesia","1776 - Ambon, Indonesia","2070D00000","207","207H","207H00001776        "]
["2070 - Indonesia","2048 - Indonesia","2070A00000","207","2070","207000002048        "]
["2070 - Indonesia","343 - Jakarta, Indonesia","2070B00000","207","2070","207000000343        "]
["2070 - Indonesia","3891 - Manokwari, Indonesia","2070H00000","207","C207","C20700003891        "]
["2070 - Indonesia","8449 - Jayapura, Irian Jaya, Indonesia","2070F00000","207","2072","207200008449        "]
["2070 - Indonesia","8694 - Banda Aceh, Indonesia","2070E00000","207","207I","207I00008694        "]
["2100 - Iran","2078 - Iran","2100A00000","210","2100","210000002078        "]
["2100 - Iran","382 - Teheran, Iran (Islamic Rep. of)","2100B00000","210","2100","210000000382        "]
["2130 - Iraq","1747 - Zone Office North, Erbil, Iraq","2130G00000","213","2137","213700001747        "]
["2130 - Iraq","2069 - Iraq","2130A00000","213","2130","213000002069        "]
["2130 - Iraq","3460 - Dohuk, Iraq","2130H00000","213","213M","213M00003460        "]
["2130 - Iraq","3463 - Kut, Iraq","2130I00000","213","213G","213G00003463        "]
["2130 - Iraq","3466 - Amarah, Iraq","2130J00000","213","213C","213C00003466        "]
["2130 - Iraq","368 - Baghdad, Iraq","2130B00000","213","2130","213000000368        "]
["2130 - Iraq","4804 - Ar Ramadi, Iraq","2130D00000","213","213J","213J00004804        "]
["2130 - Iraq","4807 - An Najaf, Iraq","2130C00000","213","    ","    00004807        "]
["2130 - Iraq","4810 - Kirkuk, Iraq","2130E00000","213","2139","213900004810        "]
["2130 - Iraq","7067 - Zone Office South, Basrah, Iraq","2130F00000","213","2131","213100007067        "]
["2130 - Iraq","8950 - Iraq Supp Center, Amman (ISCA)","2130K00000","234","2340","234000008950        "]
["2220 - Office of Research, Italy","3323 - Office of Research","2220A00000","222","2224","222400003323        "]
["2220 - Office of Research, Italy","6000 - Research, Florence","2220A00100","222","2224","222400006000        "]
["2250 - Cote D'Ivoire","2004 - Cote D'Ivoire","2250A00000","225","2250","225000002004        "]
["2250 - Cote D'Ivoire","2954 - Korhogo, Cote D'Ivoire","2250E00000","225","2259","225900002954        "]
["2250 - Cote D'Ivoire","350 - Abidjan, Cote d'Ivoire","2250B00000","225","2250","225000000350        "]
["2250 - Cote D'Ivoire","7069 - Bouake, Cote D'Ivoire","2250C00000","225","2252","225200007069        "]
["2250 - Cote D'Ivoire","9027 - Man, Cote d'Ivoire","2250D00000","225","2258","225800009027        "]
["2280 - Jamaica","1506 - Kingston, Jamaica","2280B00000","228","2280","228000001506        "]
["2280 - Jamaica","2113 - Jamaica","2280A00000","228","2280","228000002113        "]
["2340 - Jordan","2066 - Jordan","2340A00000","234","2340","234000002066        "]
["2340 - Jordan","2627 - Ruwayshid, Jordan","2340C00000","234","2341","234100002627        "]
["2340 - Jordan","308 - Amman, Jordan","2340B00000","234","2340","234000000308        "]
["234R - MENA, Jordan","3022 - Reg Serv Division, Amman","234RB00000","234","2340","234000003022        "]
["234R - MENA, Jordan","59 - Amman(MENA)","234RA00000","234","2340","234000000059        "]
["2390 - Kazakhstan","1742 - Astana, Kazakhstan","2390B00000","239","2391","239100001742        "]
["2390 - Kazakhstan","2085 - Kazakstan","2390A00000","239","2390","239000002085        "]
["2390 - Kazakhstan","8670 - Almaty, Kazakhstan","2390C00000","239","2390","239000008670        "]
["2400 - Kenya","1667 - Garissa, Kenya","2400C00000","240","2405","240500001667        "]
["2400 - Kenya","2024 - Kenya","2400A00000","240","2400","240000002024        "]
["2400 - Kenya","2536 - Lodwar, Kenya","2400F00000","240","240E","240E00002536        "]
["2400 - Kenya","331 - Nairobi, Kenya","2400B00000","240","2400","240000000331        "]
["2400 - Kenya","3955 - Dadaab, Kenya","2400E00000","240","240D","240D00003955        "]
["2400 - Kenya","4212 - Kisumu, Kenya","2400D00000","240","2402","240200004212        "]
["240B - Office of Global Innovation","2375 - Office of Global Innovation","240BB00000","456","4560","456000002375        "]
["240B - Office of Global Innovation","2376 - Innovation Section, Kenya, Nairobi","240BB00100","240","2400","240000002376        "]
["240B - Office of Global Innovation","2387 - Innovation Section, O/P Bangkok,Thailand","240BB00200","420","4200","420000002387        "]
["240B - Office of Global Innovation","2388 - Innovation Section, O/P Kampala, Uganda","240BB00300","438","4380","438000002388        "]
["240B - Office of Global Innovation","2576 - Office of Global Innovation, New York","240BB00400","456","4560","456000002576        "]
["240B - Office of Global Innovation","2826 - Innovation Section, Copenhagen Denmark","240BB00500","120","1200","120000002826        "]
["240B - Office of Global Innovation","2827 - Innovation Section, Suva, Fiji","240BB00600","143","1430","143000002827        "]
["240R - ESARO, Kenya","3089 - Reg Serv Division, Nairobi Regn'l","240RB00000","240","2400","240000003089        "]
["240R - ESARO, Kenya","63 - Nairobi Regn'l(ESARO)","240RA00000","240","2400","240000000063        "]
["2450 - Republic of Kyrgyzstan","1743 - Bishkek, Kyrgyzstan Republic","2450B00000","245","2450","245000001743        "]
["2450 - Republic of Kyrgyzstan","2087 - Republic of Kyrgyzstan","2450A00000","245","2450","245000002087        "]
["2450 - Republic of Kyrgyzstan","3482 - Osh, Kyrgyzstan","2450C00000","245","2452","245200003482        "]
["2460 - Lao People's Dem Rep.","2056 - Lao People's Democratic Republic","2460A00000","246","2460","246000002056        "]
["2460 - Lao People's Dem Rep.","344 - Vientiane, Lao People's Dem. Rep.","2460B00000","246","2460","246000000344        "]
["2490 - Lebanon","2070 - Lebanon","2490A00000","249","2490","249000002070        "]
["2490 - Lebanon","2709 - Mount Lebanon, Beirut Lebanon office","2490B01000","249","2490","249000002709        "]
["2490 - Lebanon","3180 - Tyre, Lebanon","2490C00000","249","249D","249D00003180        "]
["2490 - Lebanon","330 - Beirut, Lebanon","2490B00000","249","2490","249000000330        "]
["2520 - Lesotho","2038 - Lesotho","2520A00000","252","2520","252000002038        "]
["2520 - Lesotho","378 - Maseru, Lesotho","2520B00000","252","2520","252000000378        "]
["2550 - Liberia","2017 - Liberia","2550A00000","255","2550","255000002017        "]
["2550 - Liberia","2700 - Zwedru, Liberia","2550C00000","255","2551","255100002700        "]
["2550 - Liberia","2703 - Harper, Liberia","2550D00000","255","2553","255300002703        "]
["2550 - Liberia","374 - Monrovia, Liberia","2550B00000","255","2550","255000000374        "]
["2580 - Libya","1770 - Tripoli, Libyan Arab Rep.","2580B00000","258","2580","258000001770        "]
["2580 - Libya","2079 - Libya","2580A00000","258","2580","258000002079        "]
["2580 - Libya","3860 - Benghazi, Libyan Arab Rep.","2580C00000","258","2582","258200003860        "]
["2660 - Macedonia","1735 - Skopje, Former Yugoslav Rep of Macedonia","2660B00000","266","2660","266000001735        "]
["2660 - Macedonia","2096 - Former Yugoslav Republic of Macedonia","2660A00000","266","2660","266000002096        "]
["2670 - Madagascar","2026 - Madagascar","2670A00000","267","2670","267000002026        "]
["2670 - Madagascar","2521 - Fort Dauphin, Madagascar","2670D00000","267","2673","267300002521        "]
["2670 - Madagascar","304 - Antananarivo, Madagascar","2670B00000","267","2670","267000000304        "]
["2670 - Madagascar","3343 - Ambovombe, Madagascar","2670C00000","267","267A","267A00003343        "]
["2690 - Malawi","2034 - Malawi","2690A00000","269","2692","269200002034        "]
["2690 - Malawi","365 - Lilongwe, Malawi","2690B00000","269","2692","269200000365        "]
["2700 - Malaysia","1524 - Kuala Lumpur, Malaysia","2700B00000","270","2700","270000001524        "]
["2700 - Malaysia","2049 - Malaysia","2700A00000","270","2700","270000002049        "]
["2740 - Maldives","1510 - Male, Maldives","2740B00000","274","2740","274000001510        "]
["2740 - Maldives","2063 - Maldives","2740A00000","274","2740","274000002063        "]
["2760 - Mali","1622 - Mopti, Mali","2760E00000","276","2763","276300001622        "]
["2760 - Mali","1623 - Segou, Mali","2760F00000","276","2764","276400001623        "]
["2760 - Mali","1699 - Kayes, Mali","2760C00000","276","2767","276700001699        "]
["2760 - Mali","1703 - Koulikoro, Mali","2760D00000","276","2768","276800001703        "]
["2760 - Mali","2007 - Mali","2760A00000","276","2760","276000002007        "]
["2760 - Mali","2761 - Gao, Mali","2760G00000","276","2766","276600002761        "]
["2760 - Mali","2764 - Sikasso, Mali","2760H00000","276","276B","276B00002764        "]
["2760 - Mali","2926 - Tombouctou, Mali","2760I00000","276","2765","276500002926        "]
["2760 - Mali","371 - Bamako, Mali","2760B00000","276","2760","276000000371        "]
["2820 - Mauritania","2020 - Mauritania","2820A00000","282","2820","282000002020        "]
["2820 - Mauritania","2227 - Kiffa, Mauritania","2820E00000","282","2822","282200002227        "]
["2820 - Mauritania","2936 - Bassikounou, Mauritania","2820D00000","282","282A","282A00002936        "]
["2820 - Mauritania","3246 - Aioun, Mauritania","2820C00000","282","2829","282900003246        "]
["2820 - Mauritania","334 - Nouakchott, Mauritania","2820B00000","282","2820","282000000334        "]
["2850 - Mexico","2117 - Mexico","2850A00000","285","2850","285000002117        "]
["2850 - Mexico","313 - Mexico City, Mexico","2850B00000","285","2850","285000000313        "]
["2880 - Mongolia","1612 - Ulaanbaatar, Mongolia","2880B00000","288","2880","288000001612        "]
["2880 - Mongolia","2055 - Mongolia","2880A00000","288","2880","288000002055        "]
["2880 - Mongolia","2211 - Khuvsgul, Mongolia","2880D00000","288","2889","288900002211        "]
["2880 - Mongolia","3553 - Khovd City, Mongolia","2880C00000","288","2883","288300003553        "]
["2910 - Morocco","2076 - Morocco","2910A00000","291","2910","291000002076        "]
["2910 - Morocco","337 - Rabat, Morocco","2910B00000","291","2910","291000000337        "]
["2970 - Nepal","1520 - Nepalgunj, Nepal","2970J00000","297","2972","297200001520        "]
["2970 - Nepal","1549 - Biratnager, Nepal","2970D00000","297","2975","297500001549        "]
["2970 - Nepal","2058 - Nepal","2970A00000","297","2970","297000002058        "]
["2970 - Nepal","2136 - Gorkha, Nepal","2970R00000","297","297R","297R00002136        "]
["2970 - Nepal","2138 - Programme Sec, Singhupalchowk, Nepal","2970P00000","297","2979","297900002138        "]
["2970 - Nepal","2139 - Programme Section, Dolakha, Nepal","2970Q00000","297","2979","297900002139        "]
["2970 - Nepal","2141 - Programme Section, Nuwakot, Nepal","2970S00000","297","2979","297900002141        "]
["2970 - Nepal","2561 - Jumla, Nepal","2970O00000","297","2979","297900002561        "]
["2970 - Nepal","324 - Kathmandu, Nepal","2970B00000","297","2970","297000000324        "]
["2970 - Nepal","3705 - Mangalsen, Accham District, Nepal","2970I00000","297","297J","297J00003705        "]
["2970 - Nepal","3714 - Taulihawa, Kapilvastu District, Nepal","2970N00000","297","297N","297N00003714        "]
["2970 - Nepal","3717 - Rajbiraj, Saptari District, Nepal","2970L00000","297","297L","297L00003717        "]
["2970 - Nepal","3728 - Birgang, Parsa District, Nepal","2970E00000","297","297D","297D00003728        "]
["2970 - Nepal","4651 - Dhadheldura, Nepal","2970F00000","297","297B","297B00004651        "]
["2970 - Nepal","4751 - Bharatpur, Nepal","2970C00000","297","297G","297G00004751        "]
["297R - ROSA, Nepal","3062 - Reg Serv Division, Kathmandu","297RB00000","297","2970","297000003062        "]
["297R - ROSA, Nepal","64 - Kathmandu(ROSA)","297RA00000","297","2970","297000000064        "]
["3120 - Nicaragua","2116 - Nicaragua","3120A00000","312","3120","312000002116        "]
["3120 - Nicaragua","353 - Managua, Nicaragua","3120B00000","312","3120","312000000353        "]
["3120 - Nicaragua","4278 - Bilwi, Nicaragua","3120C00000","312","3129","312900004278        "]
["3180 - Niger","1674 - Maradi, Niger","3180D00000","318","3185","318500001674        "]
["3180 - Niger","1749 - Agadez, Niger","3180C00000","318","3186","318600001749        "]
["3180 - Niger","2019 - Niger","3180A00000","318","3180","318000002019        "]
["3180 - Niger","2950 - Diffa, Niger","3180E00000","318","3183","318300002950        "]
["3180 - Niger","363 - Niamey, Niger","3180B00000","318","3180","318000000363        "]
["3210 - Nigeria","1591 - Kaduna, Nigeria","3210E00000","321","3211","321100001591        "]
["3210 - Nigeria","1657 - Bauchi, Nigeria","3210C00000","321","3216","321600001657        "]
["3210 - Nigeria","1672 - Enugu, Nigeria","3210D00000","321","321B","321B00001672        "]
["3210 - Nigeria","1673 - Lagos, Nigeria","3210F00000","321","3210","321000001673        "]
["3210 - Nigeria","2005 - Nigeria","3210A00000","321","3213","321300002005        "]
["3210 - Nigeria","2403 - Port Harcourt Zone Officer, Nigeria","3210J00000","321","321M","321M00002403        "]
["3210 - Nigeria","2406 - Akure Zone Office, Nigeria","3210K00000","321","321N","321N00002406        "]
["3210 - Nigeria","2506 - Maiduguri (Borno), Nigeria","3210G00000","321","321I","321I00002506        "]
["3210 - Nigeria","2509 - Sokoto, Nigeria","3210H00000","321","321K","321K00002509        "]
["3210 - Nigeria","2531 - Katsina, Nigeria","3210I00000","321","321J","321J00002531        "]
["3210 - Nigeria","336 - Abuja, Nigeria","3210B00000","321","3213","321300000336        "]
["3300 - Pakistan","1507 - Peshawar, Pakistan","3300E00000","330","3306","330600001507        "]
["3300 - Pakistan","1522 - Quetta, Pakistan","3300F00000","330","3307","330700001522        "]
["3300 - Pakistan","1534 - Karachi, Pakistan","3300C00000","330","3301","330100001534        "]
["3300 - Pakistan","1539 - Lahore, Pakistan","3300D00000","330","3302","330200001539        "]
["3300 - Pakistan","2061 - Pakistan","3300A00000","330","3300","330000002061        "]
["3300 - Pakistan","342 - Islamabad, Pakistan","3300B00000","330","3300","330000000342        "]
["3300 - Pakistan","4880 - Dubai, UAE (Pakistan Programme)","3300G00000","449","4493","449300004880        "]
["3330 - Panama","1661 - Panama City, Panama","3330B00000","333","3330","333000001661        "]
["3330 - Panama","2102 - Panama","3330A00000","333","3330","333000002102        "]
["333R - LACRO, Panama","2126 - Regional Services Division, LACRO","333RB00000","333","3330","333000002126        "]
["333R - LACRO, Panama","2225 - Panama Hub","333RC00000","333","3330","333000002225        "]
["333R - LACRO, Panama","67 - Latin America and Caribbean Regional Off","333RA00000","333","3330","333000000067        "]
["3360 - Paraguay","1595 - Asuncion, Paraguay","3360B00000","336","3360","336000001595        "]
["3360 - Paraguay","2103 - Paraguay","3360A00000","366","3660","366000002103        "]
["3380 - Congo","2011 - Congo","3380A00000","338","3380","338000002011        "]
["3380 - Congo","301 - Brazzaville, Congo","3380B00000","338","3380","338000000301        "]
["3380 - Congo","8772 - Pointe Noire, Congo","3380C00000","338","3381","338100008772        "]
["3390 - Peru","2115 - Peru","3390A00000","339","3390","339000002115        "]
["3390 - Peru","312 - Lima, Peru","3390B00000","339","3390","339000000312        "]
["3420 - Philippines","2050 - Philippines","3420A00000","342","3420","342000002050        "]
["3420 - Philippines","2253 - Tacloban, Philippines","3420F00000","342","342L","342L00002253        "]
["3420 - Philippines","2527 - Davao, Philippines","3420D00000","342","3427","342700002527        "]
["3420 - Philippines","2753 - Zamboanga, Philippines","3420H00000","342","3429","342900002753        "]
["3420 - Philippines","318 - Manila, Philippines","3420B00000","342","3420","342000000318        "]
["3420 - Philippines","4827 - Cotabato, Philippines","3420C00000","342","3425","342500004827        "]
["3660 - Romania","2088 - Romania","3660A00000","366","3660","366000002088        "]
["3660 - Romania","383 - Bucharest, Romania","3660B00000","366","3660","366000000383        "]
["3750 - Rwanda","2033 - Rwanda","3750A00000","375","3750","375000002033        "]
["3750 - Rwanda","366 - Kigali, Rwanda","3750B00000","375","3750","375000000366        "]
["3780 - Saudi Arabia","2067 - Saudi Arabia","3780A00000","378","3780","378000002067        "]
["3780 - Saudi Arabia","358 - Riyadh, Gulf Area Office","3780B00000","378","3780","378000000358        "]
["3780 - Saudi Arabia","7015 - Abu Dhabi, Gulf Area","3780C00000","449","4490","449000007015        "]
["3780 - Saudi Arabia","7016 - Kuwait, Gulf Area","3780F00000","243","2430","243000007016        "]
["3780 - Saudi Arabia","7017 - Bahrain, Gulf Area","3780D00000","604","6041","604100007017        "]
["3780 - Saudi Arabia","7018 - Qatar, Gulf Area","3780G00000","624","6240","624000007018        "]
["3780 - Saudi Arabia","9044 - Dubai, Gulf Area","3780E00000","449","4493","449300009044        "]
["3810 - Senegal","2000 - Senegal","3810A00000","381","3810","381000002000        "]
["3810 - Senegal","302 - Dakar, Senegal","3810B00000","381","3810","381000000302        "]
["3810 - Senegal","8866 - Ziguinchor, Senegal","3810C00000","381","3814","381400008866        "]
["381R - WCARO, Senegal","61 - Dakar (WCAR), Senegal","381RA00000","381","3810","381000000061        "]
["381R - WCARO, Senegal","8455 - Reg Services Div (WCARO), Dakar","381RB00000","381","3810","381000008455        "]
["3900 - Sierra Leone","2014 - Sierra Leone","3900A00000","390","3900","390000002014        "]
["3900 - Sierra Leone","372 - Freetown, Sierra Leone","3900B00000","390","3900","390000000372        "]
["3900 - Sierra Leone","8387 - Kenema, Sierra Leone","3900C00000","390","3901","390100008387        "]
["3900 - Sierra Leone","8777 - Makeni, Sierra Leone","3900D00000","390","3904","390400008777        "]
["3920 - Somalia","1501 - Hargeisa, Somalia","3920F00000","392","3923","392300001501        "]
["3920 - Somalia","1538 - Nairobi Somalia Desk, Kenya","3920J00000","240","2400","240000001538        "]
["3920 - Somalia","1555 - Baidoa, Somalia","3920C00000","392","392B","392B00001555        "]
["3920 - Somalia","1621 - Bosaso, Somalia","3920D00000","392","392C","392C00001621        "]
["3920 - Somalia","1665 - Jowhar, Somalia","3920G00000","392","392F","392F00001665        "]
["3920 - Somalia","2040 - Somalia","3920A00000","392","3920","392000002040        "]
["3920 - Somalia","2233 - Dollow, Somalia","3920K00000","392","3929","392900002233        "]
["3920 - Somalia","3282 - Gaalkacyo, Somalia","3920H00000","392","392S","392S00003282        "]
["3920 - Somalia","3285 - Wajid, Somalia","3920I00000","392","392T","392T00003285        "]
["3920 - Somalia","335 - Mogadiscio, Somalia","3920B00000","392","3920","392000000335        "]
["3920 - Somalia","3605 - Garoowe, Somalia","3920E00000","392","392K","392K00003605        "]
["3930 - South Africa","2042 - South Africa","3930A00000","393","3930","393000002042        "]
["3930 - South Africa","386 - Pretoria, South Africa","3930B00000","393","3930","393000000386        "]
["4020 - Sudan","1518 - Kadugli, Sudan","4020H00000","402","402C","402C00001518        "]
["4020 - Sudan","1552 - El Obeid, Sudan","4020G00000","402","402B","402B00001552        "]
["4020 - Sudan","1641 - El Fasher, Sudan","4020E00000","402","402A","402A00001641        "]
["4020 - Sudan","2081 - Sudan","4020A00000","402","4020","402000002081        "]
["4020 - Sudan","345 - Khartoum, Sudan","4020B00000","402","4020","402000000345        "]
["4020 - Sudan","3926 - Kassala, Sudan","4020I00000","402","402S","402S00003926        "]
["4020 - Sudan","3929 - Ad Damazine, Sudan","4020D00000","402","Z002","Z00200003929        "]
["4020 - Sudan","3932 - Abyei, Sudan","4020C00000","402","E402","E40200003932        "]
["4020 - Sudan","4230 - Zalinguei, Sudan","4020K00000","402","S402","S40200004230        "]
["4020 - Sudan","8691 - Nyala, Sudan","4020J00000","402","402Q","402Q00008691        "]
["4020 - Sudan","8973 - El Geneina, Sudan","4020F00000","402","4020","402000008973        "]
["4030 - Swaziland","1517 - Mbabane, Swaziland","4030B00000","403","4030","403000001517        "]
["4030 - Swaziland","2039 - Swaziland","4030A00000","403","4030","403000002039        "]
["4040 - South Sudan","1687 - Juba, South Sudan","4040B00000","404","4040","404000001687        "]
["4040 - South Sudan","1695 - Yambio, South Sudan","4040K00000","404","4042","404200001695        "]
["4040 - South Sudan","2130 - South Sudan","4040A00000","404","4040","404000002130        "]
["4040 - South Sudan","2361 - Juba Zone Office, South Sudan","4040B10000","404","4040","404000002361        "]
["4040 - South Sudan","3454 - Bor, South Sudan","4040F00000","404","4044","404400003454        "]
["4040 - South Sudan","3456 - Torit, South Sudan","4040G00000","404","4041","404100003456        "]
["4040 - South Sudan","3458 - Kwajok, South Sudan","4040H00000","404","4048","404800003458        "]
["4040 - South Sudan","3752 - Wau, South Sudan","4040E00000","404","4046","404600003752        "]
["4040 - South Sudan","3776 - Malakal, South Sudan","4040C00000","404","4043","404300003776        "]
["4040 - South Sudan","3826 - Bentiu, South Sudan","4040I00000","404","4045","404500003826        "]
["4040 - South Sudan","3908 - Aweil, South Sudan","4040J00000","404","F402","F40200003908        "]
["4040 - South Sudan","8687 - Rumbek, South Sudan","4040D00000","404","4049","404900008687        "]
["4140 - Syria","1614 - Damascus, Syria","4140B00000","414","4140","414000001614        "]
["4140 - Syria","2072 - Syria","4140A00000","414","4140","414000002072        "]
["4140 - Syria","2650 - Homs, Syria","4140C00000","414","414C","414C00002650        "]
["4140 - Syria","2652 - Tartous, Syria","4140D00000","414","414B","414B00002652        "]
["4140 - Syria","2654 - Qamishli, Syria","4140E00000","414","414G","414G00002654        "]
["4140 - Syria","2656 - Dara'a, Syria","4140F00000","414","414F","414F00002656        "]
["4140 - Syria","2658 - Damascus Hub, Syria","4140G00000","414","4140","414000002658        "]
["4140 - Syria","2662 - Aleppo, Syria","4140H00000","414","4142","414200002662        "]
["4150 - Tajikistan","1746 - Dushanbe, Tajikistan","4150B00000","415","4150","415000001746        "]
["4150 - Tajikistan","2090 - Tajikistan","4150A00000","415","4150","415000002090        "]
["4200 - Thailand","2044 - Thailand","4200A00000","420","4200","420000002044        "]
["4200 - Thailand","316 - Bangkok, Thailand","4200B00000","420","4200","420000000316        "]
["420R - EAPRO, Thailand","3021 - Regional Services Division, Bangkok","420RB00000","420","4200","420000003021        "]
["420R - EAPRO, Thailand","60 - Bangkok (EAPRO), Thailand","420RA00000","420","4200","420000000060        "]
["4230 - Togo","2016 - Togo","4230A00000","423","4230","423000002016        "]
["4230 - Togo","375 - Lome, Togo","4230B00000","423","4230","423000000375        "]
["4320 - Tunisia","2080 - Tunisia","4320A00000","432","4320","432000002080        "]
["4320 - Tunisia","377 - Tunis, Tunisia","4320B00000","432","4320","432000000377        "]
["4350 - Turkey","2083 - Turkey","4350A00000","435","4350","435000002083        "]
["4350 - Turkey","2686 - Gaziantep, Turkey","4350C00000","435","4351","435100002686        "]
["4350 - Turkey","373 - Ankara, Turkey","4350B00000","435","4350","435000000373        "]
["4360 - Rep. of Turkmenistan","1744 - Ashkhabad, Rep. of Turkmenistan","4360B00000","436","4360","436000001744        "]
["4360 - Rep. of Turkmenistan","2084 - Republic of Turkmenistan","4360A00000","436","4360","436000002084        "]
["4380 - Uganda","2032 - Uganda","4380A00000","438","4380","438000002032        "]
["4380 - Uganda","2230 - Mbarara, Uganda","4380F00000","438","4386","438600002230        "]
["4380 - Uganda","364 - Kampala, Uganda","4380B00000","438","4380","438000000364        "]
["4380 - Uganda","4227 - Moroto, Uganda","4380E00000","438","4385","438500004227        "]
["4380 - Uganda","4643 - Fort Portal, Uganda","4380C00000","438","438K","438K00004643        "]
["4380 - Uganda","8960 - Gulu, Uganda","4380D00000","438","4388","438800008960        "]
["4410 - Ukraine","1768 - Kiev, Ukraine","4410B00000","441","4410","441000001768        "]
["4410 - Ukraine","2091 - Ukraine","4410A00000","441","4410","441000002091        "]
["4410 - Ukraine","2160 - Luhansk, Ukraine","4410H00000","441","441D","441D00002160        "]
["4410 - Ukraine","2750 - Kharkiv, Ukraine","4410C00000","441","4414","441400002750        "]
["4410 - Ukraine","2801 - Dnepropetrovsk, Ukraine","4410G00000","441","4416","441600002801        "]
["4410 - Ukraine","2875 - Donetsk, Ukraine","4410D00000","441","4412","441200002875        "]
["4410 - Ukraine","2900 - Mariupol, Ukraine","4410E00000","441","4418","441800002900        "]
["4410 - Ukraine","2903 - Kramatorsk, Ukraine","4410F00000","441","441E","441E00002903        "]
["4500 - Egypt","2071 - Egypt","4500A00000","450","4500","450000002071        "]
["4500 - Egypt","2726 - Alexandria, Egypt","4500D00000","450","4501","450100002726        "]
["4500 - Egypt","329 - Cairo, Egypt","4500B00000","450","4500","450000000329        "]
["4500 - Egypt","3479 - Asyut, Egypt","4500C00000","450","4503","450300003479        "]
["4550 - United Rep. of Tanzania","1589 - Zanzibar, United Rep. of Tanzania","4550D00000","455","4554","455400001589        "]
["4550 - United Rep. of Tanzania","2029 - United Repubic of Tanzania","4550A00000","455","4550","455000002029        "]
["4550 - United Rep. of Tanzania","2518 - Iringa, United Rep. of Tanzania","4550E00000","455","4557","455700002518        "]
["4550 - United Rep. of Tanzania","2713 - Mbeya, United Rep. of Tanzania","4550F00000","455","4559","455900002713        "]
["4550 - United Rep. of Tanzania","305 - Dar Es Salaam, United Rep. of Tanzania","4550B00000","455","4550","455000000305        "]
["4550 - United Rep. of Tanzania","8676 - Kibondo, Tanzania","4550G00000","455","455C","455C00008676        "]
["456B - Executive Director's Office","3001 - Executive Director's Office, UNICEF NYHQ","456BB00000","456","4560","456000003001        "]
["456B - Executive Director's Office","3411 - Office of Ombudsperson, OED, UNICEF NYHQ","456BB00200","456","4560","456000003411        "]
["456B - Executive Director's Office","5001 - Off of Executive Director, UNICEF NYHQ","456BB00100","456","4560","456000005001        "]
["456C - Data, Research and Policy","2459 - Our UNICEF","456CC01000","456","4560","456000002459        "]
["456C - Data, Research and Policy","3030 - Data, Research and Policy","456CC00000","456","4560","456000003030        "]
["456C - Data, Research and Policy","3307 - Data and Analytics","456CC00200","456","4560","456000003307        "]
["456C - Data, Research and Policy","3768 - Country Programming, Accountability & KM","456CC00300","456","4560","456000003768        "]
["456C - Data, Research and Policy","5123 - Policy, Strategy and Network","456CC00500","456","4560","456000005123        "]
["456C - Data, Research and Policy","6256 - Director's Office, DRP","456CC00100","456","4560","456000006256        "]
["456D - Programme Division","2311 - Gender and Rights","456DD00900","456","4560","456000002311        "]
["456D - Programme Division","2312 - Communication for Development","456DD01000","456","4560","456000002312        "]
["456D - Programme Division","2313 - Adolescent Development and Participation","456DD01100","456","4560","456000002313        "]
["456D - Programme Division","2314 - Children with Disability","456DD01200","456","4560","456000002314        "]
["456D - Programme Division","2325 - Early Childhood Development","456DD01400","456","4560","456000002325        "]
["456D - Programme Division","2534 - Glob Part to End Violence Against Childr","456DD01600","456","4560","456000002534        "]
["456D - Programme Division","2757 - Education Secretariat","456DD01700","456","4560","456000002757        "]
["456D - Programme Division","2758 - Humanitarian Action & Transition","456DD01800","456","4560","456000002758        "]
["456D - Programme Division","2759 - Human Rights","456DD01900","456","4560","456000002759        "]
["456D - Programme Division","2760 - WASH Secretariat","456DD02000","456","4560","456000002760        "]
["456D - Programme Division","2768 - Program Support Unit","456DD02100","456","4560","456000002768        "]
["456D - Programme Division","2988 - Secretariats, Programme Division","456DD01300","456","4560","456000002988        "]
["456D - Programme Division","3003 - Programme Division, UNICEF NYHQ","456DD00000","456","4560","456000003003        "]
["456D - Programme Division","3308 - Social Inclusion and Policy","456CC00600","456","4560","456000003308        "]
["456D - Programme Division","5004 - Nutrition Section, UNICEF NYHQ","456DD00700","456","4560","456000005004        "]
["456D - Programme Division","5067 - Water and Sanitation Sec, UNICEF NYHQ","456DD00800","456","4560","456000005067        "]
["456D - Programme Division","5125 - Off of Director-Prog Div, UNICEF NYHQ","456DD00100","456","4560","456000005125        "]
["456D - Programme Division","5376 - Health Section, UNICEF NYHQ","456DD00500","456","4560","456000005376        "]
["456D - Programme Division","5417 - Education Section, UNICEF NYHQ","456DD00600","456","4560","456000005417        "]
["456D - Programme Division","6320 - Child Protection Section, UNICEF NYHQ","456DD00200","456","4560","456000006320        "]
["456D - Programme Division","8451 - Civil Society Partnerhips, New York","456DD00300","456","4560","456000008451        "]
["456D - Programme Division","8760 - HIV/AIDS Sec, Programme Division, NY","456DD00400","456","4560","456000008760        "]
["456F - Office of Emergency Prog.","3084 - Office of Emer Operations, UNICEF NYHQ","456FF00000","456","4560","456000003084        "]
["456F - Office of Emergency Prog.","5421 - Off of Emergency Prog, Geneva","456FF00200","575","5750","575000005421        "]
["456F - Office of Emergency Prog.","6113 - Off of Emergency Prog, UNICEF NYHQ","456FF00100","456","4560","456000006113        "]
["456G - Division of Communication","3029 - Division of Communication, UNICEF NYHQ","456GG00000","456","4560","456000003029        "]
["456G - Division of Communication","3756 - Public Advocacy","456GG00900","456","4560","456000003756        "]
["456G - Division of Communication","3757 - Publications","456GG01000","456","4560","456000003757        "]
["456G - Division of Communication","3759 - Social and Civic Media","456GG01200","456","4560","456000003759        "]
["456G - Division of Communication","3761 - Brand Building","456GG01400","456","4560","456000003761        "]
["456G - Division of Communication","3766 - Media Relations","456GG01500","456","4560","456000003766        "]
["456G - Division of Communication","4052 - Goodwill Ambassador Relations, New York","456GG00500","456","4560","456000004052        "]
["456G - Division of Communication","5102 - Off of the Dir - Div of Com, UNICEF NYHQ","456GG00100","456","4560","456000005102        "]
["456G - Division of Communication","5113 - Media Section, UNICEF NYHQ","456GG00600","456","4560","456000005113        "]
["456G - Division of Communication","5116 - Digital Strategy","456GG00700","456","4560","456000005116        "]
["456H - Gov. & Multilateral  Affairs","3002 - Off of Governance, UN & Multilateral Aff","456HH00000","456","4560","456000003002        "]
["456H - Gov. & Multilateral  Affairs","3002 - Office of UN Affairs, UNICEF NYHQ","456HH00000","456","4560","456000003002        "]
["456H - Gov. & Multilateral  Affairs","3334 - Gov, UN & Multilateral  Aff -  Dir Off","456HH00100","456","4560","456000003334        "]
["456H - Gov. & Multilateral  Affairs","3335 - Multilateral Sys Analysis incl IFIs","456HH00200","456","4560","456000003335        "]
["456H - Gov. & Multilateral  Affairs","3336 - UN Coherence","456HH00300","456","4560","456000003336        "]
["456H - Gov. & Multilateral  Affairs","5002 - Off of UN and Intergovernmental Affairs","456HH00500","456","4560","456000005002        "]
["456I - Public Partnerships Division","2675 - Government Partnerships","456II00400","456","4560","456000002675        "]
["456I - Public Partnerships Division","2676 - Multilateral & Intergovernmental Partner","456II00500","456","4560","456000002676        "]
["456I - Public Partnerships Division","2677 - Post 2015","456II00600","456","4560","456000002677        "]
["456I - Public Partnerships Division","2976 - Unicef Geneva Liaison Office, PPD","456II00700","575","5750","575000002976        "]
["456I - Public Partnerships Division","3007 - Public Partnerships Division","456II00000","456","4560","456000003007        "]
["456I - Public Partnerships Division","3858 - PPD, South Korea","456II00800","567","5670","567000003858        "]
["456I - Public Partnerships Division","5011 - Director's Office, PPD NY","456II00100","456","4560","456000005011        "]
["456I - Public Partnerships Division","5320 - PPD, Tokyo","456II00300","231","2310","231000005320        "]
["456I - Public Partnerships Division","6700 - PPD, Brussels","456II00200","048","0480","048000006700        "]
["456J - Div. of Finance & Admin Mgmt","3008 - Div of Fin and Adm Mgmt, UNICEF NYHQ","456JJ00000","456","4560","456000003008        "]
["456J - Div. of Finance & Admin Mgmt","3953 - IPSAS, IT Investments Division","456JJ00600","456","4560","456000003953        "]
["456J - Div. of Finance & Admin Mgmt","5012 - Financial Reporting and Grant Management","456JJ00300","456","4560","456000005012        "]
["456J - Div. of Finance & Admin Mgmt","5015 - Treasury and Structured Finance Services","456JJ00200","456","4560","456000005015        "]
["456J - Div. of Finance & Admin Mgmt","5094 - Off of Comptroller, DFAM, UNICEF NYHQ","456JJ00100","456","4560","456000005094        "]
["456J - Div. of Finance & Admin Mgmt","5143 - Strategic Resource Management Section","456JJ00400","456","4560","456000005143        "]
["456J - Div. of Finance & Admin Mgmt","5149 - Administrative Management Section","456JJ00500","456","4560","456000005149        "]
["456K - Division of Human Resources","2143 - Strategic Planning and Operations","456KK01700","456","4560","456000002143        "]
["456K - Division of Human Resources","2145 - HQ Liaison, Insurance and Compensation","456KK01800","456","4560","456000002145        "]
["456K - Division of Human Resources","2939 - Emergencies & Surge Recruitment Section","456KK01500","456","4560","456000002939        "]
["456K - Division of Human Resources","2940 - Regular Recruitment Section","456KK01600","456","4560","456000002940        "]
["456K - Division of Human Resources","3009 - Division of Human Resources, UNICEF NYHQ","456KK00000","456","4560","456000003009        "]
["456K - Division of Human Resources","3333 - New Emerging Talent Sec, DHR","456KK00600","456","4560","456000003333        "]
["456K - Division of Human Resources","3408 - Mobility and Staffing Section","456KK00300","456","4560","456000003408        "]
["456K - Division of Human Resources","3409 - Staff Well Being Section","456KK00200","456","4560","456000003409        "]
["456K - Division of Human Resources","3982 - HR Business Partner, Programme & Policy","456KK00900","456","4560","456000003982        "]
["456K - Division of Human Resources","3983 - HR Business Partner, Operations","456KK01000","456","4560","456000003983        "]
["456K - Division of Human Resources","3984 - HR Business Partner, External Rel & COD","456KK01100","456","4560","456000003984        "]
["456K - Division of Human Resources","3985 - HR Business Partner, Emergencies","456KK01200","456","4560","456000003985        "]
["456K - Division of Human Resources","3986 - NY Staff Association","456KK01300","456","4560","456000003986        "]
["456K - Division of Human Resources","5013 - Office of the Director-DHR, UNICEF NYHQ","456KK00100","456","4560","456000005013        "]
["456K - Division of Human Resources","5162 - Performance Management and Career Dev","456KK00400","456","4560","456000005162        "]
["456K - Division of Human Resources","5163 - Human Resources Services and Systems","456KK00500","456","4560","456000005163        "]
["456K - Division of Human Resources","5171 - Global Staff Association, UNICEF NYHQ","456KK00700","456","4560","456000005171        "]
["456K - Division of Human Resources","8423 - UNICEF Staff News M&A","456KK01400","456","4560","456000008423        "]
["456K - Division of Human Resources","8447 - Policy & Admin Law Sec, DHR, UNICEF NYHQ","456KK00800","456","4560","456000008447        "]
["456L - InfoTech Solutions & Services","2857 - Strategy Risk Management & Govenance","456LL01000","456","4560","456000002857        "]
["456L - InfoTech Solutions & Services","2858 - Solutions Center and Support","456LL01100","456","4560","456000002858        "]
["456L - InfoTech Solutions & Services","2859 - Platfrom and Srvice Delivery","456LL01200","456","4560","456000002859        "]
["456L - InfoTech Solutions & Services","2860 - ICT Business Relationship Management-FRG","456LL01300","456","4560","456000002860        "]
["456L - InfoTech Solutions & Services","2867 - ICT Business Relationship Management-Par","456LL01400","456","4560","456000002867        "]
["456L - InfoTech Solutions & Services","2868 - ICT Business Relationship Management-Prg","456LL01500","456","4560","456000002868        "]
["456L - InfoTech Solutions & Services","2869 - ICT Business Relationship Management-Man","456LL01600","456","4560","456000002869        "]
["456L - InfoTech Solutions & Services","3005 - Information and Communication Technology","456LL00000","456","4560","456000003005        "]
["456L - InfoTech Solutions & Services","3329 - Plans, Polices and Prod Assurance, ITD","456LL00200","456","4560","456000003329        "]
["456L - InfoTech Solutions & Services","4631 - Administrative Services, ITSSD NY","456LL00300","456","4560","456000004631        "]
["456L - InfoTech Solutions & Services","5008 - ICTD Director's Office","456LL00100","456","4560","456000005008        "]
["456L - InfoTech Solutions & Services","5097 - IT Applications Cross Functional Service","456LL00500","456","4560","456000005097        "]
["456L - InfoTech Solutions & Services","5156 - IT Operations and Services","456LL00700","456","4560","456000005156        "]
["456L - InfoTech Solutions & Services","5159 - IT KMS (Internet Services)","456LL00400","456","4560","456000005159        "]
["456L - InfoTech Solutions & Services","6102 - Technical Architecture Sec, UNICEF NYHQ","456LL00600","456","4560","456000006102        "]
["456L - InfoTech Solutions & Services","8441 - ITSS Applications Functional Services","456LL00900","456","4560","456000008441        "]
["456L - InfoTech Solutions & Services","8801 - IT Security, ITSS, NY","456LL00800","456","4560","456000008801        "]
["456N - Int. Audit & Invest (OIAI)","3023 - Office of Internal Audit & Investigation","456NN00000","456","4560","456000003023        "]
["456N - Int. Audit & Invest (OIAI)","5085 - Internal Audit & Investigation","456NN00100","456","4560","456000005085        "]
["456O - Evaluation Office","8805 - Evaluation Office, New York","456OO00000","456","4560","456000008805        "]
["456O - Evaluation Office","8806 - Evaluation Office, New York","456OO00100","456","4560","456000008806        "]
["456Q - GSSC Project","4378 - GSSC Project Section","456QQ00100","456","4560","456000004378        "]
["456R - Field Results Group Office","2680 - Field Results Group Office","456RR00000","456","4560","456000002680        "]
["456R - Field Results Group Office","2681 - Field Results Group Section","456RR00100","456","4560","456000002681        "]
["456S - OSEB","2678 - Office of the Secretary of the Ex Board","456SS00000","456","4560","456000002678        "]
["456S - OSEB","5089 - Office of the Sec of the ExBoard Section","456SS00100","456","4560","456000005089        "]
["456T - UNICEF Hosted Funds","2157 - UNITED HOSTED FUNDS","456TT00000","   ","    ","    00002157        "]
["456T - UNICEF Hosted Funds","2158 - END VIOLENCE AGAINST CHILDREN","456TT00100","456","4560","456000002158        "]
["456T - UNICEF Hosted Funds","2159 - EDUCATION CANT WAIT","456TT00200","456","4560","456000002159        "]
["4590 - Burkina Faso","2021 - Burkina Faso","4590A00000","459","4590","459000002021        "]
["4590 - Burkina Faso","2553 - Dori, Burkina Faso","4590C00000","459","4591","459100002553        "]
["4590 - Burkina Faso","332 - Ouagadougou, Burkina-Faso","4590B00000","459","4590","459000000332        "]
["4620 - Uruguay","1615 - Montevideo, Uruguay","4620B00000","462","4620","462000001615        "]
["4620 - Uruguay","2118 - Uruguay","4620A00000","462","4620","462000002118        "]
["4630 - Rep of Uzbekistan","1745 - Tashkent, Rep. of Uzbekistan","4630B00000","463","4630","463000001745        "]
["4630 - Rep of Uzbekistan","2098 - Republic of Uzbekistan","4630A00000","463","4630","463000002098        "]
["4710 - Venezuela","1696 - Caracas, Venezuela","4710B00000","471","4710","471000001696        "]
["4710 - Venezuela","2109 - Venezuela","4710A00000","471","4710","471000002109        "]
["4920 - Yemen","2077 - Yemen","4920A00000","492","4920","492000002077        "]
["4920 - Yemen","2450 - Mukalah, YEMEN","4920K00000","492","4929","492900002450        "]
["4920 - Yemen","346 - Sana'a, Yemen","4920B00000","492","4920","492000000346        "]
["4920 - Yemen","3820 - Sa'ada, Yemen","4920F00000","492","492D","492D00003820        "]
["4920 - Yemen","3831 - Seyoun, Yemen","4920G00000","492","3959","395900003831        "]
["4920 - Yemen","3993 - Harad, Yemen","4920H00000","492","4927","492700003993        "]
["4920 - Yemen","4876 - Ta'izz,  Republic of Yemen","4920E00000","492","4921","492100004876        "]
["4920 - Yemen","7026 - Aden, Yemen","4920C00000","492","3950","395000007026        "]
["4920 - Yemen","7029 - Dhale, Yemen","4920I00000","492","4926","492600007029        "]
["4920 - Yemen","7031 - Hodaidah, Yemen","4920D00000","492","4928","492800007031        "]
["4920 - Yemen","7032 - Ibb, Yemen","4920J00000","492","492A","492A00007032        "]
["4980 - Zambia","2036 - Zambia","4980A00000","498","4980","498000002036        "]
["4980 - Zambia","357 - Lusaka, Zambia","4980B00000","498","4980","498000000357        "]
["5070 - Bangladesh","1562 - Barisal, Bangladesh","5070C00000","507","5073","507300001562        "]
["5070 - Bangladesh","1564 - Mymensingh, Bangladesh","5070G00000","507","5075","507500001564        "]
["5070 - Bangladesh","2060 - Bangladesh","5070A00000","507","5070","507000002060        "]
["5070 - Bangladesh","2427 - Cox Bazaar, Bangladesh","5070E00000","507","5078","507800002427        "]
["5070 - Bangladesh","340 - Dhaka, Bangladesh","5070B00000","507","5070","507000000340        "]
["5070 - Bangladesh","3773 - Bogra, Bangladesh","5070L00000","507","5072","507200003773        "]
["5070 - Bangladesh","3782 - Khulna, Bangladesh","5070N00000","507","5077","507700003782        "]
["5070 - Bangladesh","3785 - Chittagong, Bangladesh","5070M00000","507","5071","507100003785        "]
["5070 - Bangladesh","8839 - Rangamati, Bangladesh","5070H00000","507","507B","507B00008839        "]
["5070 - Bangladesh","8850 - Rangpur, Bangladesh","5070I00000","507","507F","507F00008850        "]
["5070 - Bangladesh","8856 - Sylhet, Bangladesh","5070J00000","507","507I","507I00008856        "]
["5150 - DP Republic of Korea","1738 - Pyongyang, DPRK","5150B00000","515","5150","515000001738        "]
["5150 - DP Republic of Korea","2054 - Democratic People's Republic of Korea","5150A00000","515","5150","515000002054        "]
["5200 - Vietnam","1575 - Ho Chi Minh Cty, Vietnam","5200C00000","520","5200","520000001575        "]
["5200 - Vietnam","2047 - Vietnam","5200A00000","520","5200","520000002047        "]
["5200 - Vietnam","341 - Hanoi, Vietnam","5200B00000","520","5205","520500000341        "]
["5640 - Moldova","1611 - Chisinau, Moldova","5640B00000","564","5640","564000001611        "]
["5640 - Moldova","2089 - Moldova","5640A00000","564","5640","564000002089        "]
["5750 - Switzerland","2177 - Deputy Director - PSE and MSP & Pl","5750A00501","575","5750","575000002177        "]
["5750 - Switzerland","2178 - Strategic Planning, Info & Inv Funds","5750A00102","575","5750","575000002178        "]
["5750 - Switzerland","2179 - Global Philanthropy","5750A00604","575","5750","575000002179        "]
["5750 - Switzerland","2180 - Market Development","5750A00607","575","5750","575000002180        "]
["5750 - Switzerland","2200 - Strategic Planning","5750P00102","575","5750","575000002200        "]
["5750 - Switzerland","2201 - Strategic Info & Inv Funds","5750A00608","575","5750","575000002201        "]
["5750 - Switzerland","2303 - Advocacy and Innovative Partnerships","5750A00503","575","5750","575000002303        "]
["5750 - Switzerland","2511 - Country Office Development and Support","5750A00101","575","5750","575000002511        "]
["5750 - Switzerland","3043 - Private Fund Raising and Partnerships","5750A00000","575","5750","575000003043        "]
["5750 - Switzerland","3352 - Children's Rights and Business","5750A00700","575","5750","575000003352        "]
["5750 - Switzerland","3353 - Child Rights Advocacy & Educ for Develop","5750A00600","575","5750","575000003353        "]
["5750 - Switzerland","3519 - Market Knowledge","5750A00602","575","5750","575000003519        "]
["5750 - Switzerland","3541 - Fundraising Services","5750A00603","575","5750","575000003541        "]
["5750 - Switzerland","3542 - Programme Services","5750A00605","575","5750","575000003542        "]
["5750 - Switzerland","3543 - Deputy Director NatCom Relations","5750A00901","575","5750","575000003543        "]
["5750 - Switzerland","3544 - Communication","5750A00800","575","5750","575000003544        "]
["5750 - Switzerland","3545 - Relationship Team III","5750P00904","575","5750","575000003545        "]
["5750 - Switzerland","3546 - Governance","5750A00906","575","5750","575000003546        "]
["5750 - Switzerland","3979 - Corporate Social Responsibility,New York","5750A00500","456","4560","456000003979        "]
["5750 - Switzerland","3987 - Common Services Geneva, Finance","5750A00300","575","5750","575000003987        "]
["5750 - Switzerland","3988 - Common Services Geneva, Info Comm Tech","5750A00100","575","5750","575000003988        "]
["5750 - Switzerland","3989 - Common Services Geneva, Human Resources","5750A00301","575","5750","575000003989        "]
["5750 - Switzerland","8119 - Marketing and Business Development","5750P00704","575","5750","575000008119        "]
["5750 - Switzerland","8147 - Procurement","5750A00203","575","5750","575000008147        "]
["5750 - Switzerland","8149 - Quality Management Standards & Systems","5750P00703","575","5750","575000008149        "]
["5750 - Switzerland","8151 - Finance","5750A00202","575","5750","575000008151        "]
["5750 - Switzerland","8398 - Relationship Team I","5750A00902","575","5750","575000008398        "]
["5750 - Switzerland","8723 - Supply Chain","5750P00702","575","5750","575000008723        "]
["5750 - Switzerland","8724 - Relationship Team II","5750A00903","575","5750","575000008724        "]
["5750 - Switzerland","8796 - Common Services Geneva, Operations","575CA00200","575","5750","575000008796        "]
["5750 - Switzerland","8880 - Director's Office","5750A00103","575","5750","575000008880        "]
["5750 - Switzerland","8881 - Deputy Director Operations & Finance","5750A00201","575","5750","575000008881        "]
["5750 - Switzerland","8939 - Deputy Director Central Fundraising","5750A00601","575","5750","575000008939        "]
["5750 - Switzerland","8947 - Corporate Fundraising","5750A00606","575","5750","575000008947        "]
["575R - CEE/CIS","3094 - Europe and Central Asia Regional Office","575RB00000","575","5750","575000003094        "]
["575R - CEE/CIS","3990 - Moscow, Russia Project Office","575RC00000","370","4470","447000003990        "]
["575R - CEE/CIS","66 - Europe and Central Asia Region","575RA00000","575","5750","575000000066        "]
["6110 - Belize","2104 - Belize","6110A00000","333","3330","333000002104        "]
["6110 - Belize","8401 - Belize City, Belize","6110B00000","611","6110","611000008401        "]
["6260 - Zimbabwe","2031 - Zimbabwe","6260A00000","626","6260","626000002031        "]
["6260 - Zimbabwe","2564 - Bulawayo, Zimbabwe","6260C00000","626","6261","626100002564        "]
["6260 - Zimbabwe","362 - Harare, Zimbabwe","6260B00000","626","6260","626000000362        "]
["6350 - Oman","2075 - Oman","6350A00000","635","6350","635000002075        "]
["6350 - Oman","369 - Muscat, Oman","6350B00000","635","6350","635000000369        "]
["6490 - Papua New Guinea","1613 - Port Moresby, Papua N. Guinea","6490B00000","649","6490","649000001613        "]
["6490 - Papua New Guinea","2053 - Papua New Guinea","6490A00000","649","6490","649000002053        "]
["6620 - Comoros","1516 - Moroni, Comoros","6620B00000","662","6620","662000001516        "]
["6620 - Comoros","2041 - Comoros","6620A00000","662","6620","662000002041        "]
["6690 - Djibouti","1537 - Djibouti, Djibouti","6690B00000","669","6690","669000001537        "]
["6690 - Djibouti","2073 - Djibouti","6690A00000","669","6690","669000002073        "]
["6810 - Angola","1704 - Lubango, Angola","6810D00000","681","6811","681100001704        "]
["6810 - Angola","2035 - Angola","6810A00000","681","6810","681000002035        "]
["6810 - Angola","306 - Luanda, Angola","6810B00000","681","6810","681000000306        "]
["6810 - Angola","3340 - Kuito Bie, Angola","6810F00000","681","681E","681E00003340        "]
["6810 - Angola","4209 - Kunene, Angola","6810C00000","681","681T","681T00004209        "]
["6810 - Angola","9031 - Luena, Angola","6810E00000","681","6813","681300009031        "]
["6820 - Cabo Verde","1609 - Praia, Republic of Cabo Verde","6820B00000","682","6820","682000001609        "]
["6820 - Cabo Verde","2022 - Republic of Cabo Verde","6820A00000","682","6820","682000002022        "]
["6830 - Sao Tome & Principe","1584 - Sao Tome, Sao Tome Principe","6830B00000","683","6830","683000001584        "]
["6830 - Sao Tome & Principe","2003 - Sao Tome Principe","6830A00000","683","6830","683000002003        "]
["6850 - Guinea Bissau","2010 - Guinea Bissau","6850A00000","685","6850","685000002010        "]
["6850 - Guinea Bissau","388 - Bissau, Guinea Bissau","6850B00000","685","6850","685000000388        "]
["6890 - Republic of Mozambique","2037 - Republic of Mozambique","6890A00000","689","6890","689000002037        "]
["6890 - Republic of Mozambique","307 - Maputo, Republic of Mozambique","6890B00000","689","6890","689000000307        "]
["6980 - Namibia","2043 - Namibia","6980A00000","698","6980","698000002043        "]
["6980 - Namibia","379 - Windhoek, Namibia","6980B00000","698","6980","698000000379        "]
["7050 - Palestine, State of","2074 - State of Palestine","7050A00000","705","7050","705000002074        "]
["7050 - Palestine, State of","8808 - East Jerusalem, State of Palestine","7050B00000","705","7055","705500008808        "]
["7050 - Palestine, State of","8928 - Hebron, State of Palestine","7050D00000","705","7056","705600008928        "]
["7050 - Palestine, State of","8933 - Nablus, State of Palestine","7050F00000","705","7058","705800008933        "]
["7050 - Palestine, State of","8937 - Rafah, State of Palestine","7050G00000","705","705B","705B00008937        "]
["7050 - Palestine, State of","9000 - Gaza,  State of Palestine","7050C00000","705","7050","705000009000        "]
["7050 - Palestine, State of","9001 - Ramallah, State of Palestine","7050H00000","705","7054","705400009001        "]
["7050 - Palestine, State of","9063 - Khan Yunis, State of Palestine","7050E00000","705","705C","705C00009063        "]
["7060 - Timor-Leste","2046 - Timor-Leste","7060A00000","706","7060","706000002046        "]
["7060 - Timor-Leste","8555 - Dili, Timor-Leste","7060B00000","706","7060","706000008555        "]
["8950 - Republic of Montenegro","2094 - Republic of Montenegro","8950A00000","895","4951","495100002094        "]
["8950 - Republic of Montenegro","4726 - Podgorica, Republic of Montenegro","8950B00000","895","4951","495100004726        "]
["8970 - Serbia","1617 - Belgrade,  Serbia","8970B00000","897","4950","495000001617        "]
["8970 - Serbia","2082 - Republic of Serbia","8970A00000","897","4950","495000002082        "]
["8971 - Kosovo","1732 - Kosovo UNSCR 1244","8971B00000","897","4957","495700001732        "]
["8971 - Kosovo","4203 - Zvecan, Kosovo UNSCR 1244","8971C00000","897","4959","495900004203        "]

{"sheet":"DD_SD","index":4,"n_rows":805,"n_cols":21,"rows_kept":805,"cut":false,"hidden":true,"merged":[]}
["block",null,"Contry codes",null,"Vendor account group","Business Area",null,"Payment Method",null,null,"Account Type",null,"Partner Type","CSO Type","Type of Assessment done","Risk Rating",null,"Parent Organization exists","Cost Ctr"]
["… Select",null,"… Select","Currency","… Select","… Select",null,"… Select",null,null,"01 - Current/Checking account",null,"Civil Society Organisations","Intenational NGO","Micro Assessment","Not Required",null,"Y","0060A00000 - AFGHANISTAN",null,"0001 Payable immediately Due net"]
["1 POs/LTAs not permitted (refer to SEU/DB)",null,"000 Unknown","… Select","ZFWD Forwarders","0060 Afghanistan",null,"0 TR - Outbound Payment No Output",null,null,"02 - Saving account",null,"Bilateral/Multilateral","National NGO","High Risk Assumed","Low",null,"N","0060B00000 - KABUL AFGHANISTAN",null,"0002 within 14 days 3 % cash discount"]
["2 Block request and purchase order",null,"001 Greenland","ADP Peseta-DO NOT USE","ZVEN Vendors -SD","0090 Albania",null,"1 TR - Urgent Payment (URGP)",{"$nulls":4},"Government","Community Based Organisation","Negative Audit Results","Medium",null,null,"0060C00000 - KABUL ZO CENTRAL",null," within 30 days 2 % cash discount"]
["3 Block quot.req., order and goods receipt",null,"004 Guam","AED United Arab Emirates Dirham",null,"0120 Algeria",null,"2 TR - EUR ACH (SEPA)",{"$nulls":4},"UN Agency","Academic Institution","Simplified checklist","Significant",null,null,"0060D00000 - BAMYAN CENTRAL",null," within 45 days Due net"]
["4 Block source determination",null,"006 Afghanistan","AFA Afghani-DO NOT USE",null,"0240 Argentina",null,"3 TR - Non Urgent Payment (NURG)",{"$nulls":6},"Others","High",null,null,"0060E00000 - DAIKUNDI CENTRAL",null,"0003 For Invoicing up to 15 of Month"]
["11 PQ manuf. Site. PO with main supplier",null,"009 Albania","AFA01 Afghani-DO NOT USE",null,"0260 Armenia",null,"4 TR - Book Transfer (BKTR)",{"$nulls":10},"0060F00000 - GARDEZCENTRAL",null," within 14 days 2 % cash discount"]
["21 Potential supplier, Not GMP evaluated",null,"012 Algeria","AFN Afghani",null,"0310 Azerbaijan",null,"5 Domestic Bank Transfer Letter",{"$nulls":10},"0060G00000 - PARWAN CENTRAL",null," within 30 days 1.5 % cash discount"]
["74 Block on vendor's product for quality",null,"024 Argentina","ALL Albanian Lek(e)","Vendor account group","0420 Barbados",null,"7 Check",{"$nulls":10},"0060H00000 - JALALABAD EASTERN",null," within 45 days Due net"]
["97 Blocked for ethical reasons(total block)",null,"025 Aruba","AMD Armenian Dram","… Select","0490 Bhutan",null,"A Incountry Domestic Payment",{"$nulls":10},"0060I00000 - MEZAR-I-SHARIF NORTH",null," Baseline date on 30 of the month"]
["98 Failed GMP inspection / total block",null,"026 Armenia","ANG Netherlands Antillean Gulder","Local Destinations (ZLC  - ‘L’),","0510 Bolivia",null,"B AP - Book Transfer (BKTR)",{"$nulls":10},"0060J00000 - FAIZABAD NORTHERN",null," For Invoicing up to End  of Month"]
["99 Not Recommended by SEU/Total block",null,"027 Australia","AOA Angolan Kwanza","Governments (ZGV – ‘G’),","0520 Botswana",null,"C Payment By Check",{"$nulls":10},"0060K00000 - FARYABNORTHERN",null," within 14 days 2.125 % cash discount"]
[null,null,"030 Austria","AOR Kwanza Reajustado-DO NOT USE","Inter-governmental Agencies (ZOI – ‘I’),","0530 Bosnia and Herzegovina",null,"D Elec. Banking DMT/GMT - NY",{"$nulls":10},"0060L00000 - KUNDUZ NORTHERN",null," within 30 days 1.5 % cash discount"]
[null,null,"031 Azerbaijan","AOR01 Angolan Kwanza-DO NOT USE","National Committees (ZNC) – ‘C’),","0540 Brazil",null,"F AP - DFT Tax Payment",{"$nulls":10},"0060M00000 - KANDAHARSOUTHERN",null," within 45 days Due net"]
[null,null,"042 Barbados","ARS Argentine Peso","Non-governmental Organizations (ZNG – ‘N’)","0570 Bulgaria",null,"G HR - Non Urgent Payment (NURG)",{"$nulls":10},"0060N00000 - NIMROZ SOUTHERN",null," Baseline date on 15 of next month"]
[null,null,"048 Belgium","ATS Austrian Schilling-DO NOT USE","United Nations System (ZUN – ‘U’),","0600 Myanmar",null,"K AP - Managers Check",{"$nulls":10},"0060O00000 - HERATWESTERN",null,"0004 within 14 days 3 % cash discount"]
[null,null,"049 Bhutan","AUD Australian Dollar","Field Offices -non SLU/SLN  (ZFO – ‘F’),","0610 Burundi",null,"L Cash Payment Letter",{"$nulls":10},"0060P00000 - BADGHIS WESTERN",null," within 30 days 1 % cash discount"]
["… Select",null,"051 Bolivia","AWG Aruban Guilder","Field Offices -SLU/SLN only (ZFU – ‘Z’),","0630 Belarus",null,"N AP - Non Urgent Payment (NURG)",{"$nulls":10},"0060Q00000 - FARAHWESTERN",null," within 60 days Due net"]
[1000,null,"052 Botswana","AZM Azerbaijan Manat-DO NOT USE","Individuals –Others  (ZIN – ‘O’),","0660 Cambodia",null,"S AP - EUR ACH (SEPA)",{"$nulls":10},"0060R00000 - GHOR WESTERN",null,"0005 within 10 days 2 % cash discount"]
[null,null,"053 Bosnia-Herz.","AZN New Azerbaijan Manat","Joint Ventures – Worldwide (ZJT – ‘J’),","0690 Republic of Cameroon",null,"T Bank Trasfer",{"$nulls":10},"0090A00000 - ALBANIA",null," within 30 days 1 % cash discount"]
[null,null,"054 Brazil","BAD Bosnia-Herzogovinian Dinar-DO NOT USE","Country Office - Guest Houses (ZNH – ‘GH’),","0750 Central African Republic",null,"U AP - Urgent Payment (URGP)",{"$nulls":10},"0090B00000 - TIRANA ALBANIA",null," within 50 days Due net"]
[null,null,"057 Bulgaria","BAM Bosnia-Herzegovina Mark","Staff members (ZSM – ‘S’) (non-payroll bank information, block/unblock)","0780 Sri Lanka",null,"X PMW XML Outbound Bank Transfer",{"$nulls":10},"0120A00000 - ALGERIA",null,"0006 Before End of the month 4 % cash discount"]
[null,null,"060 Myanmar","BBD Barbados Dollar","One time customers (ZOT – ‘PO’),","0810 Chad",null,"BCLNTU",{"$nulls":10},"0120B00000 - ALGIERS ALGERIA",null," Before 15 of the next month ;; 2 % cash discount"]
["… Select",null,"061 Burundi","BDT Bangladesh Taka",null,"0840 Chile",null,"ACDT",{"$nulls":10},"0240A00000 - ARGENTINA",null," Before 15 in 2 months Due net"]
["Create ",null,"063 Belarus","BEF Belgian Franc-DO NOT USE",null,"0860 China",{"$nulls":12},"0240B00000 - BUENOS AIRES AR",null,"0007 within 14 days 4 % cash discount"]
["Update",null,"066 Cambodia","BGL Bulgarian Lev(a)-DO NOT USE",null,"0930 Colombia",{"$nulls":12},"0240C00000 - SOUTHERN CONE HUB AR",null," within 30 days 2 % cash discount"]
["Block",null,"069 Cameroon","BGN Bulgarian Lev(a)",null,"0990 Democratic Republic of Congo","0001 Sales Org. 001",null,"0001 Government",null,null,"000 Allocation number",null,null,"1400110 Contribution receivable - Government",null,null,null,"0260A00000 - ARMENIA",null," within 60 days Due net"]
["Unblock",null,"071 Canary Islands","BHD Bahrain Dinar",null,"1020 Costa Rica","1000 UNICEF",null,"0002 Non-Governmental Org",null,null,"001 Posting date",null,null,"1400120 Contribution Receivable (Int-gov Org.)",null,null,null,"0260B00000 - YEREVAN ARMENIA",null,"0008 Payable immediately Due net"]
["Mark for deletion",null,"072 Canada","BIF Burundi Franc",null,"1030 Croatia","2000 PFP-GR, Geneva",null,"0003 Permanent Mission",null,null,"002 Doc.no., fiscal year",null,null,"1400130 Contribution Receivable (NGO)",null,null,null,"0310A00000 - AZERBAIJAN",null," Baseline date on End of the month"]
["Unmark for deletion",null,"075 Central Afr.Rep","BMD Bermudan Dollar",null,"1050 Cuba","2100 PFP-GR, New York",null,"0004 Private Organization",null,null,"003 Document date",null,null,"1400140 Contribution Receivable (Nat. Comms.)",null,null,null,"0310B00000 - BAKU AZERBAIJAN",null,"0009 For Invoicing up to 15 of Month"]
["… Select",null,"078 Sri Lanka","BND Brunei Dollar",null,"1170 Benin","2200 PFP, SF & ERR",null,"0005 UN Secretariat",null,null,"004 Branch account",null,null,"1400150 Contribution Receivable (UN Agencies)",null,null,null,"0420A00000 - BARBADOS - MCP",null," Before 15 of the next month ;; 2.125 % cash disc"]
["Yes",null,"081 Chad","BOB Boliviano",null,"1200 Denmark",null,null,"0006 Other UN Organizatio",null,null,"005 Loc.currency amount",null,null,"1400160 Contribution Receivable (FO-PSFR)",null,null,null,"0420B00000 - BRIDGETOWN BARBADOS",null," Before End of the next month ;; Due net"]
["No",null,"084 Chile","BRL Brazilian Real",null,"120X Procurement Services","01 Distribtn Channel 01",null,"0007 Self Employed",null,null,"006 Doc.currency amount",null,null,"1400161 Adjustment to Contribution Receivable (FO-PSFR)",null,null,null,"0420C00000 - PORT OF SPAIN TT",null," For Invoicing up to End  of Month"]
[null,null,"086 China","BSD Bahamian Dollar",null,"1260 Dominican Republic","10 UNICEF Programmes",null,"0008 Global Corp. Donors",null,null,"007 Bill/exch.due date",null,null,"1420110 Contributions In-Kind Receivable (Government)",null,null,null,"0490A00000 - BHUTAN",null," Before End of the next month ;; 2.125 % cash dis"]
[null,null,"093 Colombia","BTN Bhutanese Ngultrum",null,"1350 Ecuador","11 UNICEF Proc. Service",null,"0009 Exec. Board Member",null,null,"008 Cost center",null,null,"1420120 Contributions In-Kind Receivable (Int-gov Org)",null,null,null,"0490B00000 - THIMPHU BHUTAN",null," Before 15 in 2 months Due net"]
[null,null,"099 Congo, Dem. Rep","BWP Botswana Pula",null,"1380 El Salvador","20 PFP",null,"Z100 WCARO",null,null,"009 External doc.number",null,null,"1420130 Contributions In-Kind Receivable (NGO)",null,null,null,"0510A00000 - BOLIVIA",null,"0010 Payable immediately Due net"]
[null,null,"102 Costa Rica","BYB Belarus Ruble-DO NOT USE",null,"1390 Equatorial Guinea",null,null,"Z150 ESARO",null,null,"010 Purchase order no.",null,null,"1420140 Contributions In-Kind Receivable (Nat Comms)",null,null,null,"0510B00000 - LA PAZ BOLIVIA",null," Baseline date on 10 of next month"]
[null,null,"103 Croatia","BYR Belarusian Ruble-USE BYR01",null,"1410 Ethiopia","01 Product Division 01",null,"Z200 EAPRO",null,null,"011 Plant number",null,null,"1420150 Contributions In-Kind Receivable (UN Agencies)",null,null,null,"0510C00000 - COCHABAMBA",null,"0011 within 10 days 3 % cash discount"]
[null,null,"105 Cuba","BYR01 Belarusian Ruble",null,"1420 Eritrea","10 UNICEF stock items",null,"Z250 ROSA",null,null,"012 Vendor number",null,null,"1420160 Contributions In-Kind Receivable (PSFR)",null,null,null,"0510D00000 - SUCRE BOLIVIA",null,"0012 Payable immediately Due net"]
[null,null,"111 Cyprus","BZD Belize Dollar",null,"1430 Fiji (Pacific Islands)","11 UNICEF non-stk items",null,"Z300 MENA",null,null,"014 Purchase order",null,null,"1420260 Contributions In-Kind Receivable (PSFR)",null,null,null,"0520A00000 - BOTSWANA",null," Baseline date on 11 of next month"]
[null,null,"113 Czech Republic","CAD Canadian Dollar",null,"1530 Gabon","12 Unicef PS ResRelBill",null,"Z350 TACRO",null,null,"015 Personnel number",null,null,"1500110 Advances (Salary)",null,null,null,"0520B00000 - GABORONE BOTSWANA",null,"0014 within 10 days 5 % cash discount"]
[null,null,"117 Benin","CDF Franc Congolais",null,"1560 Gambia","21 Cards & Products",null,"Z400 CEE/NIS",null,null,"016 Settlement period",null,null,"1500120 Special Authorized Staff Advances",null,null,null,"0530A00000 - BOSNIA HERZEGOVINA",null,"0015 within 10 days 3 % cash discount"]
[null,null,"120 Denmark","CHF Swiss Franc",null,"1600 Georgia","22 Promotion",null,"Z500 North America  (ODA)",null,null,"017 Settl.per., pers.no.",null,null,"1500130 Staff Rental Advance",null,null,null,"0530B00000 - SARAJEVO BA",null," within 15 days 2 % cash discount"]
[null,null,"126 Dominican Rep.","CLP Chilean Peso",null,"1620 Ghana","23 Fund Raising",null,"Z550 Pacific        (ODA)",null,null,"018 Asset number",null,null,"1500190 Other staff receivables",null,null,null,"0530C00000 - BANJA LUKA",null," within 20 days Due net"]
[null,null,"135 Ecuador","CNY Chinese Yuan Renminbi",null,"1680 Guatemala","24 Fund Raising ERR",null,"Z600 Western Europe (ODA)",null,null,"021 Segment text",null,null,"1510110 Receivables (Product Sales)",null,null,null,"0540A00000 - BRAZIL",null,"0016 within 14 days 3 % cash discount"]
[null,null,"138 El Salvador","COP Colombian Peso",null,"1770 Guinea","90 UNICEF Products",null,"Z650 Nordic Region  (ODA)",null,null,"022 One-time name / city",null,null,"1510130 Prod.sales - Natcom & FO's",null,null,null,"0540B00000 - BRASILIA BRAZIL",null," within 20 days 2 % cash discount"]
[null,null,"139 Equatorial Guin","CRC Costa Rica Colon",null,"1800 Guyana",null,null,"Z998 Multinational",null,null,"023 One-time city / name",null,null,"1510140 Licensing Receivables - Natcoms & Others",null,null,null,"0540C00000 - BELEM",null," within 30 days Due net"]
[null,null,"140 Estonia","CSD Serbia Dinar-DO NOT USE",null,"1830 Haiti","Payment terms",null,"Z999 UN System",null,null,"024 Document header text",null,null,"1510160 Licensing Receivables - FO PSFR",null,null,null,"0540D00000 - FORTALEZA",null,"0017 Payable in 3 partial amounts"]
[null,null,"141 Ethiopia","CUC Cuban Peso",null,"1860 Honduras","… Select",null,"ZHQ Staff - Headquarters",null,null,"025 CPU date",null,null,"1520610 Receivables (Procurement Services)",null,null,null,"0540E00000 - MANAUS",null," 1 installment: 30.000 % with payment term 0001"]
[null,null,"142 Eritrea","CUP Cuban Peso",null,"1950 Global Shared Service Center","Z000 Up-front payment",null,"ZLC  Staff - Local",null,null,"026 Pmnt per.bslne date",null,null,"1520810 Receivables (UN Agencies)",null,null,null,"0540F00000 - RECIFE",null," 2 installment: 40.000 % with payment term 0001"]
[null,null,"143 Fiji","CUP1 Cuban Peso (non convertible)",null,"2040 India","Z002 (4) equal quarterly payments",{"$nulls":4},"027 Value date",null,null,"1520910 Receivables (Miscellaneous)",null,null,null,"0540G00000 - SALVADOR",null," 3 installment: 30.000 % with payment term 0001"]
[null,null,"144 Finland","CVE Cape Verde Escudo",null,"2070 Indonesia","Z003 Reimbursement of expenses",{"$nulls":4},"028 Asset number",null,null,"1550110 Prepaid Travel",null,null,null,"0540H00000 - SAO LUIS",null,"Y000 Payment due in 30 days"]
[null,null,"147 France","CYP Cyprus Pound-DO NOT USE",null,"2100 Iran","Z004 (2) six-months payment",null,"PRIV",null,null,"029 Pstng month, vendor",null,null,"1550120 Prepaid Education grant",null,null,null,"0540I00000 - SAO PAULO",null,"Y001 within 29 days 2 % cash discount"]
[null,null,"153 Gabon","CZK Czech Koruna",null,"2130 Iraq","Z005 ECHO: (2) instalments",null,"PUBL",null,null,"031 Customer number",null,null,"2200110 Reconciliation (Procurement Services)",null,null,null,"0540J00000 - RIO DE JANEIRO BR",null," within 30 days Due net"]
[null,null,"156 Gambia","DEM Deutsche Mark-DO NOT USE",null,"2220 Office of Research, Italy","Z006 ECHO (80% advance)",{"$nulls":4},"032 Pstng yr,month,curr.",null,null,"2200120 Reconciliation (Japanese Special Account)",null,null,null,"0570A00000 - BULGARIA",null,"Y002 within 30 days Due net"]
[null,null,"160 Georgia","DJF Djibouti Franc",null,"2250 Cote D'Ivoire","Z010 Automatic payment block;pay immediately - NY",{"$nulls":4},"033 Cost center",null,null,"2200190 Reconciliation (Other Trust Accounts)",null,null,null,"0570B00000 - SOFIA BULGARIA",null,"Y005 within 12 days 2 % cash discount"]
[null,null,"162 Ghana","DKK Danish Krone",null,"2280 Jamaica","Z020 Within 30 days Due net - NY",{"$nulls":4},"034 Month, cost center",null,null,"2310110 SAP HR Iwop pension/insurance pre-payments",null,null,null,"0600A00000 - MYANMAR",null," within 30 days Due net"]
[null,null,"163 Gibraltar","DOP Dominican Peso",null,"2340 Jordan","Z110 Automatic payment block;pay immediately - CPH",{"$nulls":4},"036 Order",null,null,"2520110 Unapplied Contributions Receipts",null,null,null,"0600B00000 - YANGON MYANMAR",null,"Y010 Payment due in 10 days(Without discount)"]
[null,null,"165 Greece","DZD Algerian Dinar",null,"234R MENA, Jordan","Z120 Within 30 days Due net",{"$nulls":4},"037 Currency key",null,null,"2520112 PSFR Unapp ORR Cont Receipts",null,null,null,"0600C00000 - KALAY",null,"Y020 Payment due in 20 days(Without discount)"]
[null,null,"168 Guatemala","ECS Ecuador Sucre-DO NOT USE",null,"2390 Kazakhstan","Z121 3% 15 days, Within 30 days Due net",{"$nulls":4},"039 Project number",null,null,"2520120 Unapplied Contributions-in-Kind",null,null,null,"0600D00000 - KENGTUNG",null,"Y100 Payment due in 30 days"]
[null,null,"177 Guinea","EEK Estonian Kroon(i)-DO NOT USE",null,"2400 Kenya","Z122 Within 10 days 3 % cash discount",{"$nulls":4},"055 Fiscal year, month",null,null,"2520130 Cash Advances from Donors",null,null,null,"0600E00000 - MANDALAY",null,"Y101 within 29 days 2 % cash discount"]
[null,null,"180 Guyana","EGP Egyptian Pound",null,"240B Innovation Center","Z123 Within 15 days 2.5% cash discount",{"$nulls":4},"060 Test0",null,null,"2530110 Funds to be Returned",null,null,null,"0600F00000 - MAWLAMYINE",null," within 30 days Due net"]
[null,null,"183 Haiti","ERN Eritrean Nakfa",null,"240R ESARO, Kenya","Z124 Within 20 days 2% cash discount",{"$nulls":4},"061 Test1",{"$nulls":6},"0600G00000 - MYEIK",null,"Y104 within 7 days 0.5 % cash discount"]
[null,null,"186 Honduras","ESP Spanish Peseta-DO NOT USE",null,"2450 Republic of Kyrgyzstan","Z125 10 days 3%, 15 days 2.5%, 30 days net",{"$nulls":4},"065 Test5",{"$nulls":6},"0600H00000 - MYITKYINA",null," within 30 days Due net"]
[null,null,"195 Hungary","ETB Ethiopian Birr",null,"2460 Lao People's Dem Rep.","Z126 15 days 2.5%, 20 days 2%, 30 days net",{"$nulls":4},"101 Cash discnt clearing",null,null,"0001 Four-level dunning notice, every two weeks",null,null,null,"0600I00000 - TAUNGGYI",null,"Y105 within 7 days 0.7 % cash discount"]
[null,null,"198 Iceland","EUR Euro",null,"2490 Lebanon","Z127 10 days 3%, 20 days 2%, 30 days net",{"$nulls":4},"Z01 WBS Element",null,null,"0003 Payment reminder, every two weeks",null,null,null,"0600J00000 - MAUNGDAW",null," within 30 days Due net"]
[null,null,"204 India","FIM Finnish Markka-DO NOT USE",null,"2520 Lesotho","Z910 30 days net (direct disbursement by partner)",{"$nulls":4},"Z02 Reference Number",null,null,"Z001 Contrib/Sp. Accts. (BAs: GR/SF/ERR/SA), Cust Grp G/I/N/O/U",null,null,null,"0600K00000 - LASHIO",null,"Y106 within 10 days 1 % cash discount"]
[null,null,"207 Indonesia","FJD Fiji Dollar",null,"2550 Liberia","Z911 Donations - Not for disbursement",{"$nulls":4},"Z03 Material Number",null,null,"Z002 Private sector (BAs GR/SF/ER) Cust. groups C/F",null,null,null,"0600L00000 - HAKHA MYANMAR",null," within 30 days Due net"]
[null,null,"210 Iran","FRF French Franc-DO NOT USE",null,"2580 Libya","Z913 Prepaid",{"$nulls":4},"Z05 Fund",{"$nulls":6},"0600M00000 - DAWEI MYANMAR",null,"Y107 within 10 days 1.5 % cash discount"]
[null,null,"213 Iraq","GBP Pound Sterling",null,"2660 Macedonia","Z914 For Pre-payments",{"$nulls":4},"Z06 Doc.no. L/Item,F/yr",null,null,"A1 Chief Field Accounts",null,null,null,"0610A00000 - BURUNDI",null," within 30 days Due net"]
[null,null,"216 Ireland","GEK Georgian Kupon-DO NOT USE",null,"2670 Madagascar","Z915 30 days net (direct disbursement by KfW)",{"$nulls":4},"Z31 Funds recd/Customer",null,null,"A2 Accounts Officer",null,null,null,"0610B00000 - BUJUMBURA BURUNDI",null,"Y108 within 10 days 2 % cash discount"]
[null,null,"219 Israel","GEL Georgian Lari",null,"2690 Malawi","0001 Payable immediately Due net",{"$nulls":7},"A3 Accounts Officer",null,null,null,"0610C00000 - GITEGA",null," within 30 days Due net"]
[null,null,"222 Italy","GHC Ghanian Cedi-DO NOT USE",null,"2700 Malaysia","0002 within 14 days 3 % cash discount",{"$nulls":7},"C0 Chief Contributions Unit",null,null,null,"0630A00000 - BELARUS",null,"Y109 within 10 days 3 % cash discount"]
[null,null,"225 Cote d'Ivoire","GHS Ghana Cedi (new)",null,"2740 Maldives"," within 30 days 2 % cash discount",{"$nulls":7},"C1 Contributions Team 1",null,null,null,"0630B00000 - MINSK BELARUS",null," within 30 days Due net"]
[null,null,"228 Jamaica","GIP Gibraltar Pound",null,"2760 Mali"," within 45 days Due net",{"$nulls":7},"C2 Contributions Team 2",null,null,null,"0660A00000 - CAMBODIA",null,"Y110 within 15 days 0.5 % cash discount"]
[null,null,"231 Japan","GMD Gambian Dalasi",null,"2820 Mauritania","0003 For incoming invoices until 15 of the month",{"$nulls":7},"C3 Contributions Team 3",null,null,null,"0660B00000 - PHNOM PENH CAMBODIA",null," within 30 days Due net"]
[null,null,"234 Jordan","GNF Guinean Franc",null,"2850 Mexico"," within 14 days 2 % cash discount",{"$nulls":7},"D1 Comptroller",null,null,null,"0660C00000 - BATTAMBANG",null,"Y111 within 15 days 0.55 % cash discount"]
[null,null,"239 Kazakhstan","GRD Greek Drachma-DO NOT USE",null,"2880 Mongolia"," within 30 days 1.5 % cash discount",{"$nulls":7},"D2 DFAM/Deputy Director, Accts",null,null,null,"0660D00000 - PREAH SIHANOUK",null," within 30 days Due net"]
[null,null,"240 Kenya","GTQ Guatemalan Quetzal",null,"2910 Morocco"," within 45 days Due net",{"$nulls":7},"D3 DFAM/Deputy Director,Budget",null,null,null,"0660E00000 - SIEM REAP",null,"Y112 within 15 days 0.6 % cash discount"]
[null,null,"243 Kuwait","GWP Guinea Peso-DO NOT USE",null,"2970 Nepal"," Baseline date on 30 of the month",{"$nulls":7},"D4 DFAM/Deputy Director,Finance",null,null,null,"0660F00000 - KAMPONG CHAM",null," within 30 days Due net"]
[null,null,"245 Kyrgyzstan","GYD Guyanese Dollar",null,"297R ROSA, Nepal"," For incoming invoices until End  of the month",{"$nulls":7},"E1 Vacant",null,null,null,"0660G00000 - PHNOM PENH ZONE",null,"Y113 within 15 days 1 % cash discount"]
[null,null,"246 Lao,Peo.Dem.Rep","HKD Hong Kong Dollar",null,"3120 Nicaragua"," within 14 days 2.125 % cash discount",{"$nulls":7},"E2 K. Hulshof",null,null,null,"0690A00000 - REPUBLIC OF CAMEROON",null," within 30 days Due net"]
[null,null,"247 Latvia","HNL Honduran Lempira",null,"3180 Niger"," within 30 days 1.5 % cash discount",{"$nulls":7},"F0 Funding Monitoring Officer",null,null,null,"0690B00000 - YAOUNDE CAMEROON",null,"Y114 within 15 days 2 % cash discount"]
[null,null,"249 Lebanon","HRK Croatian Kuna",null,"3210 Nigeria"," within 45 days Due net",{"$nulls":7},"F1 Funding Cluster No. 1",null,null,null,"0690C00000 - DOUALA",null," within 30 days Due net"]
[null,null,"252 Lesotho","HTG Haitian Gourde",null,"3300 Pakistan"," Baseline date on 15 of next month",{"$nulls":7},"F2 Funding Cluster No. 2",null,null,null,"0690D00000 - NGAOUNDERE",null,"Z000 Up-front payment"]
[null,null,"255 Liberia","HUF Hungarian Forint",null,"3330 Panama","0004 within 14 days 3 % cash discount",{"$nulls":7},"F3 Funding Cluster No. 3",null,null,null,"0690E00000 - BERTOUA",null,"Z001 PFP: Baseline equal to NC's fiscal year-end"]
[null,null,"258 Libya","IDR Indonesian Rupiah",null,"333R LACRO, Panama"," within 30 days 1 % cash discount",{"$nulls":7},"F4 Funding Cluster No. 4",null,null,null,"0690F00000 - GAROUA CAMEROON",null,"Z002 (4) equal quarterly payments"]
[null,null,"260 Lithuania","IEP Irish Pound-DO NOT USE",null,"3360 Paraguay"," within 60 days Due net",{"$nulls":7},"F5 Funding Cluster No. 5",null,null,null,"0690G00000 - MAROUA CAMEROON",null,"Z003 Reimbursement of expenses"]
[null,null,"264 Luxembourg","ILS Israeli Shekel",null,"3380 Congo","0005 within 10 days 2 % cash discount",{"$nulls":7},"F6 Funding Cluster No. 6",null,null,null,"0750A00000 - CENTRAL AFRICAN REP.",null,"Z004 (2) six-months payment"]
[null,null,"266 Macedonia, TFYR","INR Indian Rupee",null,"3390 Peru"," within 30 days 1 % cash discount",{"$nulls":7},"F7 Deputy Director, PFO",null,null,null,"0750B00000 - BANGUI CAR",null,"Z005 ECHO: (2) instalments"]
[null,null,"267 Madagascar","IQD Iraqui Dinar",null,"3420 Philippines"," within 50 days Due net",{"$nulls":7},"F8 Director, PFO",null,null,null,"0750C00000 - BOSSANGOA CAR",null,"Z006 ECHO (80% advance)"]
[null,null,"269 Malawi","IRR Iranian Rial",null,"3660 Romania","0006 Before End of the month 4 % cash discount",{"$nulls":7},"S1 Chief Operations, SD",null,null,null,"0750D00000 - KANGA BANDORO CAR",null,"Z007 Payment due in (3) months"]
[null,null,"270 Malaysia","ISK Iceland Krona",null,"3700 Russia"," Before 15 of the next month ;; 2 % cash discount",{"$nulls":7},"S2 Finance Officer, SD",null,null,null,"0750E00000 - BAMBARI CAR",null,"Z008 Payment due in (9) months"]
[null,null,"274 Maldives,Rep of","ITL Italian Lira-DO NOT USE",null,"3750 Rwanda"," Before 15 in 2 months Due net",{"$nulls":7},"S3 Finance Officer, SD",null,null,null,"0750F00000 - BOUAR CAR",null,"Z009 Payment due in (12) months"]
[null,null,"276 Mali","JMD Jamaican Dollar",null,"3780 Saudi Arabia","0007 within 14 days 4 % cash discount",{"$nulls":7},"S4 Finance Officer, SD",null,null,null,"0750G00000 - NDELE CAR",null,"Z010 Automatic payment block;pay immediately - NY"]
[null,null,"279 Malta","JOD Jordanian Dinar",null,"3810 Senegal"," within 30 days 2 % cash discount",{"$nulls":11},"0750H00000 - ZEMIO CAR",null,"Z020 Within 30 days Due net - NY"]
[null,null,"282 Mauritania","JPY Japanese Yen",null,"381R WCARO, Senegal"," within 60 days Due net",{"$nulls":11},"0780A00000 - SRI LANKA",null,"Z110 Automatic payment block;pay immediately - CPH"]
[null,null,"283 Mauritius","KES Kenyan Shilling",null,"3900 Sierra Leone","0008 Payable immediately Due net",{"$nulls":11},"0780B00000 - COLOMBO SRI LANKA",null,"Z120 Within 30 days Due net"]
[null,null,"285 Mexico","KGS Kyrgyzstan Som",null,"3920 Somalia"," Baseline date on End of the month",{"$nulls":11},"0780C00000 - BATTILCALOA",null,"Z121 3% 15 days, Within 30 days Due net"]
[null,null,"288 Mongolia","KHR Cambodian Riel",null,"3930 South Africa","0009 For incoming invoices until 15 of the month",{"$nulls":11},"0780D00000 - JAFFNA",null,"Z122 Within 10 days 3 % cash discount"]
[null,null,"291 Morocco","KMF Comoros Franc",null,"4020 Sudan"," Before 15 of the next month ;; 2.125 % cash disc",{"$nulls":11},"0780E00000 - VAVUNIYA",null,"Z123 Within 15 days 2.5% cash discount"]
[null,null,"297 Nepal","KPW North Korean Won-USE KPW01",null,"4030 Swaziland"," Before End of the next month ;; Due net",{"$nulls":11},"0780F00000 - KILINOCHCHI",null,"Z124 Within 20 days 2% cash discount"]
[null,null,"300 Netherlands","KPW01 KPW",null,"4040 South Sudan"," For incoming invoices until End  of the month",{"$nulls":11},"0810A00000 - CHAD",null,"Z125 10 days 3%, 15 days 2.5%, 30 days net"]
[null,null,"309 New Zealand","KRW South Korean Won",null,"4140 Syria"," Before End of the next month ;; 2.125 % cash dis",{"$nulls":11},"0810B00000 - N'DJAMENA CHAD",null,"Z126 15 days 2.5%, 20 days 2%, 30 days net"]
[null,null,"312 Nicaragua","KWD Kuwaiti Dinar",null,"4150 Tajikistan"," Before 15 in 2 months Due net",{"$nulls":11},"0810C00000 - ABECHE",null,"Z127 10 days 3%, 20 days 2%, 30 days net"]
[null,null,"318 Niger","KYD Cayman Dollar",null,"4200 Thailand","0010 Payable immediately Due net",{"$nulls":11},"0810D00000 - MOUNDOU",null,"Z901 Payable immediately Due net"]
[null,null,"321 Nigeria","KZT Kazakhstani Tenge",null,"420R EAPRO, Thailand"," Baseline date on 10 of next month",{"$nulls":11},"0810E00000 - MONGO",null,"Z902 Upon receipt of invoice"]
[null,null,"324 Norway","LAK Laotian Kip",null,"4230 Togo","0011 within 10 days 3 % cash discount",{"$nulls":11},"0810F00000 - MAO",null,"Z903 Due 10 days after receipt of invoice"]
[null,null,"330 Pakistan","LBP Lebanese Pound",null,"4320 Tunisia","0012 Payable immediately Due net",{"$nulls":11},"0810G00000 - SAHR CHAD",null,"Z904 Due 30 days after receipt of invoice"]
[null,null,"333 Panama","LKR Sri Lankan Rupee",null,"4350 Turkey"," Baseline date on 11 of next month",{"$nulls":11},"0840A00000 - CHILE",null,"Z909 Reduce FO budget on billing"]
[null,null,"336 Paraguay","LRD Liberian Dollar",null,"4360 Rep. of Turkmenistan","0014 within 10 days 5 % cash discount",{"$nulls":11},"0840B00000 - SANTIAGO CHILE"]
[null,null,"338 Congo","LSL Lesotho Loti",null,"4380 Uganda","0015 within 10 days 3 % cash discount",{"$nulls":11},"0860A00000 - CHINA"]
[null,null,"339 Peru","LTL Lithuanian Lita",null,"4410 Ukraine"," within 15 days 2 % cash discount",{"$nulls":11},"0860B00000 - BEIJING CHINA"]
[null,null,"342 Philippines","LUF Luxembourgian Franc-DO NOT USE",null,"4500 Egypt"," within 20 days Due net",{"$nulls":11},"0860C00000 - SHANGHAI"]
[null,null,"345 Poland","LVL Lativian Lat",null,"4550 United Rep. of Tanzania","0016 within 14 days 3 % cash discount",{"$nulls":11},"0930A00000 - COLOMBIA"]
[null,null,"348 Portugal","LYD Libyan Dinar",null,"456B Executive Director's Office"," within 20 days 2 % cash discount",{"$nulls":11},"0930B00000 - BOGOTA COLOMBIA"]
[null,null,"366 Romania","MAD Moroccan Dirham",null,"456C Data, Research and Policy"," within 30 days Due net",{"$nulls":11},"0930C00000 - PASTO"]
[null,null,"370 Russian Fed.","MDL Moldavan Leu",null,"456D Programme Division","0017 Payable in 3 partial amounts",{"$nulls":11},"0930D00000 - QUIBDO"]
[null,null,"375 Rwanda","MGA Malagasy Ariary",null,"456E Research Division"," 1 installment: 30.000 % with payment term 0001",{"$nulls":11},"0930E00000 - SINSELEJO"]
[null,null,"378 Saudi Arabia","MGF Malagasy Franc-DO NOT USE",null,"456F Office of Emergency Prog."," 2 installment: 40.000 % with payment term 0001",{"$nulls":11},"0930F00000 - CALI"]
[null,null,"381 Senegal","MKD Macedonian Denar",null,"456G Division of Communication"," 3 installment: 30.000 % with payment term 0001",{"$nulls":11},"0990A00000 - DR CONGO"]
[null,null,"390 Sierra Leone","MMK Myanmar Kyat",null,"456H Gov. & Multilateral  Affairs","Y000 Payment due in 30 days",{"$nulls":11},"0990B00000 - KINSHASA DRC"]
[null,null,"391 Singapore","MMK1 Myanmar Kyat - Special Rate-DO NOT USE",null,"456I Public Partnerships Division","Y001 within 29 days 2 % cash discount",{"$nulls":11},"0990B10000 - PROVINCE KINSHASA"]
[null,null,"392 Somalia","MNT Mongolian Tugrik",null,"456J Div. of Finance & Admin Mgmt"," within 30 days Due net",{"$nulls":11},"0990B20000 - OUEST KINSHASA"]
[null,null,"393 South Africa","MOP Macao Pataca",null,"456K Division of Human Resources","Y002 within 30 days Due net",{"$nulls":11},"0990C00000 - BANDUNDU"]
[null,null,"394 Slovenia","MRO Mauritanian Ouguiya",null,"456L InfoTech Solutions & Services","Y003 For incoming invoices until 15 of the month",{"$nulls":11},"0990D00000 - SUD KIVU BUKAVU"]
[null,null,"395 Slovak Republic","MTL Maltese Lira-DO NOT USE",null,"456N Int. Audit & Invest (OIAI)"," within 10 days 3 % cash discount",{"$nulls":11},"0990E00000 - ITURI BUNIA"]
[null,null,"399 Spain","MUR Mauritius Rupee",null,"456O Evaluation Office"," within 29 days 1.5 % cash discount",{"$nulls":11},"0990F00000 - DUNGU"]
[null,null,"402 Sudan","MVR Maldive Rufiyaa",null,"456P Field Sup & Coordination Off"," within 30 days Due net",{"$nulls":11},"0990G00000 - NORD KIVU GOMA"]
[null,null,"403 Swaziland","MWK Malawi Kwacha",null,"456Q GSSC Project","Y004 within 10 days 1 % cash discount",{"$nulls":11},"0990G10000 - EAST GOMA"]
[null,null,"404 South Sudan","MXN Mexican Peso",null,"456R Field Results Group Office"," within 30 days Due net",{"$nulls":11},"0990H00000 - TANGANYIKA KALEMIE"]
[null,null,"411 Sweden","MYR Malaysian Ringgit",null,"456S OSEB","Y005 within 12 days 2 % cash discount",{"$nulls":11},"0990I00000 - KASAI OCCIDENTAL KA"]
[null,null,"414 Syria, Arab Rep","MZM Mozambique Metical-DO NOT USE",null,"4590 Burkina Faso"," within 30 days Due net",{"$nulls":11},"0990J00000 - PROVINCE ORIENTALE"]
[null,null,"415 Tajikistan","MZM01 Mozambique Metical-DO NOT USE",null,"4620 Uruguay","Y010 Payment due in 10 days(Without discount)",{"$nulls":11},"0990K00000 - KATANGA LUBUMBASHI"]
[null,null,"420 Thailand","MZN Mozambique Metical (new)",null,"4630 Rep of Uzbekistan","Y020 Payment due in 20 days(Without discount)",{"$nulls":11},"0990K10000 - SUD LUBUMBASHI"]
[null,null,"423 Togo","NAD Namibian dollar",null,"4710 Venezuela","Y100 Payment due in 30 days",{"$nulls":11},"0990L00000 - BAS CONGO MATADI"]
[null,null,"429 Trinidad,Tobago","NGN Nigerian Naira",null,"4920 Yemen","Y101 within 29 days 2 % cash discount",{"$nulls":11},"0990M00000 - EQUATEUR MBANDAKA"]
[null,null,"432 Tunisia","NIO Nicaraguan Cordoba Oro",null,"4980 Zambia"," within 30 days Due net",{"$nulls":11},"0990N00000 - KASAI ORIENTAL MBUJ"]
[null,null,"435 Turkey","NLG Dutch Guilder-DO NOT USE",null,"5070 Bangladesh","Y103 For incoming invoices until 15 of the month",{"$nulls":11},"0990O00000 - MANIEMA"]
[null,null,"436 Turkmenistan","NOK Norwegian Krone",null,"5150 DP Republic of Korea"," within 10 days 3 % cash discount",{"$nulls":11},"0990P00000 - LIBENGE DRC"]
[null,null,"438 Uganda","NPR Nepalese Rupee",null,"5200 Vietnam"," within 29 days 1.5 % cash discount",{"$nulls":11},"0990Q00000 - BENI DRC"]
[null,null,"441 Ukraine","NZD New Zealand Dollar",null,"5640 Moldova"," within 30 days Due net",{"$nulls":11},"1020A00000 - COSTA RICA"]
[null,null,"449 Utd.Arab.Emir.","OMR Omani Rial",null,"5750 Switzerland","Y104 within 7 days 0.5 % cash discount",{"$nulls":11},"1020B00000 - SAN JOSE COSTA RICA"]
[null,null,"450 Egypt","PAB Panamanian Balboa",null,"575R CEE/CIS"," within 30 days Due net",{"$nulls":11},"1030A00000 - CROATIA"]
[null,null,"453 United Kingdom","PEN Peruvian Nuevo Sol",null,"6110 Belize","Y105 within 7 days 0.7 % cash discount",{"$nulls":11},"1030B00000 - ZAGREB CROATIA"]
[null,null,"455 Tanzania,Uni.Re","PGK Papua New Guinea Kina",null,"6260 Zimbabwe"," within 30 days Due net",{"$nulls":11},"1050A00000 - CUBA"]
[null,null,"456 USA","PHP Philippine Peso",null,"6350 Oman","Y106 within 10 days 1 % cash discount",{"$nulls":11},"1050B00000 - HAVANA CUBA"]
[null,null,"459 Burkina-Faso","PKR Pakistani Rupee",null,"6490 Papua New Guinea"," within 30 days Due net",{"$nulls":11},"1170A00000 - BENIN"]
[null,null,"462 Uruguay","PLN Poland Zloty",null,"6620 Comoros","Y107 within 10 days 1.5 % cash discount",{"$nulls":11},"1170B00000 - COTONOU BENIN"]
[null,null,"463 Uzbekistan","PLZ Polish Zloty-DO NOT USE",null,"6690 Djibouti"," within 30 days Due net",{"$nulls":11},"1170C00000 - PARAKOU"]
[null,null,"471 Venezuela","PTE Portuguese Escudo-DO NOT USE",null,"6810 Angola","Y108 within 10 days 2 % cash discount",{"$nulls":11},"1200A00000 - SUPPLY DIVISION"]
[null,null,"492 Yemen, Rep of","PYG Paraguayan Guarani",null,"6820 Cabo Verde"," within 30 days Due net",{"$nulls":11},"1200A00100 - DIRECTOR'S OFFICE"]
[null,null,"495 Yugoslavia","QAR Qatari Rial",null,"6830 Sao Tome & Principe","Y109 within 10 days 3 % cash discount",{"$nulls":11},"1200A00300 - CPH LOGISTICS"]
[null,null,"498 Zambia","ROL Roumanian Leu-DO NOT USE",null,"6850 Guinea Bissau"," within 30 days Due net",{"$nulls":11},"1200A00400 - CONTRACTING CENTRE"]
[null,null,"499 Stateless","RON New Romanian Leu",null,"6890 Republic of Mozambique","Y110 within 15 days 0.5 % cash discount",{"$nulls":11},"1200A00600 - QUALITY ASSURANCE"]
[null,null,"505 Andorra","RSD Serbia Dinar",null,"6980 Namibia"," within 30 days Due net",{"$nulls":11},"1200A00700 - HUMAN RESOURCES"]
[null,null,"507 Bangladesh","RUB Russian Rouble",null,"7050 Palestine, State of","Y111 within 15 days 0.55 % cash discount",{"$nulls":11},"1200A00800 - FIN MGMT AND ADMIN"]
[null,null,"515 D.P.R. of Korea","RUR Russian Ruble-DO NOT USE",null,"7060 Timor-Leste"," within 30 days Due net",{"$nulls":11},"1200A00900 - OATC"]
[null,null,"520 Vietnam","RWF Rwanda Franc",null,"8950 Republic of Montenegro","Y112 within 15 days 0.6 % cash discount",{"$nulls":11},"1200A01100 - THE LOGISTICS CENTRE"]
[null,null,"525 Germany","SAR Saudi Riyal",null,"8970 Serbia"," within 30 days Due net",{"$nulls":11},"1200A01300 - PS SUPPORT TO FO"]
[null,null,"535 Vatican City","SBD Solomon Islands Dollar",null,"8971 Kosovo","Y113 within 15 days 1 % cash discount",{"$nulls":11},"1200A01800 - PROCUREMENT SERVICES"]
[null,null,"555 Liechtenstein","SCR Seychelles Rupee",null,null," within 30 days Due net",{"$nulls":11},"1200A02000 - SUPPLY CENTER NY"]
[null,null,"564 Moldova, Rep of","SDD Sudanese Dinar-DO NOT USE",null,null,"Y114 within 15 days 2 % cash discount",{"$nulls":11},"1200A02300 - VACCINE CENTRE"]
[null,null,"565 Monaco","SDG Sudanese Pound (new)",null,null," within 30 days Due net",{"$nulls":11},"1200A02400 - MEDICINES/NUTRITION"]
[null,null,"567 South Korea,Rep","SDP Sudanese Pound-DO NOT USE",{"$nulls":14},"1200A02500 - WATER SANIT & EDUC"]
[null,null,"570 San Marino","SEK Swedish Krona",{"$nulls":14},"1200A02600 - HTC"]
[null,null,"575 Switzerland","SGD Singapore Dollar",{"$nulls":14},"1200A02700 - KMC"]
[null,null,"590 Samoa","SHP St.Helena Pound",{"$nulls":14},"1200A02800 - INNOVATION UNIT"]
[null,null,"601 Antigua/Barbuda","SIT Slovenian Tolar-DO NOT USE",{"$nulls":14},"1200A02900 - EMERGENCY UNIT"]
[null,null,"602 Brunei Darussal","SKK Slovakian Koruna-DO NOT USE",{"$nulls":14},"1200A03000 - SUPPLY CHAIN"]
[null,null,"603 Bahamas","SLL Sierra Leone",{"$nulls":14},"1200A03100 - MARKETSFIN & STR."]
[null,null,"604 Bahrain","SOS Somalian Shilling",{"$nulls":14},"1200A03200 - INTL. TRANSPORT UNIT"]
[null,null,"605 Bermuda","SRD Surinamese Dollar",{"$nulls":14},"120XA00000 - SD PROCUREMENT"]
[null,null,"610 Dominica","SRG Surinam Guilder-DO NOT USE",{"$nulls":14},"1260A00000 - DOMINICAN REPUBLIC"]
[null,null,"611 Belize","SSP South Sudanese Pound",{"$nulls":14},"1260B00000 - SANTO DOMINGO DO"]
[null,null,"612 Hong Kong","STD Sao Tome / Principe Dobra",{"$nulls":14},"1350A00000 - ECUADOR"]
[null,null,"615 Cayman Islands","SVC El Salvador Colon",{"$nulls":14},"1350B00000 - QUITO ECUADOR"]
[null,null,"616 Grenada","SYP Syrian Pound",{"$nulls":14},"1350C00000 - GUAYAQUIL EQUADOR"]
[null,null,"617 Kiribati","SZL Swaziland Lilangeni",{"$nulls":14},"1380A00000 - EL SAVADOR"]
[null,null,"618 Tuvalu","THB Thailand Baht",{"$nulls":14},"1380B00000 - SAN SALVADOR SV"]
[null,null,"620 Montserrat","TJR Tajik Ruble-DO NOT USE",{"$nulls":14},"1390A00000 - EQUATORIAL GUINEA"]
[null,null,"623 Anguilla","TJS Tajik Somoni",{"$nulls":14},"1390B00000 - MALABO EQUI GUINEA"]
[null,null,"624 Qatar","TMM Turkmenistani Manat-DO NOT USE",{"$nulls":14},"1410A00000 - ETHIOPIA"]
[null,null,"625 St. Helena","TMT Turkmenistan Manat",{"$nulls":14},"1410B00000 - ADDIS ABABAETHIOPIA"]
[null,null,"626 Zimbabwe","TND Tunisian Dinar",{"$nulls":14},"1410B10000 - OROMIYA"]
[null,null,"627 St Kitts&Nevis","TOP Tongan Pa'anga",{"$nulls":14},"1410C00000 - ASOSA"]
[null,null,"628 Seychelles","TRL Turkish Lira-DO NOT USE",{"$nulls":14},"1410D00000 - AWASA"]
[null,null,"629 St. Lucia","TRY New Turkish Lira",{"$nulls":14},"1410E00000 - BAHIR DAR"]
[null,null,"630 St. Vincent","TTD Trinidad and Tobago Dollar",{"$nulls":14},"1410F00000 - GAMBELA"]
[null,null,"631 Solomon Islands","TZS Tanzanian Shilling",{"$nulls":14},"1410G00000 - JIJIGA"]
[null,null,"634 Tonga","UAH Ukrainian Hryvnia",{"$nulls":14},"1410H00000 - MEKELLE"]
[null,null,"635 Oman","UAK Ukrainian Karbovanet-DO NOT USE",{"$nulls":14},"1410I00000 - SEMERA"]
[null,null,"636 Turks& Caicosin","UGX Ugandan Shilling",{"$nulls":14},"1410J00000 - GODE"]
[null,null,"640 Brit.Virgin Is.","USD US Dollar",{"$nulls":14},"1410K00000 - KEBRIDEHAR"]
[null,null,"645 Sikkim","UYU Uruguayan Peso",{"$nulls":14},"1410L00000 - DOLLO ADO"]
[null,null,"648 Nauru","UZS Uzbekistan Som",{"$nulls":14},"1420A00000 - ERITREA"]
[null,null,"649 Pap. New Guinea","VEB Venezuelan Bolivar-DO NOT USE",{"$nulls":14},"1420B00000 - ASMARA ERITREA"]
[null,null,"655 Vanuatu","VEF Venezuelan Bolivar",{"$nulls":14},"1430A00000 - FIJI-PACIFIC ISLANDS"]
[null,null,"656 Tokelau Islands","VEF01 Bolivar Fuerte (pref. rate)",{"$nulls":14},"1430B00000 - SUVA FIJI"]
[null,null,"660 French Antilles","VEF02 Venezuela Bolivar Fuerte – SIMADI",{"$nulls":14},"1430C00000 - APIA SAMOA"]
[null,null,"661 Wallis,Futuna","VND Vietnamese Dong",{"$nulls":14},"1430D00000 - HONIARA SB"]
[null,null,"662 Comoros","VUV Vanuatu Vatu",{"$nulls":14},"1430E00000 - PORT VILA VANUATU"]
[null,null,"663 Reunion","WST Samoan Tala",{"$nulls":14},"1430F00000 - TARAWA KIRIBATI"]
[null,null,"664 Martinique","XAF C.F.A. Franc (BEAC)",{"$nulls":14},"1430G00000 - MAJURO RMI"]
[null,null,"665 French Guiana","XCD East Carribean Dollar",{"$nulls":14},"1430H00000 - POHNPEI FSM"]
[null,null,"666 Guadeloupe","XEU European Currency Unit",{"$nulls":14},"1430I00000 - NAURA"]
[null,null,"667 New Caledonia","XOF C.F.A. Franc (BCEAO)",{"$nulls":14},"1430J00000 - NGERULMUD PALAU"]
[null,null,"668 Frenc.Polynesia","XPF CFP Franc",{"$nulls":14},"1430K00000 - NUKI'ALOFA TONGA"]
[null,null,"669 Djibouti","XXX Unknown currency",{"$nulls":14},"1430L00000 - FUNAFUTI TUVALU"]
[null,null,"672 Netherlands Ant","YER Yemeni Rial",{"$nulls":14},"1430M00000 - ALOFI NUIE"]
[null,null,"678 Suriname","YER1 Yemeni Rial",{"$nulls":14},"1430N00000 - AVARUA COOK ISLANDS"]
[null,null,"679 Cook Islands","YUM Yugoslavian Dinar-DO NOT USE",{"$nulls":14},"1430O00000 - TOKELAU"]
[null,null,"680 Niue","ZAR South African Rand",{"$nulls":14},"1530A00000 - GABON"]
[null,null,"681 Angola","ZMK Zambian Kwacha-DO NOT USE",{"$nulls":14},"1530B00000 - LIBREVILLE GABON"]
[null,null,"682 Cabo Verde","ZMW Zambian Kwacha",{"$nulls":14},"1560A00000 - GAMBIA"]
[null,null,"683 S.Tome&Principe","ZRN New Zaire-DO NOT USE",{"$nulls":14},"1560B00000 - BANJUL GAMBIA"]
[null,null,"685 Guinea-Bissau","ZWD Zimbabwean Dollar-DO NOT USE",{"$nulls":14},"1600A00000 - GEORGIA"]
[null,null,"688 Macau","ZWD01 Zimbabwe Dollar-DO NOT USE",{"$nulls":14},"1600B00000 - TBLISI GEORGIA"]
[null,null,"689 Mozambique","ZWD1 Zimbabwean Dollar-DO NOT USE",{"$nulls":14},"1600C00000 - SUKHUMI"]
[null,null,"690 Palau, Rep of","ZWD55 Zimbabwe Dollar-DO NOT USE",{"$nulls":14},"1620A00000 - GHANA"]
[null,null,"691 Western Sahara","ZWD56 ZimbabweDollar(redenominated)-DO NOT USE",{"$nulls":14},"1620B00000 - ACCRA GHANA"]
[null,null,"692 Marshall Islnds","ZWL Zimbabwe Dollar",{"$nulls":14},"1620C00000 - TAMALE"]
[null,null,"693 Micronesia","ZWR Zimbabwe Dollar-DO NOT USE",{"$nulls":14},"1680A00000 - GUATEMALA"]
[null,null,"695 Puerto Rico","ZWR55 Zimbabwe Dollar (new)-DO NOT USE",{"$nulls":14},"1680B00000 - GUATEMALA CITY GT"]
[null,null,"696 Samoa,American","ZWR56 ZimbabweDollar(redenominated)-DO NOT USE",{"$nulls":14},"1770A00000 - GUINEA"]
[null,null,"697 Amer.Virgin Is.",{"$nulls":15},"1770B00000 - CONAKRY GUINEA"]
[null,null,"698 Namibia",{"$nulls":15},"1770B10000 - WESTERN CONAKRY"]
[null,null,"700 N.Mariana Is.",{"$nulls":15},"1770C00000 - NZEREKORE"]
[null,null,"701 Not Applicable",{"$nulls":15},"1770D00000 - KANKAN"]
[null,null,"705 Palestine",{"$nulls":15},"1800A00000 - GUYANA"]
[null,null,"706 Timor-Leste",{"$nulls":15},"1800B00000 - GEORGETOWN GUYANA"]
[null,null,"891 Serbia & Monten",{"$nulls":15},"1800C00000 - PARAMARIBO SURINAME"]
[null,null,"895 Montenegro",{"$nulls":15},"1830A00000 - HAITI"]
[null,null,"897 Serbia",{"$nulls":15},"1830B00000 - PORT AU PRINCEHAITI"]
[null,null,"999 United Nations",{"$nulls":15},"1830C00000 - GONAIVES HAITI"]
[{"$nulls":18},"1860A00000 - HONDURAS"]
[null,null,{"$f":"CONCATENATE(D237,\" \",E237)","v":"Afghanistan 006"},"Afghanistan","006",{"$nulls":13},"1860B00000 - TEGUCIGALPAHONDURAS"]
[null,null,{"$f":"CONCATENATE(D238,\" \",E238)","v":"Albania 009"},"Albania","009",{"$nulls":13},"1950A00000 - GSSC BUDAPEST"]
[null,null,"Algeria 012","Algeria","012",{"$nulls":13},"1950A00100 - DO GSSC"]
[null,null,"Amer.Virgin Is. 697","Amer.Virgin Is.",697,{"$nulls":13},"1950A00200 - HR ADMIN SECTION"]
[null,null,"Andorra 505","Andorra",505,{"$nulls":13},"1950A00300 - HR PAYROLL SECTION"]
[null,null,"Angola 681","Angola",681,{"$nulls":13},"1950A00400 - GLOBAL HELP DESK SEC"]
[null,null,"Anguilla 623","Anguilla",623,{"$nulls":13},"1950A00500 - FINANCE SECTION"]
[null,null,"Antigua/Barbuda 601","Antigua/Barbuda",601,{"$nulls":13},"1950A00600 - SERVICE MANAGEMENT"]
[null,null,"Argentina 024","Argentina","024",{"$nulls":13},"2040A00000 - INDIA"]
[null,null,"Armenia 026","Armenia","026",{"$nulls":13},"2040B00000 - NEW DELHI INDIA"]
[null,null,"Aruba 025","Aruba","025",{"$nulls":13},"2040C00000 - BHOPAL"]
[null,null,"Australia 027","Australia","027",{"$nulls":13},"2040D00000 - BHUBANESHWAR"]
[null,null,"Austria 030","Austria","030",{"$nulls":13},"2040E00000 - CALCUTTA"]
[null,null,"Azerbaijan 031","Azerbaijan","031",{"$nulls":13},"2040F00000 - CHENNAI"]
[null,null,"Bahamas 603","Bahamas",603,{"$nulls":13},"2040G00000 - GANDHINAGAR"]
[null,null,"Bahrain 604","Bahrain",604,{"$nulls":13},"2040H00000 - HYDERABAD"]
[null,null,"Bangladesh 507","Bangladesh",507,{"$nulls":13},"2040I00000 - JAIPUR"]
[null,null,"Barbados 042","Barbados","042",{"$nulls":13},"2040J00000 - LUCKNOW"]
[null,null,"Belarus 063","Belarus","063",{"$nulls":13},"2040K00000 - MUMBAI"]
[null,null,"Belgium 048","Belgium","048",{"$nulls":13},"2040L00000 - PATNA"]
[null,null,"Belize 611","Belize",611,{"$nulls":13},"2040M00000 - GUWAHATI"]
[null,null,"Benin 117","Benin",117,{"$nulls":13},"2040N00000 - RAIPUR"]
[null,null,"Bermuda 605","Bermuda",605,{"$nulls":13},"2040O00000 - RANCHI"]
[null,null,"Bhutan 049","Bhutan","049",{"$nulls":13},"2070A00000 - INDONESIA"]
[null,null,"Bolivia 051","Bolivia","051",{"$nulls":13},"2070B00000 - JAKARTA INDONESIA"]
[null,null,"Bosnia-Herz. 053","Bosnia-Herz.","053",{"$nulls":13},"2070C00000 - MAKASSAR"]
[null,null,"Botswana 052","Botswana","052",{"$nulls":13},"2070D00000 - AMBON"]
[null,null,"Brazil 054","Brazil","054",{"$nulls":13},"2070E00000 - BANDA ACEH"]
[null,null,"Brit.Virgin Is. 640","Brit.Virgin Is.",640,{"$nulls":13},"2070F00000 - JAYAPURA"]
[null,null,"Brunei Darussal 602","Brunei Darussal",602,{"$nulls":13},"2070G00000 - KUPANG"]
[null,null,"Bulgaria 057","Bulgaria","057",{"$nulls":13},"2070H00000 - MANOKWARI"]
[null,null,"Burkina-Faso 459","Burkina-Faso",459,{"$nulls":13},"2070I00000 - SEMARANG"]
[null,null,"Burundi 061","Burundi","061",{"$nulls":13},"2070J00000 - SURABAYA"]
[null,null,"Cabo Verde 682","Cabo Verde",682,{"$nulls":13},"2100A00000 - IRAN"]
[null,null,"Cambodia 066","Cambodia","066",{"$nulls":13},"2100B00000 - TEHERAN IRAN"]
[null,null,"Cameroon 069","Cameroon","069",{"$nulls":13},"2130A00000 - IRAQ"]
[null,null,"Canada 072","Canada","072",{"$nulls":13},"2130B00000 - IRAQ COUNTRY OFFICE"]
[null,null,"Canary Islands 071","Canary Islands","071",{"$nulls":13},"2130C00000 - AL NAJAF"]
[null,null,"Cayman Islands 615","Cayman Islands",615,{"$nulls":13},"2130D00000 - BAGHDAD CENTRAL ZONE"]
[null,null,"Central Afr.Rep 075","Central Afr.Rep","075",{"$nulls":13},"2130E00000 - KIRKUK"]
[null,null,"Chad 081","Chad","081",{"$nulls":13},"2130F00000 - ZO SOUTH BASRAH"]
[null,null,"Chile 084","Chile","084",{"$nulls":13},"2130G00000 - ZONE OFFICE NORTH"]
[null,null,"China 086","China","086",{"$nulls":13},"2130H00000 - DOHUK"]
[null,null,"Colombia 093","Colombia","093",{"$nulls":13},"2130I00000 - KUT"]
[null,null,"Comoros 662","Comoros",662,{"$nulls":13},"2130J00000 - AMARAH"]
[null,null,"Congo 338","Congo",338,{"$nulls":13},"2130K00000 - IRAQ CENTER AMMAN"]
[null,null,"Congo, Dem. Rep 099","Congo, Dem. Rep","099",{"$nulls":13},"2220A00000 - OFFICE OF RESEARCH"]
[null,null,"Cook Islands 679","Cook Islands",679,{"$nulls":13},"2220A00100 - RESEARCH SECTION"]
[null,null,"Costa Rica 102","Costa Rica",102,{"$nulls":13},"2250A00000 - COTE D'IVOIRE"]
[null,null,"Cote d'Ivoire 225","Cote d'Ivoire",225,{"$nulls":13},"2250B00000 - ABIDJANCOTED'IVOIRE"]
[null,null,"Croatia 103","Croatia",103,{"$nulls":13},"2250C00000 - BOUAKE"]
[null,null,"Cuba 105","Cuba",105,{"$nulls":13},"2250D00000 - MAN"]
[null,null,"Cyprus 111","Cyprus",111,{"$nulls":13},"2280A00000 - JAMAICA"]
[null,null,"Czech Republic 113","Czech Republic",113,{"$nulls":13},"2280B00000 - KINGSTON JAMAICA"]
[null,null,"D.P.R. of Korea 515","D.P.R. of Korea",515,{"$nulls":13},"2340A00000 - JORDAN"]
[null,null,"Denmark 120","Denmark",120,{"$nulls":13},"2340B00000 - AMMAN JORDAN"]
[null,null,"Djibouti 669","Djibouti",669,{"$nulls":13},"234RA00000 - MENA"]
[null,null,"Dominica 610","Dominica",610,{"$nulls":13},"234RB00000 - REG SERV DIV MENA"]
[null,null,"Dominican Rep. 126","Dominican Rep.",126,{"$nulls":13},"2390A00000 - KAZAKSTAN"]
[null,null,"Ecuador 135","Ecuador",135,{"$nulls":13},"2390B00000 - ASTANA KAZAKHSTAN"]
[null,null,"Egypt 450","Egypt",450,{"$nulls":13},"2390C00000 - ALMA ATA"]
[null,null,"El Salvador 138","El Salvador",138,{"$nulls":13},"2400A00000 - KENYA"]
[null,null,"Equatorial Guin 139","Equatorial Guin",139,{"$nulls":13},"2400B00000 - NAIROBI KENYA"]
[null,null,"Eritrea 142","Eritrea",142,{"$nulls":13},"2400C00000 - GARISSA"]
[null,null,"Estonia 140","Estonia",140,{"$nulls":13},"2400D00000 - KISUMU"]
[null,null,{"$f":"CONCATENATE(D302,\" \",E302)","v":"Ethiopia 141"},"Ethiopia",141,{"$nulls":13},"2400E00000 - DADAAD"]
[null,null,"Fiji 143","Fiji",143,{"$nulls":13},"2400F00000 - LODWAR"]
[null,null,"Finland 144","Finland",144,{"$nulls":13},"240BB00000 - INNOVATION CENTER"]
[null,null,"France 147","France",147,{"$nulls":13},"240BB00100 - DIRECTOR'S OFFICE"]
[null,null,"Frenc.Polynesia 668","Frenc.Polynesia",668,{"$nulls":13},"240RA00000 - ESARO"]
[null,null,"French Antilles 660","French Antilles",660,{"$nulls":13},"240RB00000 - REG SERV DIV ESAR"]
[null,null,"French Guiana 665","French Guiana",665,{"$nulls":13},"2450A00000 - REP. OF KYRGYZSTAN"]
[null,null,"Gabon 153","Gabon",153,{"$nulls":13},"2450B00000 - BISHKEK KYRGYZSTAN"]
[null,null,"Gambia 156","Gambia",156,{"$nulls":13},"2450C00000 - OSH"]
[null,null,"Georgia 160","Georgia",160,{"$nulls":13},"2460A00000 - LAO PEOPLE'S DEM REP"]
[null,null,"Germany 525","Germany",525,{"$nulls":13},"2460B00000 - VIENTIANE LAO PDR"]
[null,null,"Ghana 162","Ghana",162,{"$nulls":13},"2460C00000 - LUANG NAMTHA"]
[null,null,"Gibraltar 163","Gibraltar",163,{"$nulls":13},"2490A00000 - LEBANON"]
[null,null,"Greece 165","Greece",165,{"$nulls":13},"2490B00000 - BEIRUT LEBANON"]
[null,null,"Greenland 001","Greenland","001",{"$nulls":13},"2490C00000 - TYRE"]
[null,null,"Grenada 616","Grenada",616,{"$nulls":13},"2520A00000 - LESOTHO"]
[null,null,"Guadeloupe 666","Guadeloupe",666,{"$nulls":13},"2520B00000 - MASERU LESOTHO"]
[null,null,"Guam 004","Guam","004",{"$nulls":13},"2550A00000 - LIBERIA"]
[null,null,"Guatemala 168","Guatemala",168,{"$nulls":13},"2550B00000 - MONROVIA LIBERIA"]
[null,null,"Guinea 177","Guinea",177,{"$nulls":13},"2550C00000 - ZO: ZWEDRU"]
[null,null,"Guinea-Bissau 685","Guinea-Bissau",685,{"$nulls":13},"2550D00000 - ZO: HARPER"]
[null,null,"Guyana 180","Guyana",180,{"$nulls":13},"2550E00000 - ZO: GBARNGA"]
[null,null,"Haiti 183","Haiti",183,{"$nulls":13},"2580A00000 - LIBYA"]
[null,null,"Honduras 186","Honduras",186,{"$nulls":13},"2580B00000 - TRIPOLI LIBYAN ARAB"]
[null,null,"Hong Kong 612","Hong Kong",612,{"$nulls":13},"2580C00000 - BENGHAZI"]
[null,null,"Hungary 195","Hungary",195,{"$nulls":13},"2660A00000 - MACEDONIA"]
[null,null,"Iceland 198","Iceland",198,{"$nulls":13},"2660B00000 - SKOPJE MACEDONIA"]
[null,null,"India 204","India",204,{"$nulls":13},"2670A00000 - MADAGASCAR"]
[null,null,"Indonesia 207","Indonesia",207,{"$nulls":13},"2670B00000 - ANTANANARIVO MG"]
[null,null,"Iran 210","Iran",210,{"$nulls":13},"2670C00000 - AMBOVOMBE"]
[null,null,"Iraq 213","Iraq",213,{"$nulls":13},"2670D00000 - FORT DAUPHIN MDG"]
[null,null,"Ireland 216","Ireland",216,{"$nulls":13},"2690A00000 - MALAWI"]
[null,null,"Israel 219","Israel",219,{"$nulls":13},"2690B00000 - LILONGWE MALAWI"]
[null,null,"Italy 222","Italy",222,{"$nulls":13},"2700A00000 - MALAYSIA"]
[null,null,"Jamaica 228","Jamaica",228,{"$nulls":13},"2700B00000 - KUALA LUMPUR MY"]
[null,null,"Japan 231","Japan",231,{"$nulls":13},"2740A00000 - MALDIVES"]
[null,null,"Jordan 234","Jordan",234,{"$nulls":13},"2740B00000 - MALE MALDIVES"]
[null,null,"Kazakhstan 239","Kazakhstan",239,{"$nulls":13},"2760A00000 - MALI"]
[null,null,"Kenya 240","Kenya",240,{"$nulls":13},"2760B00000 - BAMAKO MALI"]
[null,null,"Kiribati 617","Kiribati",617,{"$nulls":13},"2760C00000 - KAYES"]
[null,null,"Kuwait 243","Kuwait",243,{"$nulls":13},"2760D00000 - KOULIKORO"]
[null,null,"Kyrgyzstan 245","Kyrgyzstan",245,{"$nulls":13},"2760E00000 - MOPTI"]
[null,null,"Lao,Peo.Dem.Rep 246","Lao,Peo.Dem.Rep",246,{"$nulls":13},"2760F00000 - SEGOU"]
[null,null,"Latvia 247","Latvia",247,{"$nulls":13},"2760G00000 - GAO MALI"]
[null,null,"Lebanon 249","Lebanon",249,{"$nulls":13},"2760H00000 - SIKASSO MALI"]
[null,null,"Lesotho 252","Lesotho",252,{"$nulls":13},"2760I00000 - TOMBOUCTOU MALI"]
[null,null,"Liberia 255","Liberia",255,{"$nulls":13},"2820A00000 - MAURITANIA"]
[null,null,"Libya 258","Libya",258,{"$nulls":13},"2820B00000 - NOUAKCHOTT MR"]
[null,null,"Liechtenstein 555","Liechtenstein",555,{"$nulls":13},"2820C00000 - AIOUN"]
[null,null,"Lithuania 260","Lithuania",260,{"$nulls":13},"2820D00000 - BASSIKOUNOU"]
[null,null,"Luxembourg 264","Luxembourg",264,{"$nulls":13},"2820E00000 - KIFFA"]
[null,null,"Macau 688","Macau",688,{"$nulls":13},"2850A00000 - MEXICO"]
[null,null,"Macedonia, TFYR 266","Macedonia, TFYR",266,{"$nulls":13},"2850B00000 - MEXICO CITY MEXICO"]
[null,null,"Madagascar 267","Madagascar",267,{"$nulls":13},"2880A00000 - MONGOLIA"]
[null,null,"Malawi 269","Malawi",269,{"$nulls":13},"2880B00000 - ULAANBAATARMONGOLIA"]
[null,null,"Malaysia 270","Malaysia",270,{"$nulls":13},"2880C00000 - KHOVD CITY"]
[null,null,"Maldives,Rep of 274","Maldives,Rep of",274,{"$nulls":13},"2880D00000 - KHUVSGUL MONGOLIA"]
[null,null,"Mali 276","Mali",276,{"$nulls":13},"2910A00000 - MOROCCO"]
[null,null,"Malta 279","Malta",279,{"$nulls":13},"2910B00000 - RABAT MOROCCO"]
[null,null,"Marshall Islnds 692","Marshall Islnds",692,{"$nulls":13},"2970A00000 - NEPAL"]
[null,null,"Martinique 664","Martinique",664,{"$nulls":13},"2970B00000 - KATHMANDU NEPAL"]
[null,null,"Mauritania 282","Mauritania",282,{"$nulls":13},"2970C00000 - BHARATPUR"]
[null,null,"Mauritius 283","Mauritius",283,{"$nulls":13},"2970D00000 - BIRATNAGER"]
[null,null,"Mexico 285","Mexico",285,{"$nulls":13},"2970E00000 - BIRGANG"]
[null,null,{"$f":"CONCATENATE(D366,\" \",E366)","v":"Micronesia 693"},"Micronesia",693,{"$nulls":13},"2970F00000 - DHADHELDURA"]
[null,null,"Moldova, Rep of 564","Moldova, Rep of",564,{"$nulls":13},"2970G00000 - GAIGHAT"]
[null,null,"Monaco 565","Monaco",565,{"$nulls":13},"2970H00000 - GHORAHI"]
[null,null,"Mongolia 288","Mongolia",288,{"$nulls":13},"2970I00000 - MANGALSEN"]
[null,null,"Montenegro 895","Montenegro",895,{"$nulls":13},"2970J00000 - NEPALGUNJ"]
[null,null,"Montserrat 620","Montserrat",620,{"$nulls":13},"2970K00000 - PANCHTHAR"]
[null,null,"Morocco 291","Morocco",291,{"$nulls":13},"2970L00000 - RAJBIRAJ"]
[null,null,"Mozambique 689","Mozambique",689,{"$nulls":13},"2970M00000 - SIMIKOT"]
[null,null,"Myanmar 060","Myanmar","060",{"$nulls":13},"2970N00000 - TAULIHAWA"]
[null,null,"N.Mariana Is. 700","N.Mariana Is.",700,{"$nulls":13},"2970O00000 - JUMLA NEPAL"]
[null,null,"Namibia 698","Namibia",698,{"$nulls":13},"2970P00000 - SINDHUPALCHOWK"]
[null,null,"Nauru 648","Nauru",648,{"$nulls":13},"2970Q00000 - DOLAKHA"]
[null,null,"Nepal 297","Nepal",297,{"$nulls":13},"2970R00000 - GORKHA"]
[null,null,"Netherlands 300","Netherlands",300,{"$nulls":13},"2970S00000 - NUWAKOT"]
[null,null,"Netherlands Ant 672","Netherlands Ant",672,{"$nulls":13},"297RA00000 - ROSA"]
[null,null,"New Caledonia 667","New Caledonia",667,{"$nulls":13},"297RB00000 - REG SERV DIV ROSA"]
[null,null,"New Zealand 309","New Zealand",309,{"$nulls":13},"3120A00000 - NICARAGUA"]
[null,null,"Nicaragua 312","Nicaragua",312,{"$nulls":13},"3120B00000 - MANAGUA NICARAGUA"]
[null,null,"Niger 318","Niger",318,{"$nulls":13},"3120C00000 - BILWI"]
[null,null,"Nigeria 321","Nigeria",321,{"$nulls":13},"3120D00000 - BLUEFIELDS NICARAGU"]
[null,null,"Niue 680","Niue",680,{"$nulls":13},"3180A00000 - NIGER"]
[null,null,"Norway 324","Norway",324,{"$nulls":13},"3180B00000 - NIAMEY NIGER"]
[null,null,"Not Applicable 701","Not Applicable",701,{"$nulls":13},"3180C00000 - AGADEZ"]
[null,null,"Oman 635","Oman",635,{"$nulls":13},"3180D00000 - MARADI"]
[null,null,"Pakistan 330","Pakistan",330,{"$nulls":13},"3180E00000 - DIFFA"]
[null,null,"Palau, Rep of 690","Palau, Rep of",690,{"$nulls":13},"3210A00000 - NIGERIA"]
[null,null,"Palestine 705","Palestine",705,{"$nulls":13},"3210B00000 - ABUJA NIGERIA"]
[null,null,"Panama 333","Panama",333,{"$nulls":13},"3210C00000 - BAUCHI"]
[null,null,"Pap. New Guinea 649","Pap. New Guinea",649,{"$nulls":13},"3210D00000 - ENUGU"]
[null,null,"Paraguay 336","Paraguay",336,{"$nulls":13},"3210E00000 - KADUNA"]
[null,null,"Peru 339","Peru",339,{"$nulls":13},"3210F00000 - LAGOS"]
[null,null,"Philippines 342","Philippines",342,{"$nulls":13},"3210G00000 - MAIDUGURI"]
[null,null,"Poland 345","Poland",345,{"$nulls":13},"3210H00000 - SOKOTO"]
[null,null,"Portugal 348","Portugal",348,{"$nulls":13},"3210I00000 - KATSINA"]
[null,null,"Puerto Rico 695","Puerto Rico",695,{"$nulls":13},"3210J00000 - RIVERS ZONE OFFICE"]
[null,null,"Qatar 624","Qatar",624,{"$nulls":13},"3210K00000 - ONDO"]
[null,null,"Reunion 663","Reunion",663,{"$nulls":13},"3300A00000 - PAKISTAN"]
[null,null,"Romania 366","Romania",366,{"$nulls":13},"3300B00000 - ISLAMABAD PAKISTAN"]
[null,null,"Russian Fed. 370","Russian Fed.",370,{"$nulls":13},"3300C00000 - KARACHI"]
[null,null,"Rwanda 375","Rwanda",375,{"$nulls":13},"3300D00000 - LAHORE"]
[null,null,"S.Tome&Principe 683","S.Tome&Principe",683,{"$nulls":13},"3300E00000 - PESHAWAR"]
[null,null,"Samoa 590","Samoa",590,{"$nulls":13},"3300F00000 - QUETTA"]
[null,null,"Samoa,American 696","Samoa,American",696,{"$nulls":13},"3300G00000 - DUBAI UAE"]
[null,null,"San Marino 570","San Marino",570,{"$nulls":13},"3330A00000 - PANAMA"]
[null,null,"Saudi Arabia 378","Saudi Arabia",378,{"$nulls":13},"3330B00000 - PANAMA CITY"]
[null,null,"Senegal 381","Senegal",381,{"$nulls":13},"333RA00000 - LACRO"]
[null,null,"Serbia 897","Serbia",897,{"$nulls":13},"333RB00000 - REG SERV DIV LACR"]
[null,null,"Serbia & Monten 891","Serbia & Monten",891,{"$nulls":13},"333RC00000 - PANAMA HUB LACR"]
[null,null,"Seychelles 628","Seychelles",628,{"$nulls":13},"3360A00000 - PARAGUAY"]
[null,null,"Sierra Leone 390","Sierra Leone",390,{"$nulls":13},"3360B00000 - ASUNCION PARAGUAY"]
[null,null,"Sikkim 645","Sikkim",645,{"$nulls":13},"3380A00000 - CONGO"]
[null,null,"Singapore 391","Singapore",391,{"$nulls":13},"3380B00000 - BRAZZAVILLE CONGO"]
[null,null,"Slovak Republic 395","Slovak Republic",395,{"$nulls":13},"3380C00000 - POINTE NOIRE"]
[null,null,"Slovenia 394","Slovenia",394,{"$nulls":13},"3390A00000 - PERU"]
[null,null,"Solomon Islands 631","Solomon Islands",631,{"$nulls":13},"3390B00000 - LIMA PERU"]
[null,null,"Somalia 392","Somalia",392,{"$nulls":13},"3390C00000 - ABANCAY"]
[null,null,"South Africa 393","South Africa",393,{"$nulls":13},"3390D00000 - AYACUCHO"]
[null,null,"South Korea,Rep 567","South Korea,Rep",567,{"$nulls":13},"3390E00000 - CUZCO"]
[null,null,"South Sudan 404","South Sudan",404,{"$nulls":13},"3390F00000 - UCAYALI"]
[null,null,"Spain 399","Spain",399,{"$nulls":13},"3420A00000 - PHILIPPINES"]
[null,null,"Sri Lanka 078","Sri Lanka","078",{"$nulls":13},"3420B00000 - MANILA"]
[null,null,"St Kitts&Nevis 627","St Kitts&Nevis",627,{"$nulls":13},"3420C00000 - COTABATO"]
[null,null,"St. Helena 625","St. Helena",625,{"$nulls":13},"3420D00000 - DAVAO"]
[null,null,"St. Lucia 629","St. Lucia",629,{"$nulls":13},"3420E00000 - CEBU"]
[null,null,{"$f":"CONCATENATE(D430,\" \",E430)","v":"St. Vincent 630"},"St. Vincent",630,{"$nulls":13},"3420F00000 - TACLOBAN"]
[null,null,"Stateless 499","Stateless",499,{"$nulls":13},"3420G00000 - ROXAS"]
[null,null,"Sudan 402","Sudan",402,{"$nulls":13},"3420H00000 - ZAMBOANGA"]
[null,null,"Suriname 678","Suriname",678,{"$nulls":13},"3660A00000 - ROMANIA"]
[null,null,"Swaziland 403","Swaziland",403,{"$nulls":13},"3660B00000 - BUCHAREST ROMANIA"]
[null,null,"Sweden 411","Sweden",411,{"$nulls":13},"3750A00000 - RWANDA"]
[null,null,"Switzerland 575","Switzerland",575,{"$nulls":13},"3750B00000 - KIGALI RWANDA"]
[null,null,"Syria, Arab Rep 414","Syria, Arab Rep",414,{"$nulls":13},"3780A00000 - SAUDI ARABIA"]
[null,null,"Tajikistan 415","Tajikistan",415,{"$nulls":13},"3780B00000 - RIYADH GULF AREA"]
[null,null,"Tanzania,Uni.Re 455","Tanzania,Uni.Re",455,{"$nulls":13},"3780C00000 - ABU DHABI GULF AREA"]
[null,null,"Thailand 420","Thailand",420,{"$nulls":13},"3780D00000 - BAHRAIN GULF AREA"]
[null,null,"Timor-Leste 706","Timor-Leste",706,{"$nulls":13},"3780E00000 - DUBAI GULF AREA"]
[null,null,"Togo 423","Togo",423,{"$nulls":13},"3780F00000 - KUWAIT GULF AREA"]
[null,null,"Tokelau Islands 656","Tokelau Islands",656,{"$nulls":13},"3780G00000 - QATAR GULF AREA"]
[null,null,"Tonga 634","Tonga",634,{"$nulls":13},"3810A00000 - SENEGAL"]
[null,null,"Trinidad,Tobago 429","Trinidad,Tobago",429,{"$nulls":13},"3810B00000 - DAKAR SENEGAL"]
[null,null,"Tunisia 432","Tunisia",432,{"$nulls":13},"3810C00000 - ZIGUINCHOR"]
[null,null,"Turkey 435","Turkey",435,{"$nulls":13},"381RA00000 - WCARO"]
[null,null,"Turkmenistan 436","Turkmenistan",436,{"$nulls":13},"381RB00000 - REG SERV DIV WCAR"]
[null,null,"Turks& Caicosin 636","Turks& Caicosin",636,{"$nulls":13},"3900A00000 - SIERRA LEONE"]
[null,null,"Tuvalu 618","Tuvalu",618,{"$nulls":13},"3900B00000 - FREETOWN SL"]
[null,null,"Uganda 438","Uganda",438,{"$nulls":13},"3900C00000 - KENEMA"]
[null,null,"Ukraine 441","Ukraine",441,{"$nulls":13},"3900D00000 - MAKENI"]
[null,null,"United Kingdom 453","United Kingdom",453,{"$nulls":13},"3920A00000 - SOMALIA"]
[null,null,"United Nations 999","United Nations",999,{"$nulls":13},"3920B00000 - MOGADISCIO SOMALIA"]
[null,null,"Unknown 000","Unknown","000",{"$nulls":13},"3920C00000 - BAIDOA"]
[null,null,"Uruguay 462","Uruguay",462,{"$nulls":13},"3920D00000 - BOSASO"]
[null,null,"USA 456","USA",456,{"$nulls":13},"3920E00000 - GAROOWE"]
[null,null,"Utd.Arab.Emir. 449","Utd.Arab.Emir.",449,{"$nulls":13},"3920F00000 - HARGEISA"]
[null,null,"Uzbekistan 463","Uzbekistan",463,{"$nulls":13},"3920G00000 - JOWHAR"]
[null,null,"Vanuatu 655","Vanuatu",655,{"$nulls":13},"3920H00000 - GAALKACYO"]
[null,null,"Vatican City 535","Vatican City",535,{"$nulls":13},"3920I00000 - WAJID"]
[null,null,"Venezuela 471","Venezuela",471,{"$nulls":13},"3920J00000 - SOMALIA DESK KENYA"]
[null,null,"Vietnam 520","Vietnam",520,{"$nulls":13},"3920K00000 - DOLLOW"]
[null,null,"Wallis,Futuna 661","Wallis,Futuna",661,{"$nulls":13},"3930A00000 - SOUTH AFRICA"]
[null,null,"Western Sahara 691","Western Sahara",691,{"$nulls":13},"3930B00000 - PRETORIA ZA"]
[null,null,"Yemen, Rep of 492","Yemen, Rep of",492,{"$nulls":13},"4020A00000 - SUDAN"]
[null,null,"Yugoslavia 495","Yugoslavia",495,{"$nulls":13},"4020B00000 - KHARTOUM SUDAN"]
[null,null,"Zambia 498","Zambia",498,{"$nulls":13},"4020C00000 - ABYEI"]
[null,null,"Zimbabwe 626","Zimbabwe",626,{"$nulls":13},"4020D00000 - AD DAMAZINE"]
[{"$nulls":18},"4020E00000 - EL FASHER"]
[{"$nulls":18},"4020F00000 - EL GENEINA"]
[null,null,"01 POs/LTAs not permitted (refer to SEU/DB)",{"$nulls":15},"4020G00000 - EL OBEID"]
[null,null,"11 PQ manuf. site. PO with main supplier",{"$nulls":15},"4020H00000 - KADUGLI"]
[null,null,"21 Potential supplier, Not GMP evaluated",{"$nulls":15},"4020I00000 - KASSALA"]
[null,null,"74 Block on vendor`s product for quality",{"$nulls":15},"4020J00000 - NYALA"]
[null,null,"88 Total block on inactive/duplicate vendor",{"$nulls":15},"4020K00000 - ZALINGUEI"]
[null,null,"97 Blocked for ethical reasons (total block)",{"$nulls":15},"4030A00000 - SWAZILAND"]
[null,null,"98 Failed GMP inspection (total block)",{"$nulls":15},"4030B00000 - MBABANE SWAZILAND"]
[null,null,"99 Not recommended by SEU (total block)",{"$nulls":15},"4040A00000 - SOUTH SUDAN"]
[{"$nulls":18},"4040B00000 - JUBA SOUTH SUDAN"]
[null,null,"MF manufacturer",{"$nulls":15},"4040B10000 - JUBA ZONE OFFICE"]
[null,null,"TR trader",{"$nulls":15},"4040C00000 - MALAKAL SOUTH SUDAN"]
[null,null,"HQ headquarter",{"$nulls":15},"4040D00000 - RUMBEK SOUTH SUDAN"]
[null,null,"LO local (sales) office",{"$nulls":15},"4040E00000 - WAU SOUTH SUDAN"]
[null,null,"AP alternative payee",{"$nulls":15},"4040F00000 - BOR SOUTH SUDAN"]
[null,null,"GL global contact point for UNICEF",{"$nulls":15},"4040G00000 - TORIT SOUTH SUDAN"]
[{"$nulls":18},"4040H00000 - KWAJOK SOUTH SUDAN"]
[{"$nulls":18},"4040I00000 - BENTIU SOUTH SUDAN"]
[{"$nulls":18},"4040J00000 - AWEIL SOUTH SUDAN"]
[{"$nulls":18},"4040K00000 - YAMBIO SOUTH SUDAN"]
[{"$nulls":18},"4140A00000 - SYRIA"]
[{"$nulls":18},"4140B00000 - DAMASCUS SYRIA"]
[{"$nulls":18},"4140C00000 - ZO: HOMS"]
[{"$nulls":18},"4140D00000 - ZO: TARTOUS"]
[{"$nulls":18},"4140E00000 - ZO: QAMISHLI"]
[{"$nulls":18},"4140F00000 - ZO: DARA'A"]
[{"$nulls":18},"4140G00000 - ZO: DAMASCUS"]
[{"$nulls":18},"4140H00000 - ZO: ALEPPO"]
[{"$nulls":18},"4150A00000 - TAJIKISTAN"]
[{"$nulls":18},"4150B00000 - DUSHANBE TAJIKISTAN"]
[{"$nulls":18},"4200A00000 - THAILAND"]
[{"$nulls":18},"4200B00000 - BANGKOK THAILAND"]
[{"$nulls":18},"420RA00000 - EAPRO"]
[{"$nulls":18},"420RB00000 - REG SERV DIV EAPR"]
[{"$nulls":18},"4230A00000 - TOGO"]
[{"$nulls":18},"4230B00000 - LOME TOGO"]
[{"$nulls":18},"4320A00000 - TUNISIA"]
[{"$nulls":18},"4320B00000 - TUNIS TUNISIA"]
[{"$nulls":18},"4350A00000 - TURKEY"]
[{"$nulls":18},"4350B00000 - ANKARA TURKEY"]
[{"$nulls":18},"4350C00000 - GAZIANTEP TURKEY"]
[{"$nulls":18},"4360A00000 - REP. OF TURKMENISTAN"]
[{"$nulls":18},"4360B00000 - ASHKHABAD TM"]
[{"$nulls":18},"4380A00000 - UGANDA"]
[{"$nulls":18},"4380B00000 - KAMPALA UGANDA"]
[{"$nulls":18},"4380C00000 - FORT PORTAL"]
[{"$nulls":18},"4380D00000 - GULU"]
[{"$nulls":18},"4380E00000 - MOROTO"]
[{"$nulls":18},"4380F00000 - MBARARA"]
[{"$nulls":18},"4410A00000 - UKRAINE"]
[{"$nulls":18},"4410B00000 - KIEV UKRAINE"]
[{"$nulls":18},"4410C00000 - KHARKIV UKRAINE"]
[{"$nulls":18},"4410D00000 - DONETSK UKRAINE"]
[{"$nulls":18},"4410E00000 - MARIUPOL UKRAINE"]
[{"$nulls":18},"4410F00000 - KRAMATORSK UKRAINE"]
[{"$nulls":18},"4500A00000 - EGYPT"]
[{"$nulls":18},"4500B00000 - CAIRO EGYPT"]
[{"$nulls":18},"4500C00000 - ASYUT"]
[{"$nulls":18},"4550A00000 - TANZANIA UNITED REP"]
[{"$nulls":18},"4550B00000 - DAR ES SALAAM TZ"]
[{"$nulls":18},"4550C00000 - KIGOMA"]
[{"$nulls":18},"4550D00000 - ZANZIBAR"]
[{"$nulls":18},"4550E00000 - IRINGA TANZANIA"]
[{"$nulls":18},"456BB00000 - OED"]
[{"$nulls":18},"456BB00100 - OFFICE OF EXEC DIR"]
[{"$nulls":18},"456BB00200 - OFFICE OF THE OMBUDS"]
[{"$nulls":18},"456CC00000 - DPR"]
[{"$nulls":18},"456CC00100 - DIRECTOR'S OFFICE"]
[{"$nulls":18},"456CC00200 - DATA AND ANALYTICS"]
[{"$nulls":18},"456CC00300 - CPAKM DPS"]
[{"$nulls":18},"456CC00400 - GRCE"]
[{"$nulls":18},"456CC00500 - PSN DRP"]
[{"$nulls":18},"456CC00600 - SIBP DPS"]
[{"$nulls":18},"456CC00700 - STRATEGIC INFO"]
[{"$nulls":18},"456CC00800 - SPPG"]
[{"$nulls":18},"456CC00900 - RESEARCH"]
[{"$nulls":18},"456DD00000 - PROGRAMME DIVISION"]
[{"$nulls":18},"456DD00100 - DIRECTOR'S OFFICE"]
[{"$nulls":18},"456DD00200 - CHILD PROTECTION"]
[{"$nulls":18},"456DD00300 - CSP"]
[{"$nulls":18},"456DD00400 - HIV/AIDS SECTION"]
[{"$nulls":18},"456DD00500 - HEALTH SECTION"]
[{"$nulls":18},"456DD00600 - EDUCATION"]
[{"$nulls":18},"456DD00700 - NUTRITION"]
[{"$nulls":18},"456DD00800 - WATER AND SANITATION"]
[{"$nulls":18},"456DD00900 - GENDER AND RIGHTSPD"]
[{"$nulls":18},"456DD01000 - C4D"]
[{"$nulls":18},"456DD01100 - ADAP"]
[{"$nulls":18},"456DD01200 - DISABILITIES"]
[{"$nulls":18},"456DD01300 - SECRETARIATS PD"]
[{"$nulls":18},"456DD01400 - ECD PD"]
[{"$nulls":18},"456DD01500 - SIP PD"]
[{"$nulls":18},"456DD01600 - ENDVIOLCHILD"]
[{"$nulls":18},"456FF00000 - EMOPS"]
[{"$nulls":18},"456FF00100 - EMOPS NYHQ"]
[{"$nulls":18},"456FF00200 - EMOPS GENEVA"]
[{"$nulls":18},"456GG00000 - DOC"]
[{"$nulls":18},"456GG00100 - DIRECTOR'S OFFICE"]
[{"$nulls":18},"456GG00200 - BRAND SECTION"]
[{"$nulls":18},"456GG00300 - YOUNG PEOPLE"]
[{"$nulls":18},"456GG00400 - PRINT AND LANGUAGE"]
[{"$nulls":18},"456GG00500 - GAR DOC"]
[{"$nulls":18},"456GG00600 - MEDIA SECTION"]
[{"$nulls":18},"456GG00700 - DIGITAL STRATEGY"]
[{"$nulls":18},"456GG00800 - DEVELOP. PROF"]
[{"$nulls":18},"456GG00900 - PUBLIC AFFAIRS"]
[{"$nulls":18},"456GG01000 - PUBLICATIONS"]
[{"$nulls":18},"456GG01100 - INTERNAL COMM"]
[{"$nulls":18},"456GG01200 - SOCIAL & CIVIC MEDIA"]
[{"$nulls":18},"456GG01300 - PLANNING M&E OPS"]
[{"$nulls":18},"456GG01400 - BRAND BUILDING"]
[{"$nulls":18},"456GG01500 - MEDIA RELATIONS"]
[{"$nulls":18},"456HH00000 - GMA"]
[{"$nulls":18},"456HH00100 - DIRECTOR'S OFFICE"]
[{"$nulls":18},"456HH00200 - MSA"]
[{"$nulls":18},"456HH00300 - UN COHERENCE"]
[{"$nulls":18},"456HH00400 - OSEB"]
[{"$nulls":18},"456HH00500 - UNIA"]
[{"$nulls":18},"456II00000 - PPD"]
[{"$nulls":18},"456II00100 - PPD NEW YORK"]
[{"$nulls":18},"456II00200 - PPD BRUSSELS"]
[{"$nulls":18},"456II00300 - PPD TOKYO"]
[{"$nulls":18},"456II00400 - GOVT. PARTNERSHIPS"]
[{"$nulls":18},"456II00500 - M & I PARTNERSHIPS"]
[{"$nulls":18},"456II00600 - POST 2015"]
[{"$nulls":18},"456II00700 - PPD GENEVA"]
[{"$nulls":18},"456JJ00000 - DFAM"]
[{"$nulls":18},"456JJ00100 - COMPTROLLER'S OFFICE"]
[{"$nulls":18},"456JJ00200 - FINANCE SECTION"]
[{"$nulls":18},"456JJ00300 - ACCOUNTS SECTION"]
[{"$nulls":18},"456JJ00400 - BUDGET SECTION"]
[{"$nulls":18},"456JJ00500 - ADMIN SERVICES"]
[{"$nulls":18},"456JJ00600 - IPSAS"]
[{"$nulls":18},"456KK00000 - DHR"]
[{"$nulls":18},"456KK00100 - DIRECTOR'S OFFICE"]
[{"$nulls":18},"456KK00200 - STAFF WELL BEING SEC"]
[{"$nulls":18},"456KK00300 - MOBILITY & STAFFING"]
[{"$nulls":18},"456KK00400 - ORG LEARNING & DEV"]
[{"$nulls":18},"456KK00500 - HRSS"]
[{"$nulls":18},"456KK00600 - NETI"]
[{"$nulls":18},"456KK00700 - GLOBAL STAFF ASSOC"]
[{"$nulls":18},"456KK00800 - POLICY & ADMIN LAW"]
[{"$nulls":18},"456KK00900 - HRBP PP"]
[{"$nulls":18},"456KK01000 - HRPP OPERATIONS"]
[{"$nulls":18},"456KK01100 - HRBP ERCOD"]
[{"$nulls":18},"456KK01200 - HRBP EMERGENCIES"]
[{"$nulls":18},"456KK01300 - NY STAFF ASSOCIATION"]
[{"$nulls":18},"456KK01400 - UNICEF STAFF NEWS"]
[{"$nulls":18},"456KK01500 - ESRS DHR"]
[{"$nulls":18},"456KK01600 - RRS DHR"]
[{"$nulls":18},"456LL00000 - ITSSD"]
[{"$nulls":18},"456LL00100 - DIRECTOR'S OFFICE"]
[{"$nulls":18},"456LL00200 - PPPA"]
[{"$nulls":18},"456LL00300 - ADMINISTRATIVE SERV"]
[{"$nulls":18},"456LL00400 - IT KMS (INTERNET)"]
[{"$nulls":18},"456LL00500 - ITACFS"]
[{"$nulls":18},"456LL00600 - TECHNICAL ARCHI"]
[{"$nulls":18},"456LL00700 - IT OPERATIONS"]
[{"$nulls":18},"456LL00800 - IT SECURITY"]
[{"$nulls":18},"456LL00900 - ITAFS"]
[{"$nulls":18},"456NN00000 - OIAI"]
[{"$nulls":18},"456NN00100 - OIAI SECTION"]
[{"$nulls":18},"456OO00000 - EVALUATION OFFICE"]
[{"$nulls":18},"456OO00100 - EVALUATION OFFICE"]
[{"$nulls":18},"456QQ00000 - GSCC PROJECT"]
[{"$nulls":18},"456QQ00100 - GSCC PROJECT SECTION"]
[{"$nulls":18},"456RR00000 - FRG OFFICE"]
[{"$nulls":18},"456RR00100 - FRG SECTION"]
[{"$nulls":18},"456SS00000 - EB SECRETARY OFFICE"]
[{"$nulls":18},"456SS00100 - EB SECR OFF SECTION"]
[{"$nulls":18},"4590A00000 - BURKINA FASO"]
[{"$nulls":18},"4590B00000 - OUAGADOUGOU BF"]
[{"$nulls":18},"4590C00000 - DORI BURKINA FASO"]
[{"$nulls":18},"4620A00000 - URUGUAY"]
[{"$nulls":18},"4620B00000 - MONTEVIDEO URUGUAY"]
[{"$nulls":18},"4630A00000 - REP OF UZBEKISTAN"]
[{"$nulls":18},"4630B00000 - TASHKENT UZBEKISTAN"]
[{"$nulls":18},"4710A00000 - VENEZUELA"]
[{"$nulls":18},"4710B00000 - CARACAS VENEZUELA"]
[{"$nulls":18},"4920A00000 - YEMEN"]
[{"$nulls":18},"4920B00000 - SANA'A YEMEN"]
[{"$nulls":18},"4920C00000 - ADEN"]
[{"$nulls":18},"4920D00000 - HODAIDAH"]
[{"$nulls":18},"4920E00000 - TA'IZZ"]
[{"$nulls":18},"4920F00000 - SA'ADA"]
[{"$nulls":18},"4920G00000 - SEYOUN"]
[{"$nulls":18},"4920H00000 - HARAD"]
[{"$nulls":18},"4920I00000 - DHALE"]
[{"$nulls":18},"4920J00000 - IBB"]
[{"$nulls":18},"4920K00000 - MUKALAH YEMEN"]
[{"$nulls":18},"4980A00000 - ZAMBIA"]
[{"$nulls":18},"4980B00000 - LUSAKA ZAMBIA"]
[{"$nulls":18},"5070A00000 - BANGLADESH"]
[{"$nulls":18},"5070B00000 - DHAKA BANGLADESH"]
[{"$nulls":18},"5070C00000 - BARISAL"]
[{"$nulls":18},"5070D00000 - COMILLA"]
[{"$nulls":18},"5070E00000 - COX BAZAAR"]
[{"$nulls":18},"5070F00000 - JESSORE"]
[{"$nulls":18},"5070G00000 - MYMENSINGH"]
[{"$nulls":18},"5070H00000 - RANGAMATI"]
[{"$nulls":18},"5070I00000 - RANGPUR"]
[{"$nulls":18},"5070J00000 - SYLHET"]
[{"$nulls":18},"5070K00000 - THAKURGAON"]
[{"$nulls":18},"5070L00000 - BOGRA"]
[{"$nulls":18},"5070M00000 - CHITTAGONG"]
[{"$nulls":18},"5070N00000 - KHULNA"]
[{"$nulls":18},"5070P00000 - DHAKA CITY"]
[{"$nulls":18},"5150A00000 - DPR OF KOREA"]
[{"$nulls":18},"5150B00000 - PYONGYANG DPRK"]
[{"$nulls":18},"5200A00000 - VIETNAM"]
[{"$nulls":18},"5200B00000 - HANOI VIETNAM"]
[{"$nulls":18},"5200C00000 - HO CHI MINH CTY"]
[{"$nulls":18},"5640A00000 - MOLDOVA"]
[{"$nulls":18},"5640B00000 - CHISINAU MOLDOVA"]
[{"$nulls":18},"5750A00000 - PFP"]
[{"$nulls":18},"5750A00100 - COS IT"]
[{"$nulls":18},"5750A00101 - CODAS"]
[{"$nulls":18},"5750A00102 - SPICE"]
[{"$nulls":18},"5750A00103 - DIRECTOR'S OFFICE"]
[{"$nulls":18},"5750A00200 - COS OPERATIONS"]
[{"$nulls":18},"5750A00201 - DD O&F"]
[{"$nulls":18},"5750A00202 - FINANCE SECTION"]
[{"$nulls":18},"5750A00203 - PROCUREMENT"]
[{"$nulls":18},"5750A00300 - COS FINANCE"]
[{"$nulls":18},"5750A00301 - PFP HR"]
[{"$nulls":18},"5750A00400 - COS HUMAN RESOURCES"]
[{"$nulls":18},"5750A00500 - STRATEGIC PARTNRSHPS"]
[{"$nulls":18},"5750A00501 - DD PSE"]
[{"$nulls":18},"5750A00502 - CHILD RIGHTS & BUS."]
[{"$nulls":18},"5750A00503 - ADV & INNOV PSHIPS"]
[{"$nulls":18},"5750A00600 - CHILD RIGHT ADVOCACY"]
[{"$nulls":18},"5750A00601 - DD PSFR"]
[{"$nulls":18},"5750A00602 - MARKET KNOWLEDGE"]
[{"$nulls":18},"5750A00603 - FUNDRAISING SERVICES"]
[{"$nulls":18},"5750A00604 - GLOBAL PHILANTHROPY"]
[{"$nulls":18},"5750A00605 - PROGRAMME SERVICES"]
[{"$nulls":18},"5750A00606 - CORPORATE FUNDRSNG"]
[{"$nulls":18},"5750A00607 - MARKET DEVELOPMENT"]
[{"$nulls":18},"5750A00608 - INVESTMENT FUNDS"]
[{"$nulls":18},"5750A00700 - CORP SOCIAL RESP"]
[{"$nulls":18},"5750A00800 - COMM & BRAND POS"]
[{"$nulls":18},"5750A00901 - DD NAT COM RELATION"]
[{"$nulls":18},"5750A00902 - RELATIONSHIPS TEAM 1"]
[{"$nulls":18},"5750A00903 - RELATIONSHIPS TEAM 2"]
[{"$nulls":18},"5750A00906 - GOVERNANCE"]
[{"$nulls":18},"5750P00000 - PFP"]
[{"$nulls":18},"5750P00100 - GOV & SYS DIR'S OFF"]
[{"$nulls":18},"5750P00101 - COUNTRY OFFICE D&S"]
[{"$nulls":18},"5750P00102 - STRATEGIC PLANNING"]
[{"$nulls":18},"5750P00200 - MGT OF FIN.RESOURCES"]
[{"$nulls":18},"5750P00201 - DY. DIR FIN & OPS"]
[{"$nulls":18},"5750P00202 - FINANCE SECTION"]
[{"$nulls":18},"5750P00203 - PROCUREMENT"]
[{"$nulls":18},"5750P00204 - ALLOC COMMON SERV"]
[{"$nulls":18},"5750P00300 - MGT OF HUM CAP: HR"]
[{"$nulls":18},"5750P00400 - ADVOCACY"]
[{"$nulls":18},"5750P00500 - CORP SOCIAL RESP"]
[{"$nulls":18},"5750P00501 - MARKET DEVELOPMENT"]
[{"$nulls":18},"5750P00600 - STRATEGIC INFO & INV"]
[{"$nulls":18},"5750P00601 - DY.DIRCENTRLFUNDRSNG"]
[{"$nulls":18},"5750P00602 - MARKET KNOWLEDGE"]
[{"$nulls":18},"5750P00603 - CENTRL FUNDRSNG SERV"]
[{"$nulls":18},"5750P00604 - GLOBAL PHILANTHROPY"]
[{"$nulls":18},"5750P00605 - PROG-DONOR MATCHING"]
[{"$nulls":18},"5750P00606 - CORPORATE FUNDRSNG"]
[{"$nulls":18},"5750P00607 - MARKET DEVELOPMENT"]
[{"$nulls":18},"5750P00700 - SALES OF CARDS&PRODS"]
[{"$nulls":18},"5750P00701 - DY.DIR CARDS & PRODS"]
[{"$nulls":18},"5750P00702 - GLOBAL SUPPLY CHAIN"]
[{"$nulls":18},"5750P00703 - QUALITY MANAGEMENT"]
[{"$nulls":18},"5750P00704 - GLOBL MKTG & BUS DEV"]
[{"$nulls":18},"5750P00800 - COMM & BRAND POS"]
[{"$nulls":18},"5750P00900 - STRATEGIC DIRECTION"]
[{"$nulls":18},"5750P00901 - DY.DIR NATL COM REL"]
[{"$nulls":18},"5750P00902 - RELATIONSHIPS TEAM 1"]
[{"$nulls":18},"5750P00903 - RELATIONSHIPS TEAM 2"]
[{"$nulls":18},"5750P00904 - RELATIONSHIPS TEAM 3"]
[{"$nulls":18},"5750P00905 - RELATIONSHIPS TEAM 4"]
[{"$nulls":18},"5750P00906 - GOVERNANCE"]
[{"$nulls":18},"575CA00000 - GENEVA COS"]
[{"$nulls":18},"575CA00100 - COS IT"]
[{"$nulls":18},"575CA00200 - COS OPERATIONS"]
[{"$nulls":18},"575CA00300 - COS FINANCE"]
[{"$nulls":18},"575CA00400 - COS HUMAN RESOURCES"]
[{"$nulls":18},"575RA00000 - CEE/CIS"]
[{"$nulls":18},"575RB00000 - REG SERV DIVCEE/CIS"]
[{"$nulls":18},"575RC00000 - MOSCOW RUSSIA PO"]
[{"$nulls":18},"6110A00000 - BELIZE"]
[{"$nulls":18},"6110B00000 - BELIZE CITY BELIZE"]
[{"$nulls":18},"6260A00000 - ZIMBABWE"]
[{"$nulls":18},"6260B00000 - HARARE ZIMBABWE"]
[{"$nulls":18},"6260C00000 - BULAWAYO ZIMBABWE"]
[{"$nulls":18},"6350A00000 - OMAN"]
[{"$nulls":18},"6350B00000 - MUSCAT OMAN"]
[{"$nulls":18},"6490A00000 - PAPUA NEW GUINEA"]
[{"$nulls":18},"6490B00000 - PORT MORESBY PNG"]
[{"$nulls":18},"6490C00000 - BUKA"]
[{"$nulls":18},"6490D00000 - GOROKA"]
[{"$nulls":18},"6620A00000 - COMOROS"]
[{"$nulls":18},"6620B00000 - MORONI COMOROS"]
[{"$nulls":18},"6690A00000 - DJIBOUTI"]
[{"$nulls":18},"6690B00000 - DJIBOUTI DJIBOUTI"]
[{"$nulls":18},"6810A00000 - ANGOLA"]
[{"$nulls":18},"6810B00000 - LUANDA ANGOLA"]
[{"$nulls":18},"6810C00000 - KUNENE"]
[{"$nulls":18},"6810D00000 - LUBANGO"]
[{"$nulls":18},"6810E00000 - LUENA"]
[{"$nulls":18},"6810F00000 - KUITO BIE"]
[{"$nulls":18},"6820A00000 - CABO VERDE"]
[{"$nulls":18},"6820B00000 - PRAIA CABO VERDE"]
[{"$nulls":18},"6830A00000 - SAO TOME PRINCIPE"]
[{"$nulls":18},"6830B00000 - SAO TOME STP"]
[{"$nulls":18},"6850A00000 - GUINEA BISSAU"]
[{"$nulls":18},"6850B00000 - BISSAUGUINEA BISSAU"]
[{"$nulls":18},"6890A00000 - REP. OF MOZAMBIQUE"]
[{"$nulls":18},"6890B00000 - MAPUTO MOZAMBIQUE"]
[{"$nulls":18},"6980A00000 - NAMIBIA"]
[{"$nulls":18},"6980B00000 - WINDHOEK NAMIBIA"]
[{"$nulls":18},"7050A00000 - STATE OF PALESTINE"]
[{"$nulls":18},"7050B00000 - EAST JERUSALEM"]
[{"$nulls":18},"7050C00000 - GAZA"]
[{"$nulls":18},"7050D00000 - HEBRON"]
[{"$nulls":18},"7050E00000 - KHAN YUNIS"]
[{"$nulls":18},"7050F00000 - NABLUS"]
[{"$nulls":18},"7050G00000 - RAFAH"]
[{"$nulls":18},"7050H00000 - RAMALLAH"]
[{"$nulls":18},"7060A00000 - TIMOR-LESTE"]
[{"$nulls":18},"7060B00000 - DILI TIMOR-LESTE"]
[{"$nulls":18},"8950A00000 - REP. OF MONTENEGRO"]
[{"$nulls":18},"8950B00000 - PODGORICAMONTENEGRO"]
[{"$nulls":18},"8970A00000 - REPUBLIC OF SERBIA"]
[{"$nulls":18},"8970B00000 - BELGRADE  SERBIA"]
[{"$nulls":18},"8971A00000 - KOSOVO"]
[{"$nulls":18},"8971B00000 - PRISTINA KOSOVO"]
[{"$nulls":18},"8971C00000 - ZVECAN KOSOVO"]

{"sheet":"PAyment terms","index":5,"n_rows":117,"n_cols":4,"rows_kept":117,"cut":false,"hidden":true,"merged":[]}
["PayT","Own explanation"]
[]
[null,1,"Payable immediately Due net"]
[null,2,"within 14 days 3 % cash discount"]
[null,null,"within 30 days 2 % cash discount"]
[null,null,"within 45 days Due net"]
[null,3,"For incoming invoices until 15 of the month"]
[null,null,"  within 14 days 2 % cash discount"]
[null,null,"  within 30 days 1.5 % cash discount"]
[null,null,"  within 45 days Due net"]
[null,null,"  Baseline date on 30 of the month"]
[null,null,"For incoming invoices until End  of the month"]
[null,null,"  within 14 days 2.125 % cash discount"]
[null,null,"  within 30 days 1.5 % cash discount"]
[null,null,"  within 45 days Due net"]
[null,null,"  Baseline date on 15 of next month"]
[null,4,"within 14 days 3 % cash discount"]
[null,null,"within 30 days 1 % cash discount"]
[null,null,"within 60 days Due net"]
[null,5,"within 10 days 2 % cash discount"]
[null,null,"within 30 days 1 % cash discount"]
[null,null,"within 50 days Due net"]
[null,6,"Before End of the month 4 % cash discount"]
[null,null,"Before 15 of the next month ;; 2 % cash discount"]
[null,null,"Before 15 in 2 months Due net"]
[null,7,"within 14 days 4 % cash discount"]
[null,null,"within 30 days 2 % cash discount"]
[null,null,"within 60 days Due net"]
[null,8,"Payable immediately Due net"]
[null,null,"Baseline date on End of the month"]
[null,9,"For incoming invoices until 15 of the month"]
[null,null,"  Before 15 of the next month ;; 2.125 % cash disc"]
[null,null,"  Before End of the next month ;; Due net"]
[null,null,"For incoming invoices until End  of the month"]
[null,null,"  Before End of the next month ;; 2.125 % cash dis"]
[null,null,"  Before 15 in 2 months Due net"]
[null,10,"Payable immediately Due net"]
[null,null,"Baseline date on 10 of next month"]
[null,11,"within 10 days 3 % cash discount"]
[null,12,"Payable immediately Due net"]
[null,null,"Baseline date on 11 of next month"]
[null,14,"within 10 days 5 % cash discount"]
[null,15,"within 10 days 3 % cash discount"]
[null,null,"within 15 days 2 % cash discount"]
[null,null,"within 20 days Due net"]
[null,16,"within 14 days 3 % cash discount"]
[null,null,"within 20 days 2 % cash discount"]
[null,null,"within 30 days Due net"]
[null,17,"Payable in 3 partial amounts"]
[null,null,"1 installment: 30.000 % with payment term 0001"]
[null,null,"2 installment: 40.000 % with payment term 0001"]
[null,null,"3 installment: 30.000 % with payment term 0001"]
[null,"Y000","Payment due in 30 days"]
[null,"Y001","within 29 days 2 % cash discount"]
[null,null,"within 30 days Due net"]
[null,"Y002","within 30 days Due net"]
[null,"Y003","For incoming invoices until 15 of the month"]
[null,null,"  within 10 days 3 % cash discount"]
[null,null,"  within 29 days 1.5 % cash discount"]
[null,null,"  within 30 days Due net"]
[null,"Y004","within 10 days 1 % cash discount"]
[null,null,"within 30 days Due net"]
[null,"Y005","within 12 days 2 % cash discount"]
[null,null,"within 30 days Due net"]
[null,"Y010","Payment due in 10 days(Without discount)"]
[null,"Y020","Payment due in 20 days(Without discount)"]
[null,"Y100","Payment due in 30 days"]
[null,"Y101","within 29 days 2 % cash discount"]
[null,null,"within 30 days Due net"]
[null,"Y103","For incoming invoices until 15 of the month"]
[null,null,"  within 10 days 3 % cash discount"]
[null,null,"  within 29 days 1.5 % cash discount"]
[null,null,"  within 30 days Due net"]
[null,"Y104","within 7 days 0.5 % cash discount"]
[null,null,"within 30 days Due net"]
[null,"Y105","within 7 days 0.7 % cash discount"]
[null,null,"within 30 days Due net"]
[null,"Y106","within 10 days 1 % cash discount"]
[null,null,"within 30 days Due net"]
[null,"Y107","within 10 days 1.5 % cash discount"]
[null,null,"within 30 days Due net"]
[null,"Y108","within 10 days 2 % cash discount"]
[null,null,"within 30 days Due net"]
[null,"Y109","within 10 days 3 % cash discount"]
[null,null,"within 30 days Due net"]
[null,"Y110","within 15 days 0.5 % cash discount"]
[null,null,"within 30 days Due net"]
[null,"Y111","within 15 days 0.55 % cash discount"]
[null,null,"within 30 days Due net"]
[null,"Y112","within 15 days 0.6 % cash discount"]
[null,null,"within 30 days Due net"]
[null,"Y113","within 15 days 1 % cash discount"]
[null,null,"within 30 days Due net"]
[null,"Y114","within 15 days 2 % cash discount"]
[null,null,"within 30 days Due net"]
[null,"Z000","Up-front payment",{"$f":"B96&\" \"&C96","v":"Z000 Up-front payment"}]
[null,"Z002","(4) equal quarterly payments",{"$f":"B97&\" \"&C97","v":"Z002 (4) equal quarterly payments"}]
[null,"Z003","Reimbursement of expenses","Z003 Reimbursement of expenses"]
[null,"Z004","(2) six-months payment","Z004 (2) six-months payment"]
[null,"Z005","ECHO: (2) instalments","Z005 ECHO: (2) instalments"]
[null,"Z006","ECHO (80% advance)","Z006 ECHO (80% advance)"]
[null,"Z010","Automatic payment block;pay immediately - NY","Z010 Automatic payment block;pay immediately - NY"]
[null,"Z020","Within 30 days Due net - NY","Z020 Within 30 days Due net - NY"]
[null,"Z110","Automatic payment block;pay immediately - CPH","Z110 Automatic payment block;pay immediately - CPH"]
[null,"Z120","Within 30 days Due net","Z120 Within 30 days Due net"]
[null,"Z121","3% 15 days, Within 30 days Due net","Z121 3% 15 days, Within 30 days Due net"]
[null,"Z122","Within 10 days 3 % cash discount","Z122 Within 10 days 3 % cash discount"]
[null,"Z123","Within 15 days 2.5% cash discount","Z123 Within 15 days 2.5% cash discount"]
[null,"Z124","Within 20 days 2% cash discount","Z124 Within 20 days 2% cash discount"]
[null,"Z125","10 days 3%, 15 days 2.5%, 30 days net","Z125 10 days 3%, 15 days 2.5%, 30 days net"]
[null,"Z126","15 days 2.5%, 20 days 2%, 30 days net","Z126 15 days 2.5%, 20 days 2%, 30 days net"]
[null,"Z127","10 days 3%, 20 days 2%, 30 days net","Z127 10 days 3%, 20 days 2%, 30 days net"]
[null,"Z910","30 days net (direct disbursement by partner)","Z910 30 days net (direct disbursement by partner)"]
[null,"Z911","Donations - Not for disbursement","Z911 Donations - Not for disbursement"]
[null,"Z913","Prepaid","Z913 Prepaid"]
[null,"Z914","For Pre-payments","Z914 For Pre-payments"]
[null,"Z915","30 days net (direct disbursement by KfW)","Z915 30 days net (direct disbursement by KfW)"]